Workbook

Sheet At a glance
B2: HEALTH
B4: Tawanda Makombo
B6: At a glancea
B7: Budgeted public health expenditure as a proportion of total government expenditure (2024/25) | C7: 0.113
B8: Budgeted public health expenditure as a proportion of GDP (2024/25) | C8: 0.036
B9: Consolidated national and provincial health expenditure (2024/25) | C9: R267.2bn
B10: Medical aid beneficiaries as a proportion of total population | C10: 0.157
B11: Proportion of the Black population with medical aid | C11: 0.098
B12: Proportion of the Coloured population with medical aid | C12: 0.196
B13: Proportion of the Indian/Asian population with medical aid | C13: 0.413
B14: Proportion of the White population with medical aid | C14: 0.717
B15: Public sector general practitioners and specialists as a proportion of all registered | C15: 0.439
B16: People per public sector doctor | C16: 2 795 to 1
B17: People per public sector dentist/dental specialist | C17: 55 867 to 1
B18: People per public sector pharmacist | C18: 10 436 to 1
B19: People per public sector nurse | C19: 446 to 1
B20: People per private sector nurse (2022) | C20: 475 to 1
B21: Professional nurses as a proportion of total registered (2022) | C21: 0.58
B22: People per public clinic (2024) | C22: 18 276 to 1
B23: Average length of stay in public hospitals (2022/23) | C23: 6.2 days
B24: Infant mortality rate (2024) | C24: 22.9
B25: Under-five mortality rate (2024) | C25: 28.6
B26: Pneumonia case fatality rate (2022/23) | C26: 0.015
B27: Diarrhoea case fatality rate in children under 5 (2022/23) | C27: 0.017
B28: People HIV-positive (2024) | C28: 8.00m
B29: — as a proportion of total population(2024) | C29: 0.127
B30: AIDS-related deaths among children | C30: 1500
B31: People on anti-retroviral treatment (2024) | C31: 6.08m
B32: a Figures are for 2023 unless otherwise stated.

Sheet HEALTH RESOURCES AND SERVICES

Sheet Expenditure

Sheet Health expenditure
B2: Health expenditure, 2023/24-2026/27
C4: —Revised estimate— | E4: ꟷMedium-term estimatesꟷ
C5: ꟷ2023/24ꟷ | E5: ꟷ2024/25ꟷ | G5: ꟷ2025/26ꟷ | I5: ꟷ2026/27ꟷ
B6: Health expenditure | C6: Expenditure Rbn | D6: Proportion of total | E6: Expenditure Rbn | F6: Proportion of total | G6: Expenditure Rbn | H6: Proportion of total | I6: Expenditure Rbn | J6: Proportion of total
B7: Central hospital services | C7: 51.8 | D7: =C7/267.3 -> 0.1937897493 | E7: 52.8 | F7: =E7/271.9 -> 0.1941890401 | G7: 55.6 | H7: =G7/281.1 -> 0.1977943792 | I7: 57.9 | J7: =I7/295.2 -> 0.1961382114
B8: Provincial hospital services | C8: 43.9 | D8: =C8/267.3 -> 0.164234942 | E8: 47.5 | F8: =E8/271.9 -> 0.1746965796 | G8: 49.2 | H8: =G8/281.1 -> 0.1750266809 | I8: 51.4 | J8: =I8/295.2 -> 0.1741192412
B9: District health services | C9: 119.5 | D9: 0.4470632248 | E9: 120 | F9: 0.4413387275 | G9: 123.9 | H9: 0.4407684098 | I9: 129.6 | J9: 0.4390243902
B10: —HIV, TB, malaria and community outreach | C10: 22.9 | D10: 0.08567153012 | E10: 24.7 | F10: 0.0908422214 | G10: 24.8 | H10: =G10/281.1 -> 0.08822483102 | I10: 26 | J10: 0.08807588076
B11: Emergency medical services | C11: 9.8 | D11: 0.03666292555 | E11: 10.1 | F11: 0.03714600956 | G11: 10.4 | H11: 0.03699750978 | I11: 10.7 | J11: 0.03624661247
B12: Facilities management and maintenance | C12: 10.6 | D12: 0.03965581743 | E12: 11.3 | F12: 0.04155939684 | G12: 11.5 | H12: 0.04091070793 | I12: 12.1 | J12: 0.04098915989
B13: Health science and training | C13: 5.8 | D13: 0.02169846614 | E13: 6.6 | F13: 0.02427363001 | G13: 6.6 | H13: 0.0234791889 | I13: 6.9 | J13: 0.02337398374
B14: National Health Laboratory Service | C14: 13.8 | D14: 0.05162738496 | E14: 11.3 | F14: 0.04155939684 | G14: 11.6 | H14: 0.04126645322 | I14: 12.6 | J14: 0.04268292683
B15: National Department of Healtha | C15: 5.8 | D15: 0.02169846614 | E15: 6.1 | F15: 0.02243471865 | G15: 6.5 | H15: 0.02312344361 | I15: 6.3 | J15: 0.02134146341
B16: Total health expenditure | C16: 267.3 | D16: 1 | E16: 271.9 | F16: 1 | G16: 281.1 | H16: 1 | I16: 295.2 | J16: 1
B17: —Compensation of employees | C17: 171.1 | D17: 0.6401047512 | E17: 174.6 | F17: 0.6421478485 | G17: 181.4 | H17: 0.6453219495 | I17: 189 | J17: 0.6402439024
B18: —Goods and services | C18: 78.1 | D18: 0.29218107 | E18: 76.9 | F18: 0.2828245679 | G18: 78.6 | H18: 0.2796157951 | I18: 84.4 | J18: 0.2859078591
B19: —Transfers and subsidies | C19: 6.3 | D19: 0.02356902357 | E19: 5.9 | F19: 0.0216991541 | G19: 6.1 | H19: 0.02170046247 | I19: 6.3 | J19: 0.02134146341
B20: —Buildings and other fixed structures | C20: 6.2 | D20: =C20/267.3 -> 0.02319491208 | E20: 8.8 | F20: 0.03236484001 | G20: 9.2 | H20: 0.03272856635 | I20: 9.3 | J20: 0.03150406504
B21: —Machinery and equipment | C21: 5.6 | D21: 0.02095024317 | E21: 5.7 | F21: 0.02096358955 | G21: 5.7 | H21: 0.02027748132 | I21: 6.1 | J21: 0.02066395664
B22: Source: National Treasury, Budget Review 2024, Table 5.8, p55
B23: a Excludes grants and transfers reflected as expenditure in appropriate sub-functional areas.

Sheet Health expenditure.2000-21
B2: Health expenditure, 2000-21
B4: Year | C4: Public health expenditure as a proportion of GDP | D4: Total health expenditure as a proportion of GDP | E4: Public health expenditure as a proportion of total government expenditure | F4: Public health expenditure as a proportion of total health expenditure | G4: Private health expenditure as a proportion of total health expenditure | H4: Out-of-pocketa health expenditure as a proportion of total health expenditure
B5: 2000 | C5: 2.68480206 | D5: 7.3366189 | E5: 11.85530758 | F5: 36.59454346 | G5: 62.76049805 | H5: 14.46151733
B6: 2001 | C6: 2.40290713 | D6: 7.12327909 | E6: 10.62284565 | F6: 33.73316193 | G6: 65.62722778 | H6: 14.12628174
B7: 2002 | C7: 2.30570102 | D7: 6.67774487 | E7: 10.37981224 | F7: 34.52814102 | G7: 64.82974243 | H7: 13.55776787
B8: 2003 | C8: 2.79076648 | D8: 7.04098177 | E8: 12.33823776 | F8: 39.63604355 | G8: 54.81716156 | H8: 12.32614422
B9: 2004 | C9: 2.73156238 | D9: 6.938416 | E9: 12.0292511 | F9: 39.36867523 | G9: 55.18088913 | H9: 11.84590149
B10: 2005 | C10: 2.74503064 | D10: 6.86216164 | E10: 10.91880608 | F10: 40.00241852 | G10: 48.21174622 | H10: 11.31283569
B11: 2006 | C11: 3.23011708 | D11: 6.87650871 | E11: 13.09509182 | F11: 46.9732132 | G11: 46.59767914 | H11: 10.58286381
B12: 2007 | C12: 3.30013156 | D12: 6.90510845 | E12: 13.50931835 | F12: 47.79261017 | G12: 44.90902328 | H12: 9.70289135
B13: 2008 | C13: 3.38493657 | D13: 7.14832258 | E13: 13.01471424 | F13: 47.35287857 | G13: 44.58263016 | H13: 8.84287548
B14: 2009 | C14: 3.80475187 | D14: 7.64941454 | E14: 13.36997318 | F14: 49.73912811 | G14: 42.16740036 | H14: 8.10977173
B15: 2010 | C15: 4.00033045 | D15: 7.79358244 | E15: 14.14495468 | F15: 51.32851791 | G15: 41.02915955 | H15: 7.99506283
B16: 2011 | C16: 4.12050819 | D16: 7.94434404 | E16: 14.68394661 | F16: 51.8671875 | G16: 41.0365181 | H16: 7.75090933
B17: 2012 | C17: 4.1403532 | D17: 8.00428867 | E17: 14.46731377 | F17: 51.72668076 | G17: 41.63955688 | H17: 7.72201967
B18: 2013 | C18: 4.14510202 | D18: 8.10322285 | E18: 14.33791637 | F18: 51.15374756 | G18: 42.10570145 | H18: 7.61004734
B19: 2014 | C19: 4.3735652 | D19: 7.87136555 | E19: 14.9161272 | F19: 55.56298065 | G19: 42.70526123 | H19: 5.66398144
B20: 2015 | C20: 4.59632444 | D20: 8.05304241 | E20: 15.23773575 | F20: 57.07562637 | G20: 41.25089264 | H20: 5.73639154
B21: 2016 | C21: 4.57297277 | D21: 8.07959366 | E21: 15.28983974 | F21: 56.59904099 | G21: 41.35696411 | H21: 5.78551388
B22: 2017 | C22: 4.56554031 | D22: 7.97711229 | E22: 15.28983974 | F22: 57.23299789 | G22: 41.6805954 | H22: 5.83464336
B23: 2018 | C23: 4.62280226 | D23: 8.08820343 | E23: 15.28983974 | F23: 57.15487289 | G23: 41.70811844 | H23: 5.83615637
B24: 2019 | C24: 4.80993271 | D24: 8.24418926 | E24: 15.28983974 | F24: 58.34331131 | G24: 40.53360748 | H24: 5.72827816
B25: 2020 | C25: 5.29674768 | D25: 8.57258797 | E25: 15.28983974 | F25: 61.78703308 | G25: 36.88036346 | H25: 5.38762617
B26: 2021 | C26: 4.99565506 | D26: 8.27309132 | E26: 15.28983974 | F26: 60.38438416 | G26: 38.19342422 | H26: 5.50673628
B27: Source: World Bank, www.data.worldbank.org, World Development Indicators, accessed 29 August 2024
B28: a As part of private healthcare, out-of-pocket health expenditure is the payment by private households to health practitioners or the suppliers of pharmaceuticals, therapeutic appliances, and other goods and services whose primary intent is to contribute to the restoration or enhancement of the health status of individuals. It is, therefore, distinct from private expenditure on health through medical insurance.

Sheet Consolidated nat & prov spe
B2: Consolidated national and provincial health expenditure, 1996/97-2027/28
B4: Year | C4: Rbn | D4: Proportion of total expenditure | E4: Proportion of GDPa
B5: 1996/97 | C5: 24.8 | D5: 0.132 | E5: 0.03440258796
B6: 1997/98 | C6: 23 | D6: 0.113 | E6: 0.02890529369
B7: 1998/99 | C7: 24.8 | D7: 0.118 | E7: 0.02876182656
B8: 1999/2000 | C8: 25.5 | D8: 0.143 | E8: 0.02676844976
B9: 2000/01 | C9: 28.1 | D9: 0.143 | E9: 0.02583603953
B10: 2001/02 | C10: 30.8 | D10: 0.137 | E10: 0.02557050028
B11: 2002/03 | C11: 34.4 | D11: 0.13 | E11: 0.02455504685
B12: 2003/04 | C12: 37.9 | D12: 0.125 | E12: 0.02485641974
B13: 2004/05 | C13: 43.4 | D13: 0.13 | E13: 0.02566096193
B14: 2005/06 | C14: 50 | D14: 0.105 | E14: 0.02651502898
B15: 2006/07 | C15: 59 | D15: 0.114 | E15: 0.02762754326
B16: 2007/08 | C16: 62.7 | D16: 0.106 | E16: 0.02602457766
B17: 2008/09 | C17: 77.4 | D17: 0.109 | E17: 0.02911791892
B18: 2009/10 | C18: 93.6 | D18: 0.114 | E18: 0.03292263287
B19: 2010/11 | C19: 102.7 | D19: 0.117 | E19: 0.03288150875
B20: 2011/12 | C20: 115.2 | D20: 0.121 | E20: 0.03397065667
B21: 2012/13 | C21: 124.5 | D21: 0.119 | E21: 0.03426308767
B22: 2013/14 | C22: 133.8 | D22: 0.117 | E22: 0.03391316911
B23: 2014/15 | C23: 144.2 | D23: 0.117 | E23: 0.03432727702
B24: 2015/16 | C24: 161 | D24: 0.118 | E24: 0.03578641423
B25: 2016/17 | C25: 173.8 | D25: 0.12 | E25: 0.03597449164
B26: 2017/18 | C26: 188.7 | D26: 0.122 | E26: 0.03672343652
B27: 2018/19b | C27: 203.5 | D27: 0.124 | E27: 0.03750850623
B28: 2019/20b | C28: 218.8 | D28: 0.121 | E28: 0.0383011782
B29: 2020/21b | C29: 242.3 | D29: 0.123 | E29: 0.04314510162
B30: 2021/22b | C30: 252.2 | D30: 0.123 | E30: 0.0399558806
B31: 2022/23b | C31: 250 | D31: 0.117 | E31: 0.03719269535
B32: 2023/24b | C32: 265.9 | D32: 0.118 | E32: 0.03733883618
B33: 2024/25b | C33: 274 | D33: 0.114 | E33: 0.03585511635
B34: 2025/26b | C34: 284.5 | D34: 0.113 | E34: 0.03495144012
B35: 2026/27b | C35: 297.2 | D35: 0.113 | E35: 0.035
B36: 2027/28b | C36: 310.8 | D36: 0.112 | E36: 0.034
B37: Source: National Treasury, Medium Term Budget Policy Statement (MTBPS) 2024, time series data, accessed 12 November 2024
B38: a CRA calculations.
B39: b MTBPS estimates.

Sheet Health exp, sel count.21
B2: International comparisons
B4: Health expenditure, selected countries, 2021
B6: Country | C6: Public health expenditure as a proportion of total health expenditure | D6: Public health expenditure as a proportion of total government expenditure | E6: Out-of-pocketa health expenditure as a proportion of total health expenditure | F6: Total health expenditure as a proportion of GDP | G6: Total health expenditure per capita (PPP$)b
B7: Australia | C7: 76.03939819 | D7: 19.3241291 | E7: 13.82497215 | F7: 10.54363918 | G7: 6488.269
B8: Botswana | C8: 76.45542908 | D8: 14.61503124 | E8: 4.30253553 | F8: 6.30929565 | G8: 1095.999
B9: Brazil | C9: 45.5424614 | D9: 10.94026566 | E9: 22.65208626 | F9: 9.89072323 | G9: 1625.641
B10: Chile | C10: 55.62454224 | D10: 15.52466297 | E10: 30.26623917 | F10: 9.34327984 | G10: 2647.612
B11: China | C11: 54.06824493 | D11: 8.9053545 | E11: 34.39476395 | F11: 5.38360548 | G11: 1032.668
B12: Denmark | C12: 85.21 | D12: 18.15 | E12: 12.6 | F12: 10.82 | G12: 7043
B13: Egypt | C13: 37.67822266 | D13: 6.79944944 | E13: 54.90198135 | F13: 4.60955143 | G13: 615.4601
B14: France | C14: 75.61846161 | D14: 15.76224709 | E14: 8.92467976 | F14: 12.30787277 | G14: 6330.467
B15: Germany | C15: 79.04927826 | D15: 19.94881821 | E15: 12.16129494 | F15: 12.93412971 | G15: 7606.963
B16: Ghana | C16: 54.05527878 | D16: 8.20150948 | E16: 27.24682426 | F16: 4.15176868 | G16: 247.9073
B17: Greece | C17: 59.2116127 | D17: 9.41304398 | E17: 33.32963943 | F17: 9.17298794 | G17: 2860.611
B18: India | C18: 34.27 | D18: 3.69 | E18: 49.82 | F18: 3.28 | G18: 236
B19: Indonesia | C19: 59.41187668 | D19: 12.11291027 | E19: 27.48734474 | F19: 3.70636249 | G19: 483.0069
B20: Ireland | C20: 77.39710236 | D20: 20.96095657 | E20: 10.68828297 | F20: 6.71662664 | G20: 7196.313
B21: Israel | C21: 68.18 | D21: 13.19 | E21: 19.8 | F21: 7.9 | G21: 3665
B22: Italy | C22: 75.46 | D22: 12.36 | E22: 21.89 | F22: 9.38 | G22: 4372
B23: Japan | C23: 84.72 | D23: 21.45 | E23: 12.03 | F23: 10.82 | G23: 4676
B24: Kazakhstan | C24: 65.33 | D24: 11.62 | E24: 25.03 | F24: 3.92 | G24: 1114
B25: Lithuania | C25: 67.18 | D25: 14.01 | E25: 30.16 | F25: 7.82 | G25: 3432
B26: Mexico | C26: 50.09624481 | D26: 11.03306103 | E26: 41.37071991 | F26: 6.07868719 | G26: 1190.11
B27: Mozambique | C27: 28.39583206 | D27: 8.15276432 | E27: 8.87722778 | F27: 9.05218315 | G27: 121.998
B28: Nigeria | C28: 13.27266693 | D28: 4.0558753 | E28: 76.24337006 | F28: 4.07625723 | G28: 220.4432
B29: Pakistan | C29: 29.0236187 | D29: 4.57438993 | E29: 57.49644852 | F29: 2.91131568 | G29: 167.3426
B30: Philippines | C30: 39.33 | D30: 8.46 | E30: 44.61 | F30: 5.87 | G30: 522
B31: Poland | C31: 72.1 | D31: 10.53 | E31: 20.31 | F31: 6.44 | G31: 2456
B32: Russia | C32: 71.17 | D32: 15.12 | E32: 27.22 | F32: 7.39 | G32: 2530
B33: Saudi Arabia | C33: 76.9837265 | D33: 14.40493202 | E33: 10.15629482 | F33: 5.96836901 | G33: 3029.48
B34: South Africa | C34: 60.38438416 | D34: 15.28983974 | E34: 5.50673628 | F34: 8.27309132 | G34: 1209.891
B35: Spain | C35: 71.60453033 | D35: 15.19330502 | E35: 20.99674988 | F35: 10.74003887 | G35: 4367.578
B36: Switzerland | C36: 36.21349335 | D36: 11.71908569 | E36: 22.70652771 | F36: 11.80107975 | G36: 8998.391
B37: Turkey | C37: 78.8 | D37: 11.53 | E37: 16.27 | F37: 4.57 | G37: 1390
B38: Uganda | C38: 22.53227997 | D38: 4.88157225 | E38: 31.25317955 | F38: 4.67196703 | G38: 118.9158
B39: United Kingdom | C39: 83.69000244 | D39: 22.36486244 | E39: 13.51221371 | F39: 12.36469936 | G39: 6159.796
B40: United States | C40: 55.40325165 | D40: 21.40855026 | E40: 10.70016861 | F40: 17.3625679 | G40: 12012.24
B41: Venezuela | C41: 33.52462387 | D41: 5.45644379 | E41: 28.05523682 | F41: 4.03775549 | G41: 103.0247
B42: Source: World Bank, www.worldbank.org, World Development Indicators, accessed 29 August 2024
B43: a As part of private healthcare, out-of-pocket health expenditure is the payment by private households to health practitioners or the suppliers of pharmaceuticals, therapeutic appliances, and other goods and services whose primary intent is to contribute to the restoration or enhancement of the health status of individuals. It is therefore distinct from private expenditure on health through medical insurance.
B44: b Dollars at Purchasing Power Parity (PPP) are adjusted to be comparable across different countries, so that differing prices are taken into account. These figures are in current prices.

Sheet Health exp, emergmark.21
B2: Health expenditure, emerging markets, 2021
B4: Country | C4: Public health expenditure as a proportion of total health expenditure | D4: Public health expenditure as a proportion of total government expenditure | E4: Out-of-pocketa health expenditure as a proportion of total health expenditure | F4: Total health expenditure as a proportion of GDP | G4: Total health expenditure per capita (PPP$)b
B5: Argentina | C5: 0.6321 | D5: 0.162 | E5: 0.224 | F5: 0.097 | G5: 2323
B6: Brazil | C6: 45.5424614 | D6: 10.94026566 | E6: 22.65209 | F6: 9.89072323 | G6: 1625.641236
B7: Bulgaria | C7: 62.83 | D7: 12.92 | E7: 35.07 | F7: 8.56 | G7: 2391
B8: Chile | C8: 55.62454224 | D8: 15.52466297 | E8: 30.26624 | F8: 9.34327984 | G8: 2647.611968
B9: China | C9: 54.06824493 | D9: 8.9053545 | E9: 34.39476 | F9: 5.38360548 | G9: 1032.667568
B10: Colombia | C10: 72.59104156 | D10: 19.00617027 | E10: 13.66965 | F10: 9.01772404 | G10: 1542.482056
B11: Czech Republic | C11: 86.17588806 | D11: 17.58224487 | E11: 12.72645 | F11: 9.4887867 | G11: 4249.36158
B12: Egypt | C12: 37.67822266 | D12: 6.79944944 | E12: 54.90198 | F12: 4.60955143 | G12: 615.4600646
B13: Estonia | C13: 76.16278839 | D13: 13.75658607 | E13: 22.25319 | F13: 7.49057293 | G13: 3258.781031
B14: Greece | C14: 59.2116127 | D14: 9.41304398 | E14: 33.32964 | F14: 9.17298794 | G14: 2860.611494
B15: Hungary | C15: 72.22 | D15: 11.02 | E15: 24.64 | F15: 7.38 | G15: 2706
B16: India | C16: 34.27 | D16: 3.69 | E16: 49.82 | F16: 3.28 | G16: 236
B17: Indonesia | C17: 59.41187668 | D17: 12.11291027 | E17: 27.48734 | F17: 3.70636249 | G17: 483.0068905
B18: Jordan | C18: 35.57975388 | D18: 7.90704393 | E18: 37.4539 | F18: 7.28875065 | G18: 738.5231805
B19: Kuwait | C19: 89.71035767 | D19: 9.91747665 | E19: 9.307446 | F19: 5.78120756 | G19: 2908.251613
B20: Latvia | C20: 69.33 | D20: 14.19 | E20: 26.99 | F20: 9.04 | G20: 3153
B21: Lithuania | C21: 67.18 | D21: 14.01 | E21: 30.16 | F21: 7.82 | G21: 3432
B22: Malaysia | C22: 56.21326447 | D22: 10.10703659 | E22: 32.08135 | F22: 4.38380671 | G22: 1268.21222
B23: Mauritius | C23: 49.19724655 | D23: 10.2022686 | E23: 42.9031 | F23: 6.39258909 | G23: 1428.983177
B24: Mexico | C24: 50.09624481 | D24: 11.03306103 | E24: 41.37072 | F24: 6.07868719 | G24: 1190.110028
B25: Morocco | C25: 38.85395813 | D25: 7.18068504 | E25: 44.75626 | F25: 5.73834944 | G25: 515.7605643
B26: Oman | C26: 87.19075012 | D26: 10.53943253 | E26: 6.132633 | F26: 4.37028217 | G26: 1646.559119
B27: Pakistan | C27: 29.0236187 | D27: 4.57438993 | E27: 57.49645 | F27: 2.91131568 | G27: 167.3426037
B28: Peru | C28: 64.8544693 | D28: 16.94242287 | E28: 27.2153 | F28: 6.15173197 | G28: 855.8684025
B29: Philippines | C29: 39.33 | D29: 8.46 | E29: 44.61 | F29: 5.87 | G29: 522
B30: Poland | C30: 72.1 | D30: 10.53 | E30: 20.31 | F30: 6.44 | G30: 2456
B31: Qatar | C31: 85.02642059 | D31: 8.38973713 | E31: 6.5576 | F31: 2.89366841 | G31: 2952.065589
B32: Romania | C32: 75.65 | D32: 12.32 | E32: 20.94 | F32: 6.48 | G32: 2340
B33: Russia | C33: 71.17 | D33: 15.12 | E33: 27.22 | F33: 7.39 | G33: 2530
B34: Slovakia | C34: 79.73 | D34: 13.56 | E34: 19.4 | F34: 7.75 | G34: 2670
B35: South Africa | C35: 60.38438416 | D35: 15.28983974 | E35: 5.506736 | F35: 8.27309132 | G35: 1209.891114
B36: Sri Lanka | C36: 46.45 | D36: 9.49 | E36: 43.64 | F36: 4.07 | G36: 609
B37: Thailand | C37: 70.36208344 | D37: 13.46591473 | E37: 9.044554 | F37: 5.16038752 | G37: 967.4022998
B38: Turkey | C38: 78.8 | D38: 11.53 | E38: 16.27 | F38: 4.57 | G38: 1390
B39: United Arab Emirates | C39: 64.10680389 | D39: 12.8867445 | E39: 10.43673 | F39: 5.30695152 | G39: 4065.614004
B40: Venezuela | C40: 33.52462387 | D40: 5.45644379 | E40: 28.05524 | F40: 4.03775549 | G40: 103.0246888
B41: Vietnam | C41: 42.715065 | D41: 8.96954346 | E41: 40.01132 | F41: 4.59346437 | G41: 536.3378624
B42: Source: World Bank, www.worldbank.org, World Development Indicators, accessed 29 August 2024
B43: a As part of private healthcare, out-of-pocket health expenditure is the payment by private households to health practitioners or the suppliers of pharmaceuticals, therapeutic appliances, and other goods and services whose primary intent is to contribute to the restoration or enhancement of the health status of individuals. It is, therefore, distinct from private expenditure on health through medical insurance.
B44: b Dollars at Purchasing Power Parity (PPP) are adjusted to be comparable across different countries, so that differing prices are taken into account. These figures are in current prices.

Sheet Health exp.Africa.21
B2: Health expenditure, selected African countries, 2021
B4: Country | C4: Public health expenditure as a proportion of total health expenditure | D4: Public health expenditure as a proportion of total government expenditure | E4: Out-of-pocketa health expenditure as a proportion of total health expenditure | F4: Total health expenditure as a proportion of GDP | G4: Total health expenditure per capita (PPP$)b
B5: Algeria | C5: 59.1096344 | D5: 8.82444 | E5: 38.53034 | F5: 5.5283432 | G5: 672.252513
B6: Angola | C6: 57.80676651 | D6: 8.77736568 | E6: 23.41331 | F6: 2.96010613 | G6: 198.5463085
B7: Botswana | C7: 76.45542908 | D7: 14.61503124 | E7: 4.302536 | F7: 6.30929565 | G7: 1095.999419
B8: Burundi | C8: 24.47496986 | D8: 7.33283997 | E8: 25.36169 | F8: 9.10190964 | G8: 70.49819553
B9: Cameroon | C9: 12.67195225 | D9: 2.86053681 | E9: 66.91696 | F9: 3.82407379 | G9: 155.5611965
B10: Central African Republic | C10: 13.94029903 | D10: 6.42328548 | E10: 48.96759 | F10: 9.06853294 | G10: 85.65123263
B11: Congo (DRC) | C11: 16.76400948 | D11: 4.34094429 | E11: 39.1287 | F11: 3.7859261 | G11: 45.61236952
B12: Congo (Republic) | C12: 48.98539352 | D12: 8.21684074 | E12: 24.07518 | F12: 3.87537813 | G12: 124.9104323
B13: Egypt | C13: 37.67822266 | D13: 6.79944944 | E13: 54.90198 | F13: 4.60955143 | G13: 615.4600646
B14: Eritrea | C14: 21.20282936 | D14: 2.3541069 | E14: 49.50628 | F14: 4.15077114 | G14: 79.74720385
B15: Eswatini | C15: 53.05363464 | D15: 12.30096912 | E15: 10.42652 | F15: 7.03582335 | G15: 684.5940902
B16: Ethiopia | C16: 30.52074814 | D16: 7.09674501 | E16: 36.99786 | F16: 3.20824432 | G16: 81.73697651
B17: Ghana | C17: 54.05527878 | D17: 8.20150948 | E17: 27.24682 | F17: 4.15176868 | G17: 247.9073421
B18: Ivory Coast | C18: 32.85775375 | D18: 5.05918074 | E18: 32.34333 | F18: 3.13269377 | G18: 187.8897728
B19: Kenya | C19: 48.73331451 | D19: 9.28804493 | E19: 22.76805 | F19: 4.54763126 | G19: 236.9848455
B20: Lesotho | C20: 41.15604782 | D20: 7.95045662 | E20: 14.05314 | F20: 10.21370411 | G20: 264.3650908
B21: Liberia | C21: 6.53418064 | D21: 3.65630078 | E21: 24.67734 | F21: 16.6163311 | G21: 259.805156
B22: Libya | C22: N/A | D22: N/A | E22: N/A | F22: N/A | G22: N/A
B23: Madagascar | C23: 21.03363609 | D23: 5.2659874 | E23: 32.71158 | F23: 3.5045228 | G23: 56.67031758
B24: Malawi | C24: 18.3855381 | D24: 5.75638103 | E24: 14.10838 | F24: 7.41194487 | G24: 118.9187269
B25: Mauritius | C25: 49.19724655 | D25: 10.2022686 | E25: 42.9031 | F25: 6.39258909 | G25: 1428.983177
B26: Morocco | C26: 38.85395813 | D26: 7.18068504 | E26: 44.75626 | F26: 5.73834944 | G26: 515.7605643
B27: Mozambique | C27: 28.39583206 | D27: 8.15276432 | E27: 8.877228 | F27: 9.05218315 | G27: 121.9980197
B28: Namibia | C28: 47.4595108 | D28: 11.23579884 | E28: 7.715786 | F28: 9.38092136 | G28: 941.728429
B29: Nigeria | C29: 13.27266693 | D29: 4.0558753 | E29: 76.24337 | F29: 4.07625723 | G29: 220.4431661
B30: Rwanda | C30: 40.8235054 | D30: 9.47249985 | E30: 10.13343 | F30: 7.32305002 | G30: 180.1185352
B31: Senegal | C31: 25.85619545 | D31: 4.37001896 | E31: 47.31245 | F31: 4.35098124 | G31: 167.0777391
B32: Somalia | C32: N/A | D32: N/A | E32: N/A | F32: N/A | G32: N/A
B33: South Africa | C33: 60.38438416 | D33: 15.28983974 | E33: 5.506736 | F33: 8.27309132 | G33: 1209.891114
B34: Sudan | C34: 27.04865837 | D34: 7.86141205 | E34: 56.85788 | F34: 2.83633852 | G34: 127.3437529
B35: Tanzania | C35: 27.18029213 | D35: 5.13516998 | E35: 25.56492 | F35: 3.36136484 | G35: 95.87526309
B36: Tunisia | C36: 59.19248962 | D36: 12.39702702 | E36: 33.74077 | F36: 6.97273922 | G36: 784.1246384
B37: Uganda | C37: 22.53227997 | D37: 4.88157225 | E37: 31.25318 | F37: 4.67196703 | G37: 118.9158126
B38: Zambia | C38: 42.51919937 | D38: 9.25484943 | E38: 7.078294 | F38: 6.62416458 | G38: 235.5497654
B39: Zimbabwe | C39: 32.74111557 | D39: 5.21136522 | E39: 10.25506 | F39: 2.78975058 | G39: 63.13696667
B40: Source: World Bank, www.worldbank.org, World Development Indicators, accessed 29 August 2024
B41: a As part of private healthcare, out-of-pocket health expenditure is the payment by private households to health practitioners or the suppliers of pharmaceuticals, therapeutic appliances, and other goods and services whose primary intent is to contribute to the restoration or enhancement of the health status of individuals. It is, therefore, distinct from private expenditure on health through medical insurance.
B42: b Dollars at Purchasing Power Parity (PPP) are adjusted to be comparable across different countries, so that differing prices are taken into account. These figures are in current prices.
B43: N/A— Not available.

Sheet Medical insurance

Sheet Registeredmedschemes.05-23
B2: Medical insurance
B4: Registered medical schemes, 2005-23
B6: Year | C6: Open schemesa | D6: Restricted schemesb
B7: 2005 | C7: 47 | D7: 84
B8: 2006 | C8: 41 | D8: 83
B9: 2007 | C9: 41 | D9: 81
B10: 2008 | C10: 37 | D10: 82
B11: 2009 | C11: 33 | D11: 77
B12: 2010 | C12: 27 | D12: 73
B13: 2011 | C13: 26 | D13: 71
B14: 2012 | C14: 25 | D14: 68
B15: 2013 | C15: 24 | D15: 63
B16: 2014 | C16: 23 | D16: 60
B17: 2015 | C17: 22 | D17: 60
B18: 2016 | C18: 22 | D18: 60
B19: 2017 | C19: 21 | D19: 60
B20: 2018c | C20: 22 | D20: 58
B21: 2019d | C21: 20 | D21: 58
B22: 2020e | C22: 18 | D22: 58
B23: 2021f | C23: 18 | D23: 58
B24: 2022g | C24: 18 | D24: 57
B25: 2023h | C25: 16 | D25: 55
B26: 2005-23 | C26: =(C25-C7)/C7 -> -0.6595744681 | D26: =(D25-D7)/D7 -> -0.3452380952
B27: Source: Council for Medical Schemes (CMS), www.medicalschemes.com, Council for Medical Schemes Annual Report 2015/16, March 2016, pp19-20;CMS Annual Report 2016/17, March 2017, p16; CMS Annual Report 2017/18, March 2018, p16; CMS Annual Report 2018/19, October 2019, p20; CMS Annual Report 2019/20, December 2020, p21; CMS Annual report 2021/22, January 2023, Annexure X; CMS Annual report 2022/23, December 2023, Annexure E; CMS Annual report 2023/24, October 2024, Table 1, pp3-4
B28: a Can be joined by any person.
B29: b For specific employer groups.
B30: c As at March 2018.
B31: d As at March 2019.
B32: e As at March 2020.
B33: f As at December 2021
B34: g As at December 2022.
B35: h As at December 2023.

Sheet Biggest.med.aid.schemes.10-22
B2: Top ten medical aid schemes, 2010 and 2022
B4: —2010— | D4: —2022—
B5: Name of scheme | C5: Average number of beneficiaries | D5: Name of scheme | E5: Average number of beneficiaries
B6: Discovery Health Medical Scheme | C6: 2171742 | D6: Discovery Health Medical Scheme | E6: 2788312
B7: Government Employees Medical Schemes (GEMS) | C7: 1335772 | D7: Government Employees Medical Scheme (GEMS) | E7: 2083603
B8: Bonitas Medical Fund | C8: 628542 | D8: Bonitas Medical Fund | E8: 729904
B9: SA Police Service Medical Scheme (POLMED) | C9: 475882 | D9: South African Police Service Medical Scheme (POLMED) | E9: 491509
B10: Medihelp | C10: 237282 | D10: Momentum Health | E10: 296119
B11: Bankmed | C11: 201250 | D11: LA-Health Medical Scheme | E11: 240457
B12: Medshield Medical Scheme | C12: 193636 | D12: Bestmed Medical Scheme | E12: 228968
B13: Fedhealth Medical Scheme | C13: 172030 | D13: Bankmed | E13: 216678
B14: Liberty Medical Scheme | C14: 170008 | D14: Medihelp | E14: 198501
B15: Momentum Health | C15: 168060 | D15: Sizwe Hosmed Medical Fund | E15: 152421
B16: Totala | C16: 5754204 | D16: Totala | E16: =SUM(E6:E15) -> 7426472
B17: Source: CMS, www.medicalschemes.com, Annual Report 2010/11, September 2011, pp19-20; CMS Annual report 2022/23, December 2023, Annexure G
B18: a CRA calculations.

Sheet Beneficiaries of med.aid.97-22
C2: Beneficiaries of medical aid schemes, 1997-2022
C4: Year | D4: Total beneficiaries | E4: Proportion of total populationa
C5: 1997 | D5: 6965000 | E5: 0.17
C6: 1998 | D6: 6992000 | E6: 0.166
C7: 1999 | D7: 6989000 | E7: 0.162
C8: 2000 | D8: 6729551 | E8: 0.154
C9: 2001 | D9: 6764409 | E9: 0.152
C10: 2002 | D10: 6713870 | E10: 0.148
C11: 2003 | D11: 6671801 | E11: 0.144
C12: 2004 | D12: 6662563 | E12: 0.143
C13: 2005 | D13: 6835621 | E13: 0.146
C14: 2006 | D14: 7127343 | E14: 0.15
C15: 2007 | D15: 7478040 | E15: 0.156
C16: 2008 | D16: 7874826 | E16: 0.162
C17: 2009 | D17: 8068505 | E17: 0.164
C18: 2010 | D18: 8315718 | E18: 0.166
C19: 2011 | D19: 8526409 | E19: 0.169
C20: 2012 | D20: 8679473 | E20: 0.166
C21: 2013 | D21: 8778308 | E21: 0.166
C22: 2014 | D22: 8814458 | E22: 0.163
C23: 2015 | D23: 8809523 | E23: 0.162
C24: 2016 | D24: 8878081 | E24: 0.159
C25: 2017 | D25: 8839892 | E25: 0.156
C26: 2018 | D26: 8872149 | E26: 0.154
C27: 2019 | D27: 8935496 | E27: 15,2%
C28: 2020 | D28: 8904679 | E28: 14,9%
C29: 2021 | D29: 8921711 | E29: 0.148
C30: 2022 | D30: 8956765 | E30: 0.148
B31: Source: CMS, e-mail communication, 22 October 2012; CMS Annual Report, 2012-22 data; Stats SA, Mid-year population estimates data
B32: a CRA calculations.

Sheet Benef.ofmedical.aid.97-22(BC)
A1: Year | B1: As a proportion of the total population
A2: 1997 | B2: 17
A3: 1998 | B3: 17
A4: 1999 | B4: 16
A5: 2000 | B5: 15
A6: 2001 | B6: 15
A7: 2002 | B7: 15
A8: 2003 | B8: 14
A9: 2004 | B9: 14
A10: 2005 | B10: 15
A11: 2006 | B11: 15
A12: 2007 | B12: 16
A13: 2008 | B13: 16
A14: 2009 | B14: 16
A15: 2010 | B15: 17
A16: 2011 | B16: 17
A17: 2012 | B17: 17
A18: 2013 | B18: 17
A19: 2014 | B19: 16
A20: 2015 | B20: 16
A21: 2016 | B21: 15.7
A22: 2017 | B22: 16
A23: 2018 | B23: 15
A24: 2019 | B24: 15
A25: 2020 | B25: 15
A26: 2021 | B26: 15
A27: 2022 | B27: 15

Sheet Med.aid benef.by prov.04-23
B2: Medical aid beneficiaries by province, 2004-23
B4: Province | C4: 2004 | D4: 2006 | E4: 2008 | F4: 2010 | G4: 2012a | H4: 2014a | I4: 2016a | J4: 2018a | K4: 2020a | L4: 2022a | M4: 2023a | N4: Proportionb of provincial population 2023
B5: Eastern Cape | C5: 595826 | D5: 614197 | E5: 677478 | F5: 708097 | G5: 712000 | H5: 696000 | I5: 638000 | J5: 645000 | K5: 683000 | L5: 693000 | M5: 639000 | N5: 0.09776621787
B6: Free State | C6: 318822 | D6: 341549 | E6: 366361 | F6: 388514 | G6: 494000 | H6: 490000 | I6: 459000 | J6: 461000 | K6: 360000 | L6: 435000 | M6: 404000 | N6: 0.1334654774
B7: Gauteng | C7: 2579404 | D7: 2593809 | E7: 2841334 | F7: 3010299 | G7: 3588000 | H7: 3629000 | I7: 3684000 | J7: 3463000 | K7: 3280000 | L7: 3614000 | M7: 3725000 | N7: 0.2238043739
B8: KwaZulu-Natal | C8: 1028600 | D8: 1091744 | E8: 1204274 | F8: 1287219 | G8: 1270000 | H8: 1346000 | I8: 1278000 | J8: 1383000 | K8: 1123000 | L8: 1313000 | M8: 1242000 | N8: 0.1038461538
B9: Limpopo | C9: 279658 | D9: 300856 | E9: 365910 | F9: 407410 | G9: 436000 | H9: 476000 | I9: 510000 | J9: 474000 | K9: 472000 | L9: 549000 | M9: 594000 | N9: 0.09529921386
B10: Mpumalanga | C10: 454208 | D10: 492387 | E10: 544333 | F10: 576026 | G10: 591000 | H10: 615000 | I10: 603000 | J10: 568000 | K10: 405000 | L10: 494000 | M10: 516000 | N10: 0.1044957473
B11: North West | C11: 312930 | D11: 365692 | E11: 425398 | F11: 461521 | G11: 496000 | H11: 539000 | I11: 574000 | J11: 523000 | K11: 719000 | L11: 574000 | M11: 576000 | N11: 0.135021097
B12: Northern Cape | C12: 152333 | D12: 149399 | E12: 166519 | F12: 175318 | G12: 216000 | H12: 232000 | I12: 183000 | J12: 198000 | K12: 235000 | L12: 203000 | M12: 201000 | N12: 0.1536697248
B13: Western Cape | C13: 1193885 | D13: 1157483 | E13: 1265471 | F13: 1294088 | G13: 1483000 | H13: 1603000 | I13: 1570000 | J13: 1664000 | K13: 1740000 | L13: 1825000 | M13: 1895000 | N13: 0.2571234735
B14: South Africa | C14: 6915666 | D14: 7127343 | E14: 7874826 | F14: 8315718 | G14: 9285000 | H14: 9625000 | I14: 9499000 | J14: 9380000 | K14: 9017000 | L14: 9699000 | M14: 9792000 | N14: 0.1572178604
B15: Source: CMS, www.medicalschemes.com, Council for Medical Schemes Annual Report 2004-5, 9 May 2005, Table 7, p56; CMS Annual Report 2005-06, 26 September 2006, Table 7, p49; Stats SA, General Household Survey 2012, Statistical release P0318, 4 October 2013, Figure 14, p18; General Household Survey 2014, Statistical release P0318, 27 May 2015, Table 4.1, p101; General Household Survey 2016, Statistical release P0318, 31 May 2017, Table 4.1, p102; General Household Survey Addendum tables 2020, Statistical release P0318, 2 December 2021, Table 4.1, p20; General Household Survey Addendum tables 2022, Statistical release P0318, 17 August 2023, Table 4.1, p1; General Household Survey 2023, Statistical release P0318, 23 May 2024, Table 4.1, p104, Figure 2.1, p2
B16: a Figures from the Stats SA's General Household Survey are not strictly comparable with those from previous years or with CMS data.
B17: b CRA calculations.

Sheet Med.aid cove by prov & race.23
B2: Medical aid beneficiaries by province and racea, 2023
C4: —Covered—
B5: Province | C5: Black | D5: Coloured | E5: Indian/Asian | F5: White | G5: Total
B6: Eastern Cape | C6: 0.05875174338 | D6: 0.1543340381 | E6: 0.5172413793 | F6: 0.7181208054 | G6: 0.09776621787
B7: Free State | C7: 0.1028446389 | D7: 0.1318681319 | E7: 0.1052631579 | F7: 0.6228571429 | G7: 0.1334654774
B8: Gauteng | C8: 0.1491065046 | D8: 0.300589391 | E8: 0.5552699229 | F8: 0.7232346241 | G8: 0.2238043739
B9: KwaZulu-Natal | C9: 0.05876839441 | D9: 0.1413043478 | E9: 0.4128654971 | F9: 0.7246376812 | G9: 0.1038461538
B10: Limpopo | C10: 0.08944543828 | D10: N/A | E10: 0.4736842105 | F10: 0.5555555556 | G10: 0.09529921386
B11: Mpumalanga | C11: 0.08003387677 | D11: 0.2857142857 | E11: 0.25 | F11: 0.6935483871 | G11: 0.1044957473
B12: North West | C12: 0.1079929842 | D12: 0.1111111111 | E12: N/A | F12: 0.6086956522 | G12: 0.135021097
B13: Northern Cape | C13: 0.1350954479 | D13: 0.1133828996 | E13: 0.08333333333 | F13: 0.5974025974 | G13: 0.1536697248
B14: Western Cape | C14: 0.09531635168 | D14: 0.2023137698 | E14: 0.1917098446 | F14: 0.7583333333 | G14: 0.2571234735
B15: South Africa | C15: 0.09811210017 | D15: 0.1960045232 | E15: 0.4132985658 | F15: 0.7169593346 | G15: 0.1572178604
C16: —Not covered—
B17: Eastern Cape | C17: 0.9414225941 | D17: 0.843551797 | E17: 0.4827586207 | F17: 0.2852348993 | G17: 0.9022337821
B18: Free State | C18: 0.8971553611 | D18: 0.8791208791 | E18: 0.8947368421 | F18: 0.3771428571 | G18: 0.8665345226
B19: Gauteng | C19: 0.8508220157 | D19: 0.699410609 | E19: 0.4447300771 | F19: 0.2767653759 | G19: 0.7761956261
B20: KwaZulu-Natal | C20: 0.9411378761 | D20: 0.8586956522 | E20: 0.5871345029 | F20: 0.2753623188 | G20: 0.8961538462
B21: Limpopo | C21: 0.9105545617 | D21: N/A | E21: 0.5263157895 | F21: 0.4285714286 | G21: 0.9045403498
B22: Mpumalanga | C22: 0.9199661232 | D22: 0.7142857143 | E22: 0.75 | F22: 0.3064516129 | G22: 0.8955042527
B23: North West | C23: 0.8920070158 | D23: 0.8888888889 | E23: N/A | F23: 0.3869565217 | G23: 0.8652133146
B24: Northern Cape | C24: 0.8649045521 | D24: 0.8866171004 | E24: 0.9166666667 | F24: 0.3896103896 | G24: 0.8463302752
B25: Western Cape | C25: 0.9046836483 | D25: 0.7976862302 | E25: 0.8082901554 | F25: 0.2416666667 | G25: 0.7428765265
B26: South Africa | C26: 0.9018878998 | D26: 0.8039954768 | E26: 0.5867014342 | F26: 0.283271719 | G26: 0.8427981953
B27: Source: Stats SA, General Household Survey Addendum tables 2023, Statistical release P0318, 23 May 2024, Table 4.1, p1
B28: a CRA calculations.
B29: b Figures include those who are not covered, do not know and unspecified.
B30: N/A — Not available since the sample size was too small for reliable estimates.

Sheet People without med.aid.23.BC
A1: Province | C1: Not Covered
A2: Eastern Cape | C2: 0.9022337821
A3: Free State | B3: Free State | C3: 0.8665345226
A4: Gauteng | B4: Gauteng | C4: 0.7761956261
A5: KwaZulu-Natal | B5: KwaZulu-Natal | C5: 0.8961538462
A6: Limpopo | B6: Limpopo | C6: 0.9045403498
A7: Mpumalanga | B7: Mpumalanga | C7: 0.8955042527
A8: North West | B8: North West | C8: 0.8652133146
A9: Northern Cape | B9: Northern Cape | C9: 0.8463302752
A10: Western Cape | B10: Western Cape | C10: 0.7428765265
A11: South Africa | B11: South Africa | C11: 0.8427981953

Sheet Medical personnel

Sheet Select health professionals
B2: Medical personnel
B4: All personnel
B6: Selected health professionals by type, 2023
B8: Type of professional | C8: Public sector | D8: As a proportion of all public sector professionalsa | E8: All registered | F8: As a proportion of all registered health professionalsa | G8: Public sector as a proportion of all registereda
B9: General practitioners and specialists | C9: 22245 | D9: =(C9/171963) -> 0.1293592226 | E9: 50635 | F9: =E9/352077 -> 0.1438179716 | G9: =C9/E9 -> 0.439320628
B10: Dentists | C10: 984 | D10: =(C10/171963) -> 0.005722161163 | E10: 6619 | F10: =E10/352077 -> 0.0187998648 | G10: =C10/E10 -> 0.14866294
B11: Occupational therapists | C11: 1071 | D11: 0.006228083948 | E11: 6175 | F11: 0.01753877703 | G11: 0.1734412955
B12: Physiotherapists | C12: 1172 | D12: 0.006815419596 | E12: 8633 | F12: 0.02452020439 | G12: 0.1357581374
B13: Radiographers | C13: 2970 | D13: 0.01727115717 | E13: 8968 | F13: 0.02547170079 | G13: 0.3311775201
B14: Professional nursesb | C14: 76293 | D14: 0.4436593918 | E14: 157152 | F14: 0.4463569049 | G14: 0.4854726634
B15: Enrolled nursesb | C15: 31775 | D15: 0.1847781209 | E15: 52334 | F15: 0.1486436206 | G15: 0.6071578706
B16: Nursing assistantsb | C16: 35453 | D16: 0.2061664428 | E16: 61561 | F16: 0.1748509559 | G16: 0.5759003265
B17: Total | C17: =SUM(C9:C16) -> 171963 | D17: 1 | E17: =SUM(E9:E16) -> 352077 | F17: 1 | G17: 0.4884244072
B18: Source: South African Nursing Council (SANC), www.sanc.co.za, Provincial distribution of nursing manpower versus the population of South Africa, accessed 17 September 2023; HST, www.hst.org,za, accessed 17 September 2023
B19: a CRA calculations.
B20: b Figures are for the year 2022.

Sheet Health sciences awards.10-22
B2: University and university of technology health sciencesa awardsb by field, 2010-22
B4: Field of study | C4: 2010 | D4: 2012 | E4: 2014 | F4: 2016 | G4: 2018 | H4: 2020 | I4: 2021 | J4: 2022
B5: Alternative and complementary medicine | C5: 71 | D5: 63 | E5: 76 | F5: 73 | G5: 71 | H5: 105 | I5: 76 | J5: 95
B6: Bioethics/medical ethics | C6: 5 | D6: 5 | E6: 9 | F6: 16 | G6: 36.5 | H6: 21 | I6: 34 | J6: 21
B7: Chiropractic | C7: 136 | D7: 236 | E7: 116 | F7: 138 | G7: 129.667 | H7: 60 | I7: 96 | J7: 108
B8: Communications disorders sciences and services | C8: 189 | D8: 227 | E8: 239 | F8: 279 | G8: 336.75 | H8: 365 | I8: 368 | J8: 323
B9: Dental support | C9: 241 | D9: 264 | E9: 241 | F9: 371 | G9: 335.5 | H9: 377 | I9: 371 | J9: 416
B10: Dentistry and oral | C10: 417 | D10: 370 | E10: 448 | F10: 426 | G10: 424.75 | H10: 418 | I10: 419 | J10: 368
B11: Dietetics and clinical nutrition | C11: 167 | D11: 200 | E11: 183 | F11: 224 | G11: 253.667 | H11: 250 | I11: 244 | J11: 274
B12: Energy and biologically based therapies | C12: 11 | D12: 5 | E12: 2 | F12: 0 | G12: 1.75 | H12: 7 | I12: 21 | J12: 25
B13: Health and medical administrative services | C13: 679 | D13: 688 | E13: 510 | F13: 511 | G13: 767.167 | H13: 729 | I13: 645 | J13: 605
B14: Medicine | C14: 792 | D14: 723 | E14: 649 | F14: 1308 | G14: 1176.333 | H14: 1324 | I14: 1327 | J14: 1396
B15: Medical clinical | C15: 2093 | D15: 2212 | E15: 2240 | F15: 2421 | G15: 2628.5 | H15: 2514 | I15: 2944 | J15: 2741
B16: Medical illustration and informatics | C16: 3 | D16: 8 | E16: 1 | F16: 3 | G16: 6 | H16: 3 | I16: 0 | J16: 2
B17: Movement and mind/body therapies | C17: 7 | D17: 26 | E17: 4 | F17: 0 | G17: 6.25 | H17: 9 | I17: 0 | J17: 0
B18: Nursing | C18: 3025 | D18: 3179 | E18: 3157 | F18: 2801 | G18: 3041.583 | H18: 2736 | I18: 2233 | J18: 1913
B19: Optometry | C19: 165 | D19: 114 | E19: 111 | F19: 158 | G19: 120 | H19: 165 | I19: 153 | J19: 183
B20: Pharmacy and related | C20: 582 | D20: 695 | E20: 972 | F20: 1373 | G20: 1379.5 | H20: 1183 | I20: 1256 | J20: 1138
B21: Podiatric medicine/podiatry | C21: 6 | D21: 3 | E21: 17 | F21: 31 | G21: 25 | H21: 2 | I21: 39 | J21: 43
B22: Public health | C22: 967 | D22: 1136 | E22: 1139 | F22: 1264 | G22: 1311.25 | H22: 1263 | I22: 1321 | J22: 2166
B23: Radiology | C23: 320 | D23: 358 | E23: 431 | F23: 513 | G23: 361.583 | H23: 469 | I23: N/A | J23: N/A
B24: Rehabilitation and therapy | C24: 845 | D24: 939 | E24: 1103 | F24: 1313 | G24: 1467.917 | H24: 1351 | I24: 1224 | J24: 1381
B25: Somatic bodywork and related therapy | C25: 144 | D25: 153 | E25: 124 | F25: 147 | G25: 184.333 | H25: 217 | I25: 172 | J25: 174
B26: Veterinary biomedical and clinical | C26: 214 | D26: 217 | E26: 194 | F26: 231 | G26: 351.5 | H26: 258 | I26: 278 | J26: 244
B27: Veterinary sciences | C27: 76 | D27: 51 | E27: 53 | F27: 16 | G27: 25.5 | H27: 5 | I27: 7 | J27: 8
B28: Other | C28: 48 | D28: 87 | E28: 548 | F28: 333 | G28: 323.917 | H28: 320 | I28: 624 | J28: 564
B29: Totalc | C29: 11202 | D29: 11958 | E29: 12567 | F29: 13950 | G29: 14765.917 | H29: 14140 | I29: 13850 | J29: 14187
B30: Source: Department of Higher Education and Training (DHET), www.dhet.gov.za, Table 2.13 for all institutions to 2nd order CESM (Graduates, 2010-22), accessed 17 October 2024
B31: a Disciplines of applied science dealing with human and animal health. There are two parts to health sciences: the study and research knowledge of health, and the application of that knowledge to improve health, prevent and cure diseases, and understand how humans and animals function.
B32: b Includes degrees, diplomas, and certificates.
B33: c Totals may not add up due to rounding.
B34: N/A — Not available.

Sheet Doctors

Sheet All registered doctors.7-24
B2: Doctors
B4: All registered general practitioners and specialistsa by province, 2007-24
B6: Province | C6: 2007 | D6: 2010 | E6: 2012 | F6: 2014 | G6: 2016 | H6: 2018b | I6: 2019c | J6: 2020d | K6: 2021e | L6: 2022f | M6: 2023g | N6: 2024h | O6: Changei 2007-24
B7: Eastern Cape | C7: 2183 | D7: 2149 | E7: 1883 | F7: 2801 | G7: 2952 | H7: 3547 | I7: 3696 | J7: 3791 | K7: 3885 | L7: 3573 | M7: 3702 | N7: 3878 | O7: =(N7-C7)/C7 -> 0.7764544205
B8: Free State | C8: 1722 | D8: 1559 | E8: 1321 | F8: 1894 | G8: 1915 | H8: 1939 | I8: 1977 | J8: 1992 | K8: 2021 | L8: 1957 | M8: 2053 | N8: 2163 | O8: =(N8-C8)/C8 -> 0.256097561
B9: Gauteng | C9: 12246 | D9: 11524 | E9: 10245 | F9: 14192 | G9: 14961 | H9: 17965 | I9: 18721 | J9: 19019 | K9: 19489 | L9: 16798 | M9: 17399 | N9: 18071 | O9: 0.4756655234
B10: KwaZulu-Natal | C10: 5707 | D10: 5670 | E10: 4916 | F10: 7165 | G10: 7625 | H10: 4838 | I10: 4607 | J10: 4502 | K10: 4477 | L10: 8627 | M10: 9115 | N10: 9638 | O10: 0.6888032241
B11: Limpopo | C11: 1196 | D11: 937 | E11: 836 | F11: 1404 | G11: 1548 | H11: 1628 | I11: 1704 | J11: 1722 | K11: 1794 | L11: 1878 | M11: 1963 | N11: 2127 | O11: 0.7784280936
B12: Mpumalanga | C12: 1149 | D12: 1819 | E12: 1612 | F12: 1475 | G12: 1555 | H12: 1964 | I12: 1979 | J12: 1969 | K12: 1985 | L12: 1901 | M12: 1987 | N12: 2110 | O12: 0.8363794604
B13: North West | C13: 962 | D13: 631 | E13: 574 | F13: 1316 | G13: 1423 | H13: 1183 | I13: 1263 | J13: 1308 | K13: 1376 | L13: 1464 | M13: 1522 | N13: 1672 | O13: 0.738045738
B14: Northern Cape | C14: 432 | D14: 403 | E14: 342 | F14: 580 | G14: 622 | H14: 559 | I14: 570 | J14: 583 | K14: 599 | L14: 800 | M14: 861 | N14: 926 | O14: 1.143518519
B15: Western Cape | C15: 7288 | D15: 7086 | E15: 6183 | F15: 8894 | G15: 9485 | H15: 11889 | I15: 12216 | J15: 12278 | K15: 12486 | L15: 10915 | M15: 11304 | N15: 11727 | O15: =(N15-C15)/C15 -> 0.6090834248
B16: South Africaj | C16: 34324 | D16: 36912 | E16: 38444 | F16: 41132 | G16: 43503 | H16: =SUM(H7:H15) -> 45512 | I16: =SUM(I7:I15) -> 46733 | J16: =SUM(J7:J15) -> 47164 | K16: =SUM(K7:K15) -> 48112 | L16: 48681 | M16: 50635 | N16: =SUM(N7:N15) -> 52312 | O16: =(N16-C16)/C16 -> 0.5240647943
B17: Source: HPCSA, www.hpcsa.co.za, Welcome to iregister, accessed 1 June 2016; Health Systems Trust (HST), www.hst.org.za, accessed 1 December 2014; South African Health Review (SAHR) 2016, May 2016, Table 34, p302; HPCSA, www.hpcsa.co.za, Welcome to iregister, accessed 18 July 2018; Welcome to iregister, accessed 8 July 2019; Welcome to iregister, accessed 4 June 2020; Welcome to iregister, accessed 19 March 2021; HPCSA, email communication, 26 July 2023; 1 August 2024
B18: a Registered with the Health Professions Council of South Africa. This includes those practising in either the public or the private sector, those working abroad, and those registered but no longer practising.
B19: b As at 3 July 2018.
B20: c As at 8 July 2019.
B21: d As at 4 June 2020.
B22: e As at 19 March 2021.
B23: f As at 31 March 2022.
B24: g As at 31 March 2023.
B25: h As at 30 April 2024.
B26: i CRA calculations.
B27: j Totals should add up vertically but may not, owing to the fact that the location of some registered doctors was unspecified.

Sheet Public sector doctors.00-23
B2: Public sector general practitioners and specialists, 2000-23
B4: Yeara | C4: General practitioners | D4: Specialists | E4: Total
B5: 2000 | C5: 7591 | D5: 3881 | E5: 11472
B6: 2001 | C6: 7352 | D6: 3812 | E6: 11164
B7: 2002 | C7: 7287 | D7: 3685 | E7: 10972
B8: 2003 | C8: 7645 | D8: 3446 | E8: 11091
B9: 2005 | C9: 8747 | D9: 3499 | E9: 12246
B10: 2006 | C10: 9527 | D10: 3695 | E10: 13222
B11: 2007 | C11: 9959 | D11: 4000 | E11: 13959
B12: 2008 | C12: 10653 | D12: 4026 | E12: 14679
B13: 2009 | C13: 10878 | D13: 4311 | E13: 15189
B14: 2010 | C14: 11309 | D14: 4442 | E14: 15751
B15: 2011 | C15: 12014 | D15: 4620 | E15: 16634
B16: 2012 | C16: 12444 | D16: 4775 | E16: 17219
B17: 2013 | C17: 13531 | D17: 4947 | E17: 18478
B18: 2014 | C18: 13593 | D18: 4893 | E18: 18486
B19: 2015 | C19: 13656 | D19: 4986 | E19: =C19+D19 -> 18642
B20: 2016 | C20: 14036 | D20: 4737 | E20: 18773
B21: 2017 | C21: 14856 | D21: 4891 | E21: =C21+D21 -> 19747
B22: 2018 | C22: 15001 | D22: 4827 | E22: 19828
B23: 2019 | C23: 14439 | D23: 4825 | E23: 19264
B24: 2020 | C24: 15474 | D24: 4835 | E24: 20309
B25: 2021 | C25: 17017 | D25: 4770 | E25: 21787
B26: 2022 | C26: 17413 | D26: 4745 | E26: 22158
B27: 2023 | C27: 17486 | D27: 4759 | E27: 22245
B28: Source: HST, www.hst.org.za, SAHR 2018, December 2018, Table 45, p221; SAHR 2019, December 2019, Table 31, p286; SAHR 2020, December 2020, Table 23, p260; SAHR 2021, April 2022, Table 16, p356; SAHR 2022, September 2023, Table 19, p95; SAHR 2023, October 2024, Table12, p55
B29: a Figures for 2004 were not available.

Sheet People per docto by prov.24
C2: People-to-doctor ratio by province, 2024
C4: Province | D4: People per doctora | E4: Number of doctorsb | F4: Proportion of totala
C5: Eastern Cape | D5: 1 850 to 1 | E5: 3878 | F5: =E5/52312 -> 0.0741321303
C6: Free State | D6: 1 407 to 1 | E6: 2163 | F6: =E6/52312 -> 0.04134806545
C7: Gauteng | D7: 882 to 1 | E7: 18071 | F7: 0.3454465515
C8: KwaZulu-Natal | D8: 1 278 to 1 | E8: 9638 | F8: 0.1842407096
C9: Limpopo | D9: 3 010 to 1 | E9: 2127 | F9: 0.04065988683
C10: Mpumalanga | D10: 2 397 to 1 | E10: 2110 | F10: 0.0403349136
C11: North West | D11: 2 485 to 1 | E11: 1672 | F11: 0.03196207371
C12: Northern Cape | D12: 1 483 to 1 | E12: 926 | F12: 0.01770148341
C13: Western Cape | D13: 645 to 1 | E13: 11727 | F13: 0.2241741857
C14: South Africa | D14: 1 205 to 1 | E14: =SUM(E5:E13) -> 52312 | F14: 1
C15: Source: HPCSA, email communication, 30 April 2024; Mid-year population estimates 2024, Statistical release P0302, 30 July 2024, Figures 1, pvii
C16: a CRA calculations.
C17: b General practitioners and specialists registered with the Health Professions Council of South Africa.

Sheet Peopleperpub.sectdoctor.00-23
C2: People-to-public sector doctora ratio, 2000-23
D3: Year | E3: People per doctorbc
D4: 2000 | E4: 3 808 to 1
D5: 2001 | E5: 4 015 to 1
D6: 2002 | E6: 4 143 to 1
D7: 2003 | E7: 4 186 to 1
D8: 2005 | E8: 3 829 to 1
D9: 2006 | E9: 3 584 to 1
D10: 2007 | E10: 3 428 to 1
D11: 2008 | E11: 3 317 to1
D12: 2009 | E12: 3 247 to 1
D13: 2010 | E13: 3 174 to 1
D14: 2011 | E14: 3 112 to 1
D15: 2012 | E15: 3 036 to 1
D16: 2013 | E16: 2 867 to 1
D17: 2014 | E17: 2 921 to 1
D18: 2015 | E18: 2 948 to 1
D19: 2016 | E19: 2 978 to 1
D20: 2017 | E20: 2 862 to 1
D21: 2018 | E21: 2 911 to 1
D22: 2019 | E22: 3 051 to 1
D23: 2020 | E23: 2 936 to 1
D24: 2021 | E24: 2 760 to 1
D25: 2022 | E25: 2 735 to 1
D26: 2023 | E26: 2 795 to 1
C27: Source: Stats SA, email communication; Mid-year population estimates, 2007-23 data; HST, www.hst.org.za, SAHR 2016, May 2016, Table 34, p302; SAHR 2018, December 2018, Table 45, p221; SAHR 2019, December 2019, Table 31, p286; SAHR 2020, December 2020, Table 23, p260; SAHR 2021, April 2022, Table 16, p356; SAHR 2022, September 2023, Table 19, p95; SAHR 2023, October 2024, Table12, p55
C28: a Figures for 2004 were not available.
C29: b Registered general practitioners and specialists.
C30: c CRA calculations.

Sheet Registered med.students.13-24
C2: Total registered medical studentsa, 2013-24
D4: Year | E4: Number | F4: Year-on-year changeb
D5: 2013 | E5: 9809 | F5: —
D6: 2014 | E6: 10686 | F6: =(E6-E5)/E5 -> 0.08940768682
D7: 2015 | E7: 11594 | F7: =(E7-E6)/E6 -> 0.08497099008
D8: 2016 | E8: 12372 | F8: 0.06710367431
D9: 2017c | E9: 15968 | F9: =(E9-E8)/E8 -> 0.2906563207
D10: 2018d | E10: 18246 | F10: =(E10-E9)/E9 -> 0.1426603206
D11: 2019e | E11: 19481 | F11: =(E11-E10)/E10 -> 0.06768606818
D12: 2020f | E12: 19455 | F12: =(E12-E11)/E11 -> -0.001334633746
D13: 2021g | E13: 19922 | F13: =(E13-E12)/E12 -> 0.02400411205
D14: 2022h | E14: 11916 | F14: =(E14-E13)/E13 -> -0.4018672824
D15: 2023i | E15: 12359 | F15: =(E15-E14)/E14 -> 0.037176905
D16: 2024j | E16: 12878 | F16: =(E16-E15)/E15 -> 0.04199368881
D17: 2013-24 | E17: =(E16-E5)/E5 -> 0.3128759303 | F17: —
D18: Source: HPCSA, www.hpcsa.co.za, HPCSA Annual Report 2015/16, September 2016, p99; HPCSA, www.hpcsa.co.za, Welcome to iregister, accessed 23 June 2017; 3 July 2018; 9 July 2019; 4 June 2020; 17 March 2021; HPCSA, email communication, 26 July 2023; 1 August 2024
D19: a Studying medicine at a tertiary institution, and also registered with the Health Professions Council of South Africa.
D20: b CRA calculations.
D21: c As at 23 June 2017.
D22: d As at 3 July 2018.
D23: e As at 9 July 2019.
D24: f As at 4 June 2020.
D25: g As at 17 March 2021.
D26: h As at 31 March 2022.
D27: i As at 31 March 2023.
D28: j As at 30 April 2024.

Sheet Dentists

Sheet All registered dentists.07-24
C2: Dentists
C4: All registereda dentists, 2007-24
C6: Year | D6: Number | E6: People per registered dentistb
C7: 2007 | D7: 4937 | E7: 9 692 to 1
C8: 2008 | D8: 5110 | E8: 9 527 to 1
C9: 2009 | D9: 5265 | E9: 9 368 to 1
C10: 2010 | D10: 5320 | E10: 9 397 to 1
C11: 2011 | D11: 5409 | E11: 9 352 to 1
C12: 2012 | D12: 5572 | E12: 9 394 to 1
C13: 2013 | D13: 5769 | E13: 9 184 to 1
C14: 2014 | D14: 5856 | E14: 9 222 to 1
C15: 2015 | D15: 6035 | E15: 9 106 to 1
C16: 2016 | D16: 6155 | E16: 9 083 to 1
C17: 2017 | D17: 6641 | E17: 8 511 to 1
C18: 2018c | D18: 6992 | E18: 8 256 to 1
C19: 2019d | D19: 7229 | E19: 8 130 to 1
C20: 2020e | D20: 7287 | E20: 8 182 to 1
C21: 2021f | D21: 7378 | E21: 8 152 to 1
C22: 2022g | D22: 6557 | E22: 9 243 to 1
C23: 2023h | D23: 6619 | E23: 9 260 to 1
C24: 2024i | D24: 6739 | E24: 9 351 to 1
C25: 2007-24 | D25: =(D24-D7)/D7 -> 0.3649989872 | E25: —
B26: Source: HPCSA, www.hpcsa.co.za, Welcome to iregister, accessed 5 September 2017, 1 June 2016; HST, www.hst.org.za, accessed 1 December 2014; SAHR 2016, May 2016, Table 34, p302; HPCSA, www.hpcsa.co.za, Welcome to iregister, accessed 3 July 2018, 9 June 2020, 17 March 2021; HPCSA, email communication, 26 July 2023; 1 August 2024; Stats SA, Mid-year population estimates, 2007-24 data
B27: a Registered with the Health Professions Council of South Africa. This includes those practising in either the public or the private sector, those working abroad, and those registered but no longer practising.
B28: b CRA calculations.
B29: c As at 3 July 2018.
B30: d As at 1 February 2019.
B31: e As at 9 June 2020.
B32: f As at 17 March 2021.
B33: g As at 31 March 2022.
B34: h As at 31 March 2023.
B35: i As at 30 April 2024.

Sheet Dentists by province 17.24
C2: All registered dentistsa by province, 2017 and 2024
C4: Province | D4: 2017b | E4: 2024cd | F4: Changee
C5: Eastern Cape | D5: 381 | E5: 380 | F5: =(E5-D5)/D5 -> -0.002624671916
C6: Free State | D6: 236 | E6: 197 | F6: =(E6-D6)/D6 -> -0.1652542373
C7: Gauteng | D7: 2922 | E7: 2622 | F7: -0.1026694045
C8: KwaZulu-Natal | D8: 626 | E8: 915 | F8: 0.4616613419
C9: Limpopo | D9: 197 | E9: 301 | F9: 0.5279187817
C10: Mpumalanga | D10: 382 | E10: 366 | F10: -0.04188481675
C11: North West | D11: 144 | E11: 189 | F11: 0.3125
C12: Northern Cape | D12: 91 | E12: 122 | F12: 0.3406593407
C13: Western Cape | D13: 1662 | E13: 1647 | F13: =(E13-D13)/D13 -> -0.009025270758
C14: South Africa | D14: 6641 | E14: =SUM(E5:E13) -> 6739 | F14: =(E14-D14)/D14 -> 0.01475681373
C15: Source: HPCSA, www.hpcsa.co.za, Welcome to iregister, accessed 5 September 2017; HPCSA, email communication, 26 July 2023; 30 April 2024
C16: a Registered with the Health Professions Council of South Africa. This includes those practising in either the public or the private sector, those working abroad, and those registered but no longer practising.
C17: b As at 5 September 2017.
C18: c As at 30 April 2024.
C19: d Totals should add up vertically but may not owing to the fact that for some registered dentists, their province was unspecified.
C20: e CRA calculations.

Sheet Publicdentist.specialist.00-23
C2: Public sector dentists and dental specialists, 2000-23
C4: Yeara | D4: Dentists | E4: Dental specialists | F4: Total | G4: People per public sector dentist/dental specialistb
C5: 2000 | D5: 597 | E5: 53 | F5: 650 | G5: 67 209 to 1
C6: 2001 | D6: 634 | E6: 45 | F6: 679 | G6: 66 009 to 1
C7: 2002 | D7: 602 | E7: 57 | F7: 659 | G7: 68 975 to 1
C8: 2003 | D8: 613 | E8: 30 | F8: 643 | G8: 72 208 to 1
C9: 2005 | D9: 651 | E9: 43 | F9: 694 | G9: 67 562 to 1
C10: 2006 | D10: 715 | E10: 41 | F10: 756 | G10: 62 686 to 1
C11: 2007 | D11: 744 | E11: 30 | F11: 774 | G11: 61 823 to 1
C12: 2008 | D12: 762 | E12: 32 | F12: 794 | G12: 61 319 to 1
C13: 2009 | D13: 775 | E13: 49 | F13: 824 | G13: 59 855 to 1
C14: 2010 | D14: 770 | E14: 121 | F14: 891 | G14: 56 107 to 1
C15: 2011 | D15: 906 | E15: 118 | F15: 1024 | G15: 50 557 to 1
C16: 2012 | D16: 982 | E16: 141 | F16: 1123 | G16: 46 549 to 1
C17: 2013 | D17: 1037 | E17: 143 | F17: 1180 | G17: 44 900 to 1
C18: 2014 | D18: 1056 | E18: 155 | F18: 1211 | G18: 44 593 to 1
C19: 2015 | D19: 1137 | E19: 154 | F19: =D19+E19 -> 1291 | G19: 42 569 to 1
C20: 2016c | D20: 1118 | E20: 160 | F20: 1278 | G20: 43 747 to 1
C21: 2018d | D21: 1196 | E21: 159 | F21: 1355 | G21: 42 602 to 1
C22: 2019e | D22: 1038 | E22: 146 | F22: 1184 | G22: 49 641 to 1
C23: 2020f | D23: 1044 | E23: 152 | F23: 1196 | G23: 49 852 to 1
C24: 2021g | D24: 1009 | E24: 126 | F24: 1135 | G24: 52 989 to 1
C25: 2022h | D25: 1006 | E25: 128 | F25: 1134 | G25: 53 444 to 1
C26: 2023i | D26: 984 | E26: 129 | F26: =D26+E26 -> 1113 | G26: 55 867 to 1
C27: 2000-23 | D27: =(D26-D5)/D5 -> 0.648241206 | E27: =(E26-E5)/E5 -> 1.433962264 | F27: =(F26-F5)/F5 -> 0.7123076923 | G27: —
C28: Source: HPCSA, www.hpcsa.co.za, Welcome to iregister, accessed 1 June 2016; HST, www.hst.org.za, accessed 1 December 2014; SAHR 2016, May 2016, Table 34, p302; Stats SA, email communication; Mid-year population estimates,2001-23 data; SAHR 2018, November 2018, Table 45, p220; SAHR 2019, December 2019, Table 31, p284; SAHR 2020, December 2020, Table 23, p260; SAHR 2022, September 2023, Table 19, p94; SAHR 2023, October 2024, Table12, p54
C29: a Figures for 2004 were not available.
C30: b CRA calculations.
C31: c As at June 2016.
C32: d As at April 2018.
C33: e As at March 2019.
C34: f As at March 2020.
C35: g As at March 2021.
C36: h As at March 2022.
C37: i As at March 2023.

Sheet Dentalstudents.07-24
C2: Registered student dental assistants and therapists, 2007-24
C4: Year | D4: Student dental assistanta | E4: Student dental therapista | F4: Total | G4: Year-on-year changeb
C5: 2007 | D5: 683 | E5: 153 | F5: 836 | G5: —
C6: 2008 | D6: 886 | E6: 141 | F6: 1027 | G6: =(F6-F5)/F5 -> 0.2284688995
C7: 2009 | D7: 1073 | E7: 143 | F7: 1216 | G7: =(F7-F6)/F6 -> 0.1840311587
C8: 2010 | D8: 1243 | E8: 149 | F8: 1392 | G8: 0.1447368421
C9: 2011 | D9: 1348 | E9: 161 | F9: 1509 | G9: 0.08405172414
C10: 2012 | D10: 1634 | E10: 196 | F10: 1830 | G10: 0.2127236581
C11: 2013 | D11: 1581 | E11: 185 | F11: 1766 | G11: -0.0349726776
C12: 2014 | D12: 1673 | E12: 205 | F12: 1878 | G12: 0.06342015855
C13: 2015 | D13: 1748 | E13: 227 | F13: 1975 | G13: 0.05165069223
C14: 2016 | D14: 1820 | E14: 256 | F14: 2076 | G14: 0.05113924051
C15: 2017c | D15: 1050 | E15: 322 | F15: 1372 | G15: =(F15-F14)/F14 -> -0.3391136802
C16: 2018d | D16: 1203 | E16: 371 | F16: 1574 | G16: =(F16-F15)/F15 -> 0.1472303207
C17: 2019e | D17: 1371 | E17: 411 | F17: =D17+E17 -> 1782 | G17: =(F17-F16)/F16 -> 0.1321473952
C18: 2020f | D18: 1484 | E18: 432 | F18: =D18+E18 -> 1916 | G18: 0.07519640853
C19: 2021g | D19: 1623 | E19: 447 | F19: 2070 | G19: 0.08037578288
C20: 2022h | D20: 2194 | E20: 257 | F20: 2451 | G20: 0.184057971
C21: 2023i | D21: 2270 | E21: 278 | F21: 2548 | G21: 0.03957568339
C22: 2024j | D22: 861 | E22: 219 | F22: 1080 | G22: -0.5761381476
C23: 2007-24 | D23: =(D22-D5)/D5 -> 0.2606149341 | E23: =(E22-E5)/E5 -> 0.431372549 | F23: =(F22-F5)/F5 -> 0.2918660287 | G23: —
C24: Source: HPCSA, www.hpcsa.co.za, 2013 Annual Report, September 2013, p21; HPCSA, www.hpcsa.co.za, HPCSA Annual Report 2015/16, September 2016, p98; HPCSA, www.hpcsa.co.za, Welcome to iregister, accessed 30 August 2017, 3 July 2018, 9 July 2019, June 2020, 23 March 2021; HPCSA, email communication, 26 July 2023; 1 August 2024
C25: a Studying dentistry or dental therapy at a tertiary institution, and also registered with the Health Professions Council of South Africa.
C26: b CRA calculations.
C27: c As at 30 August 2017.
C28: d As at 3 July 2018.
C29: e As at 9 July 2019.
C30: f As at 9 June 2020.
C31: g As at 23 March 2021.
C32: h As at 31 March 2022.
C33: i As at 31 March 2023.
C34: j As at 30 April 2024.

Sheet Nurses

Sheet All registered nurses.98-22
B2: Nurses
B4: All registered nursesa, 1998-2022
B6: Year | C6: Professional nursesb | D6: Enrolled nursesc | E6: Nursing assistantsd | F6: Total
B7: 1998 | C7: 91011 | D7: 32744 | E7: N/A | F7: =C7+D7 -> 123755
B8: 1999 | C8: 92390 | D8: 32925 | E8: N/A | F8: 125315
B9: 2000 | C9: 93303 | D9: 32399 | E9: N/A | F9: 125702
B10: 2001 | C10: 94552 | D10: 32120 | E10: N/A | F10: 126672
B11: 2002 | C11: 94948 | D11: 32495 | E11: N/A | F11: 127443
B12: 2003 | C12: 96715 | D12: 33575 | E12: N/A | F12: 130290
B13: 2004 | C13: 98490 | D13: 35266 | E13: N/A | F13: 133756
B14: 2005 | C14: 99534 | D14: 37085 | E14: 54650 | F14: =C14+D14+E14 -> 191269
B15: 2006 | C15: 101295 | D15: 39305 | E15: 56314 | F15: 196914
B16: 2007 | C16: 103792 | D16: 40582 | E16: 59574 | F16: 203948
B17: 2008 | C17: 107978 | D17: 43686 | E17: 61142 | F17: 212806
B18: 2009 | C18: 111299 | D18: 48078 | E18: 62440 | F18: 221817
B19: 2010 | C19: 115244 | D19: 52370 | E19: 63472 | F19: 231086
B20: 2011 | C20: 118262 | D20: 55408 | E20: 64526 | F20: 238196
B21: 2012 | C21: 124045 | D21: 58722 | E21: 65969 | F21: 248736
B22: 2013 | C22: 129015 | D22: 63788 | E22: 67895 | F22: 260698
B23: 2014 | C23: 133127 | D23: 66891 | E23: 70419 | F23: 270437
B24: 2015 | C24: 136854 | D24: 70300 | E24: 71463 | F24: 278617
B25: 2016 | C25: 140598 | D25: 73558 | E25: 73302 | F25: 287458
B26: 2017 | C26: 142092 | D26: 74556 | E26: 70431 | F26: 287079
B27: 2018 | C27: 146791 | D27: 70552 | E27: 68361 | F27: 285704
B28: 2019 | C28: 153095 | D28: 64638 | E28: 67104 | F28: 284837
B29: 2020 | C29: 154024 | D29: 61028 | E29: 65179 | F29: 280231
B30: 2021 | C30: 156392 | D30: 56484 | E30: 63539 | F30: 276415
B31: 2022 | C31: 157152 | D31: 52334 | E31: 61561 | F31: 271047
B32: 1998-2022 | C32: =(C31-C7)/C7 -> 0.7267363286 | D32: =(D31-D7)/D7 -> 0.598277547 | E32: N/A | F32: =(F31-F7)/F7 -> 1.190190295
B33: Source: South African Nursing Council (SANC), www.sanc.co.za, Provincial distribution of nursing manpower versus the population of South Africa, January 2016, p2; January 2018, p2; December 2018, p1; December 2019, p2; December 2020; December 2021, p2; December 2022, p2
B34: a Registered with the South African Nursing Council.
B35: b Includes nurses practising in either the public or the private sector, those working abroad, and those registered but no longer practising. Professional nurses have completed a four-year programme at university or a nursing college and practise comprehensive nursing and midwifery.
B36: c Includes nurses practising in either the public or the private sector, those working abroad, and those registered but no longer practising. Enrolled nurses have completed a two-year programme at a public or private institution, usually a nursing college. Alternatively, an enrolled nurse has left university after completing only two years of the four-year university programme. Enrolled nurses practise basic nursing.
B37: d Includes nurses practising in either the public or the private sector, those working abroad, and those registered but no longer practising. Nursing assistants, also referred to as auxiliary nurses, have completed a year-long programme or course at a college or have exited after completing the first year of the university four-year programme. Nursing assistants practise elementary nursing.
B38: N/A — Not available.

Sheet People per nurse.98-22
C2: People-to-nurse ratio, 1998-2022
D4: Year | E4: Total nursesa | F4: People per nurseb
D5: 1998 | E5: 123755 | F5: 340 to 1
D6: 1999 | E6: 125315 | F6: 344 to 1
D7: 2000 | E7: 125702 | F7: 348 to 1
D8: 2001 | E8: 126672 | F8: 352 to 1
D9: 2002 | E9: 127443 | F9: 349 to 1
D10: 2003 | E10: 130290 | F10: 356 to 1
D11: 2004 | E11: 133756 | F11: 348 to 1
D12: 2005 | E12: 191269 | F12: 245 to 1
D13: 2006 | E13: 196914 | F13: 241 to 1
D14: 2007 | E14: 203948 | F14: 235 to 1
D15: 2008 | E15: 212806 | F15: 229 to 1
D16: 2009 | E16: 221817 | F16: 222 to 1
D17: 2010 | E17: 231086 | F17: 216 to 1
D18: 2011 | E18: 238196 | F18: 217 to 1
D19: 2012 | E19: 248736 | F19: 210 to 1
D20: 2013 | E20: 260698 | F20: 203 to 1
D21: 2014 | E21: 270437 | F21: 200 to 1
D22: 2015 | E22: 278617 | F22: 197 to 1
D23: 2016 | E23: 287458 | F23: 194 to 1
D24: 2017 | E24: 287079 | F24: 197 to 1
D25: 2018 | E25: 285704 | F25: 202 to 1
D26: 2019 | E26: 284837 | F26: 206 to 1
D27: 2020 | E27: 280231 | F27: 213 to 1
D28: 2021 | E28: 276415 | F28: 218 to 1
D29: 2022 | E29: 271047 | F29: 224 to 1
C30: Source: SANC, www.sanc.co.za, Provincial distribution of nursing manpower versus the population of South Africa, January 2016, p2; January 2018, p2; December 2018, p1; December 2019, p2; December 2020, p1; December 2021, p2; December 2022, p3; Stats SA, Mid year population estimates, 1998-2022 data
C31: a Registered nurses in both the public and the private sectors.
C32: b CRA calculations.

Sheet Professional & enrolled nurses
B2: Registered professional and enrolled nursesa, 1998-2022
B4: Year | C4: Professional nursesb | D4: Enrolled nursesc | E4: Total | F4: People per nursed
B5: 1998 | C5: 91011 | D5: 32744 | E5: =D5+C5 -> 123755 | F5: 340 to 1
B6: 1999 | C6: 92390 | D6: 32925 | E6: =D6+C6 -> 125315 | F6: 344 to 1
B7: 2000 | C7: 93303 | D7: 32399 | E7: 125702 | F7: 348 to1
B8: 2001 | C8: 94552 | D8: 32120 | E8: 126672 | F8: 352 to 1
B9: 2002 | C9: 94948 | D9: 32495 | E9: 127443 | F9: 349 to 1
B10: 2003 | C10: 96715 | D10: 33575 | E10: 130290 | F10: 356 to 1
B11: 2004 | C11: 98490 | D11: 35266 | E11: 133756 | F11: 348 to 1
B12: 2005 | C12: 99534 | D12: 37085 | E12: 136619 | F12: 343 to 1
B13: 2006 | C13: 101295 | D13: 39305 | E13: 140600 | F13: 337 to 1
B14: 2007 | C14: 103792 | D14: 40582 | E14: 144374 | F14: 331 to 1
B15: 2008 | C15: 107978 | D15: 43686 | E15: 151664 | F15: 321 to 1
B16: 2009 | C16: 111299 | D16: 48078 | E16: 159377 | F16: 309 to 1
B17: 2010 | C17: 115244 | D17: 52370 | E17: 167614 | F17: 298 to 1
B18: 2011 | C18: 118262 | D18: 55408 | E18: 173670 | F18: 298 to 1
B19: 2012 | C19: 124045 | D19: 58722 | E19: 182767 | F19: 286 to 1
B20: 2013 | C20: 129015 | D20: 63788 | E20: 192803 | F20: 275 to 1
B21: 2014 | C21: 133127 | D21: 66891 | E21: 200018 | F21: 270 to 1
B22: 2015 | C22: 136854 | D22: 70300 | E22: 207154 | F22: 265 to 1
B23: 2016 | C23: 140598 | D23: 73558 | E23: 214156 | F23: 261 to 1
B24: 2017 | C24: 142092 | D24: 74556 | E24: 216648 | F24: 261 to 1
B25: 2018 | C25: 146791 | D25: 70552 | E25: =D25+C25 -> 217343 | F25: 266 to 1
B26: 2019 | C26: 153095 | D26: 64638 | E26: =D26+C26 -> 217733 | F26: 270 to 1
B27: 2020 | C27: 154024 | D27: 61028 | E27: =D27+C27 -> 215052 | F27: 277 to 1
B28: 2021 | C28: 156392 | D28: 56484 | E28: 212876 | F28: 283 to 1
B29: 2022 | C29: 157152 | D29: 52334 | E29: 209486 | F29: 289 to 1
B30: 1998-2022 | C30: =(C29-C5)/C5 -> 0.7267363286 | D30: =(D29-D5)/D5 -> 0.598277547 | E30: =(E29-E5)/E5 -> 0.6927477678 | F30: —
B31: Source: SANC, www.sanc.co.za, Provincial distribution of nursing manpower versus the population of South Africa, January 2016, p2; January 2018, p2; December 2018, p1; December 2019, p2; December 2020, p1; December 2021, p2; December 2022, p3; Stats SA, Mid year population estimates, 1998-2022 data
B32: a Registered with the South African Nursing Council.
B33: b Includes nurses practising in either the public or the private sector, those working abroad, and those registered but no longer practising. Professional nurses have completed a four-year programme at university or a nursing college and practise comprehensive nursing and midwifery.
B34: c Includes nurses practising in either the public or the private sector, those working abroad, and those registered but no longer practising. Enrolled nurses have completed a two-year programme at a public or private institution, usually a nursing college. Alternatively, an enrolled nurse has left university after completing only two years of the four-year university programme. Enrolled nurses practise basic nursing.
B35: d CRA calculations.

Sheet Pub.andpriv.sectornurses.00-23
B2: Public and private sector nursesa, 2000-23
C4: —Public sector— | F4: —Private sector—
B5: Yearb | C5: Professional nurses | D5: Enrolled nurses | E5: Nursing assistants | F5: Professional nurses | G5: Enrolled nurses | H5: Nursing assistants
B6: 2000 | C6: 41734 | D6: 20726 | E6: 28194 | F6: =93303-41734 -> 51569 | G6: =32399-20726 -> 11673 | H6: N/A
B7: 2001 | C7: 41460 | D7: 20691 | E7: 28646 | F7: =94552-41460 -> 53092 | G7: =32120-20691 -> 11429 | H7: N/A
B8: 2002 | C8: 40318 | D8: 20590 | E8: 28661 | F8: =94948-40318 -> 54630 | G8: =32495-20590 -> 11905 | H8: N/A
B9: 2003 | C9: 41563 | D9: 20683 | E9: 29052 | F9: =96715-41563 -> 55152 | G9: =33575-20683 -> 12892 | H9: N/A
B10: 2005 | C10: 43660 | D10: 20582 | E10: 31006 | F10: =99534-43660 -> 55874 | G10: =37085-20582 -> 16503 | H10: =54650-31006 -> 23644
B11: 2006 | C11: 44071 | D11: 20806 | E11: 31850 | F11: =101295-44071 -> 57224 | G11: =39305-20806 -> 18499 | H11: =56314-31850 -> 24464
B12: 2007 | C12: 45102 | D12: 21379 | E12: 33219 | F12: =103792-45102 -> 58690 | G12: =40582-21379 -> 19203 | H12: =59574-33219 -> 26355
B13: 2008 | C13: 47834 | D13: 22707 | E13: 34030 | F13: =107978-47834 -> 60144 | G13: =43686-22707 -> 20979 | H13: =61142-34030 -> 27112
B14: 2009 | C14: 49341 | D14: 23039 | E14: 33914 | F14: =111299-49341 -> 61958 | G14: =48078-23039 -> 25039 | H14: =62440-33914 -> 28526
B15: 2010 | C15: 51966 | D15: 24316 | E15: 34858 | F15: =115244-51966 -> 63278 | G15: =52370-24316 -> 28054 | H15: =63472-34858 -> 28614
B16: 2011 | C16: 56075 | D16: 27256 | E16: 36315 | F16: =118262-56075 -> 62187 | G16: =55408-27256 -> 28152 | H16: =64526-36315 -> 28211
B17: 2012 | C17: 59890 | D17: 29735 | E17: 36770 | F17: =124045-59890 -> 64155 | G17: =58722-29735 -> 28987 | H17: =65969-36770 -> 29199
B18: 2013 | C18: 63833 | D18: 30215 | E18: 36275 | F18: =129015-63833 -> 65182 | G18: =63788-30215 -> 33573 | H18: =67895-36275 -> 31620
B19: 2014 | C19: 66711 | D19: 30571 | E19: 35147 | F19: =133127-66711 -> 66416 | G19: =66891-30571 -> 36320 | H19: =70419-35147 -> 35272
B20: 2015 | C20: 68105 | D20: 30870 | E20: 34877 | F20: =136854-68105 -> 68749 | G20: =70300-30870 -> 39430 | H20: =71463-34877 -> 36586
B21: 2016 | C21: 67766 | D21: 31325 | E21: 34583 | F21: 72832 | G21: 42233 | H21: 38719
B22: 2017 | C22: 69881 | D22: 31388 | E22: 33176 | F22: 72211 | G22: 43168 | H22: 37255
B23: 2018 | C23: 70899 | D23: 31591 | E23: 33393 | F23: 75892 | G23: 38961 | H23: 34968
B24: 2019 | C24: 68776 | D24: 31039 | E24: 33820 | F24: 84319 | G24: 33599 | H24: 33284
B25: 2020 | C25: 70437 | D25: 29638 | E25: 33600 | F25: 83587 | G25: 31390 | H25: 31579
B26: 2021 | C26: 76485 | D26: 32191 | E26: 36278 | F26: 79907 | G26: 24293 | H26: 27261
B27: 2022 | C27: 76293 | D27: 31775 | E27: 35453 | F27: 80859 | G27: 20559 | H27: 26108
B28: 2023 | C28: 75358 | D28: 29806 | E28: 34393 | F28: N/A | G28: N/A | H28: N/A
B29: 2000-23 | C29: =(C28-C6)/C6 -> 0.8056740308 | D29: =(D28-D6)/D6 -> 0.4380970761 | E29: =(E28-E6)/E6 -> 0.2198694758 | F29: — | G29: — | H29: —
B30: Source: SANC, www.sanc.co.za, Provincial distribution of nursing manpower versus the population of South Africa, accessed 17 September 2020; HST,SAHR 2019, December 2019, Table 31, pp284-291; SAHR 2020, December 2020, Table 23, p260-261; SAHR 2021, April 2022, Table 16, pp355-6; SAHR 2022, September 2023, Table 19, pp94-96; SAHR 2023, October 2024, Table 12, p55
B31: a Registered nurses in both the public and the private sectors.
B32: b Data for 2004 was not available.
B33: N/A — Not available.

Sheet People per nurse.pub+priv.00-23
B2: People-to-public and private sector nursea ratio, 2000-23
B4: Year | C4: Total public sector nurses | D4: People per public sector nurseb | E4: Total private sector nurses | F4: People per private sector nurseb
B5: 2000 | C5: 90654 | D5: 482 to 1 | E5: 63242 | F5: 691 to 1
B6: 2001 | C6: 90797 | D6: 491 to 1 | E6: 64521 | F6: 691 to 1
B7: 2002 | C7: 89569 | D7: 496 to 1 | E7: 66535 | F7: 668 to 1
B8: 2003 | C8: 91298 | D8: 509 to 1 | E8: 68044 | F8: 682 to 1
B9: 2005 | C9: 95248 | D9: 492 to 1 | E9: 96021 | F9: 488 to 1
B10: 2006 | C10: 96727 | D10: 490 to 1 | E10: 100187 | F10: 473 to 1
B11: 2007 | C11: 99700 | D11: 480 to 1 | E11: 104248 | F11: 459 to 1
B12: 2008 | C12: 104571 | D12: 466 to 1 | E12: 108235 | F12: 450 to 1
B13: 2009 | C13: 106294 | D13: 464 to 1 | E13: 115523 | F13: 427 to 1
B14: 2010 | C14: 111140 | D14: 450 to 1 | E14: 119946 | F14: 417 to 1
B15: 2011 | C15: 119646 | D15: 423 to 1 | E15: 118550 | F15: 437 to 1
B16: 2012 | C16: 123395 | D16: 424 to 1 | E16: 122341 | F16: 427 to 1
B17: 2013 | C17: 130323 | D17: 407 to 1 | E17: 130375 | F17: 406 to 1
B18: 2014 | C18: 132429 | D18: 408 to 1 | E18: 138008 | F18: 391 to 1
B19: 2015 | C19: 133852 | D19: 411 to 1 | E19: 144765 | F19: 380 to 1
B20: 2016 | C20: 133674 | D20: 418 to 1 | E20: 153784 | F20: 364 to 1
B21: 2017 | C21: 134445 | D21: 420 to 1 | E21: 152634 | F21: 370 to 1
B22: 2018 | C22: 135883 | D22: 425 to 1 | E22: 149821 | F22: 385 to 1
B23: 2019 | C23: 133635 | D23: 440 to 1 | E23: 151202 | F23: 389 to1
B24: 2020 | C24: 133675 | D24: 446 to 1 | E24: 146556 | F24: 407 to 1
B25: 2021 | C25: 144954 | D25: 415 to 1 | E25: 131461 | F25: 457 to 1
B26: 2022 | C26: 143521 | D26: 422 to 1 | E26: 127526 | F26: 475 to 1
B27: 2023 | C27: 139557 | D27: 446 to 1 | E27: N/A | F27: N/A
B28: Source: SANC, www.sanc.co.za, Provincial distribution of nursing manpower versus the population of South Africa, accessed 1 September 2023; Stats SA, email communication; SAHR 2023, October 2024, Table 12, p55; Stats SA, Mid-year population estimates, 2007-22 data; Stats SA, Country projection by population group sex and age 2002-2024, accessed 2 November 2024
B29: a Registered nurses with the South African Nursing Council.
B30: b CRA calculations.
B31: N/A — Not available.

Sheet Nursinginstitutionsbyprov.24
B2: Nursing institutions by province, 2024
B4: Province | C4: Private nursing education institutions accredited to offer new qualificationsa | D4: Public nursing colleges accredited to offer new qualificationsb | E4: Universities accredited to offer new qualificationsa | F4: Accredited private nursing education institutions still providing legacy qualifications | G4: Accredited public nursing education institutions still providing legacy qualificationsac | H4: Total
B5: Eastern Cape | C5: 4 | D5: 24 | E5: 3 | F5: 4 | G5: 26 | H5: =C5+D5+E5+F5+G5 -> 61
B6: Free State | C6: 2 | D6: 8 | E6: 1 | F6: 3 | G6: 4 | H6: =C6+D6+E6+F6+G6 -> 18
B7: Gauteng | C7: 15 | D7: 8 | E7: 5 | F7: 12 | G7: 12 | H7: 52
B8: KwaZulu-Natal | C8: 1 | D8: 12 | E8: 3 | F8: 18 | G8: 23 | H8: 57
B9: Limpopo | C9: 1 | D9: 6 | E9: 2 | F9: 1 | G9: 18 | H9: 28
B10: Mpumalanga | C10: 4 | D10: 5 | E10: N/A | F10: 5 | G10: 14 | H10: 28
B11: North West | C11: 2 | D11: 3 | E11: 2 | F11: 4 | G11: 6 | H11: 17
B12: Northern Cape | C12: N/A | D12: 1 | E12: N/A | F12: N/A | G12: 1 | H12: 2
B13: Western Cape | C13: 3 | D13: 5 | E13: 4 | F13: 5 | G13: 13 | H13: 30
B14: South Africa | C14: =SUM(C5:C13) -> 32 | D14: =SUM(D5:D13) -> 72 | E14: =SUM(E5:E13) -> 20 | F14: =SUM(F5:F13) -> 52 | G14: =SUM(G5:G13) -> 117 | H14: 293
B15: Source: SANC, www.sanc.co.za, SANC Accredited Nursing Education Institutions, accessed 2 November 2024
B16: a As at September 2024.
B17: b As at March 2024.
B18: c Includes satellite campuses.
B19: N/A — Not available.

Sheet Output.professionalnurses.96-22
C2: Output of professional nursesa from universities and nursing colleges, 1996-2022
C4: Year | D4: Universities | E4: Nursing colleges | F4: Total | G4: University output as a proportion of total
C5: 1996 | D5: 360 | E5: 2269 | F5: 2629 | G5: =(D5/F5) -> 0.1369341955
C6: 1997 | D6: 387 | E6: 2295 | F6: 2682 | G6: 0.144295302
C7: 1998 | D7: 381 | E7: 1990 | F7: 2371 | G7: 0.1606916913
C8: 1999 | D8: 351 | E8: 1911 | F8: 2262 | G8: 0.1551724138
C9: 2000 | D9: 408 | E9: 2086 | F9: 2494 | G9: 0.1635926223
C10: 2001 | D10: 408 | E10: 1633 | F10: 2041 | G10: 0.1999020088
C11: 2002 | D11: 400 | E11: 1252 | F11: 1652 | G11: 0.2421307506
C12: 2003 | D12: 453 | E12: 1100 | F12: 1553 | G12: 0.2916934965
C13: 2004 | D13: 428 | E13: 1288 | F13: 1716 | G13: 0.2494172494
C14: 2005 | D14: 475 | E14: 1058 | F14: 1533 | G14: 0.3098499674
C15: 2006 | D15: 534 | E15: 1493 | F15: 2027 | G15: 0.2634435126
C16: 2007 | D16: 714 | E16: 1628 | F16: 2342 | G16: =(D16/F16) -> 0.3048676345
C17: 2008 | D17: 670 | E17: 1701 | F17: 2371 | G17: 0.2825811894
C18: 2009 | D18: 671 | E18: 1967 | F18: 2638 | G18: 0.2543593632
C19: 2010 | D19: 629 | E19: 2337 | F19: 2966 | G19: 0.2120701281
C20: 2011 | D20: 590 | E20: 2376 | F20: 2966 | G20: 0.1989211059
C21: 2012 | D21: 752 | E21: 2473 | F21: 3225 | G21: 0.2331782946
C22: 2013 | D22: 651 | E22: 2610 | F22: 3261 | G22: 0.1996320147
C23: 2014 | D23: 740 | E23: 2481 | F23: 3221 | G23: =(D23/F23) -> 0.2297423161
C24: 2015 | D24: 899 | E24: 2392 | F24: 3291 | G24: =(D24/F24) -> 0.2731692495
C25: 2016 | D25: 925 | E25: 2603 | F25: 3528 | G25: =(D25/F25) -> 0.2621882086
C26: 2017 | D26: 961 | E26: 2361 | F26: =D26+E26 -> 3322 | G26: =D26/F26 -> 0.2892835641
C27: 2018 | D27: 1321 | E27: 2243 | F27: 3564 | G27: =D27/F27 -> 0.370650954
C28: 2019 | D28: 1371 | E28: 2365 | F28: 3736 | G28: =(D28/F28) -> 0.3669700214
C29: 2020 | D29: 1486 | E29: 2122 | F29: 3608 | G29: =D29/F29 -> 0.4118625277
C30: 2021 | D30: 1641 | E30: 1894 | F30: 3535 | G30: =D30/F30 -> 0.4642149929
C31: 2022 | D31: 1429 | E31: 1780 | F31: 3209 | G31: =D31/F31 -> 0.4453100654
C32: 1996-2022 | D32: =(D31-D5)/D5 -> 2.969444444 | E32: =(E31-E5)/E5 -> -0.215513442 | F32: =(F31-F5)/F5 -> 0.2206162039 | G32: —
C33: Source: SANC, www.sanc.co.za, Output 4 Year Programme (2007-2016) Overview, accessed 27 February 2017; Output 4 Year Programme (2008-2017) Overview, accessed 24 April 2018; Output 4 Year Programme (2010-2019) Overview, accessed 20 October 2020; Output 4 Year Programme (2011-2020) Overview, accessed 24 March 2021; Output 4 Year Programme (2012-2021) Overview, accessed 14 April 2022; Output 4 Year Programme (2013-2022) Overview, accessed 14 June 2023
C34: a Registered with the South African Nursing Council. This includes nurses practising in either the public or the private sector, those working abroad, and those registered but no longer practising. Professional nurses have completed a four-year long programme at university or a nursing college and practise comprehensive nursing and midwifery.

Sheet Output of enrolled nurses.96-22
B2: Output of enrolled nursesab from public and private institutions, 1996-2022
B4: Year | C4: Public | D4: Private | E4: Total | F4: Public output as a proportion of total
B5: 1996 | C5: 70 | D5: 33 | E5: 103 | F5: 0.68
B6: 1997 | C6: 881 | D6: 188 | E6: 1069 | F6: 0.824
B7: 1998 | C7: 1302 | D7: 418 | E7: 1720 | F7: 0.757
B8: 1999 | C8: 2042 | D8: 526 | E8: 2568 | F8: 0.795
B9: 2000 | C9: 1217 | D9: 702 | E9: 1919 | F9: 0.634
B10: 2001 | C10: 1058 | D10: 874 | E10: 1932 | F10: 0.548
B11: 2002 | C11: 1328 | D11: 1443 | E11: 2771 | F11: 0.479
B12: 2003 | C12: 1352 | D12: 1806 | E12: 3158 | F12: 0.428
B13: 2004 | C13: 1438 | D13: 2835 | E13: 4273 | F13: 0.337
B14: 2005 | C14: 1184 | D14: 3380 | E14: 4564 | F14: 0.259
B15: 2006 | C15: 1442 | D15: 3374 | E15: 4816 | F15: 0.299
B16: 2007 | C16: 1339 | D16: 3419 | E16: 4758 | F16: 0.281
B17: 2008 | C17: 1788 | D17: 4366 | E17: 6154 | F17: 0.291
B18: 2009 | C18: 2365 | D18: 5128 | E18: 7493 | F18: 0.316
B19: 2010 | C19: 2314 | D19: 5197 | E19: 7511 | F19: 0.308
B20: 2011 | C20: 2233 | D20: 5158 | E20: 7391 | F20: 0.302
B21: 2012 | C21: 2489 | D21: 5243 | E21: 7732 | F21: 0.322
B22: 2013 | C22: 2649 | D22: 6305 | E22: 8954 | F22: 0.296
B23: 2014 | C23: 1777 | D23: 5172 | E23: 6949 | F23: 0.256
B24: 2015 | C24: 2059 | D24: 6697 | E24: 8756 | F24: 0.235
B25: 2016 | C25: 2107 | D25: 5772 | E25: 7879 | F25: 0.267
B26: 2017 | C26: 1083 | D26: 4918 | E26: 6001 | F26: =C26/E26 -> 0.1804699217
B27: 2018 | C27: 133 | D27: 692 | E27: 825 | F27: 0.299
B28: 2019c | C28: 9 | D28: 86 | E28: 95 | F28: 0.331
B29: 2020c | C29: 2 | D29: 6 | E29: 8 | F29: =C29/E29 -> 0.25
B30: 2021c | C30: 31 | D30: 44 | E30: =C30+D30 -> 75 | F30: =C30/D30 -> 0.7045454545
B31: 2022d | C31: 1 | D31: N/A | E31: 1 | F31: =C31/E31 -> 1
B32: Source: SANC, www.sanc.co.za, Output Pupil Nurses (2007-2016) Overview, accessed 27 February 2017; Output Pupil Nurses (2008-2017) Overview, accessed 24 April 2018; Output Pupil Nurses (2008-2018) Overview, accessed 13 August 2019; Output Pupil Nurses (2010-2019) Overview, accessed 20 October 2020; Output Pupil Nurses (2011-2020) Overview, accessed 24 March 2021;Output Pupil Nurses (2012-2021) Overview, accessed 16 April 2022; Output Pupil Nurses (2013-2022) Overview, accessed 14 June 2023
B33: a Includes nurses practising in either the public or the private sector, those working abroad, and those registered but no longer practising. Enrolled nurses have completed a two-year programme at a public or private institution, usually a nursing college. Alternatively, an enrolled nurse has left university after completing only two years of the four-year university programme. Enrolled nurses practise basic nursing.
B34: b The two programmes were phased out in 2015. The last examinations were in 2017 and 2018 respectively.
B35: c Only figures for the Eastern Cape, Gauteng, KwaZulu-Natal, Mpumalanga, and the Western Cape were available.
B36: d Figures from most provinces were missing.
B37: N/A — Not available.

Sheet Outputofnursingassistants.96-22
D2: Output of nursing assistantsa by public and private institutions, 1996-2022
D4: Year | E4: Public | F4: Private | G4: Total | H4: Public output as a proportion of total
D5: 1996 | E5: 612 | F5: 439 | G5: 1051 | H5: =E5/G5 -> 0.582302569
D6: 1997 | E6: 1442 | F6: 575 | G6: 2017 | H6: =E6/G6 -> 0.7149231532
D7: 1998 | E7: 992 | F7: 531 | G7: 1523 | H7: 0.6513460276
D8: 1999 | E8: 586 | F8: 630 | G8: 1216 | H8: 0.4819078947
D9: 2000 | E9: 271 | F9: 1238 | G9: 1509 | H9: 0.1795891319
D10: 2001 | E10: 273 | F10: 1641 | G10: 1914 | H10: 0.1426332288
D11: 2002 | E11: 425 | F11: 2653 | G11: 3078 | H11: 0.1380766732
D12: 2003 | E12: 522 | F12: 3868 | G12: 4390 | H12: 0.1189066059
D13: 2004 | E13: 624 | F13: 6074 | G13: 6698 | H13: 0.09316213795
D14: 2005 | E14: 1161 | F14: 5593 | G14: 6754 | H14: 0.1718981344
D15: 2006 | E15: 1166 | F15: 4256 | G15: 5422 | H15: 0.2150497971
D16: 2007 | E16: 1641 | F16: 4495 | G16: 6136 | H16: 0.2674380704
D17: 2008 | E17: 1061 | F17: 4532 | G17: 5593 | H17: 0.1897014125
D18: 2009 | E18: 1106 | F18: 4673 | G18: 5779 | H18: 0.1913825921
D19: 2010 | E19: 899 | F19: 4226 | G19: 5125 | H19: 0.1754146341
D20: 2011 | E20: 965 | F20: 4267 | G20: 5232 | H20: =E20/G20 -> 0.184441896
D21: 2012 | E21: 887 | F21: 4122 | G21: 5009 | H21: =E21/G21 -> 0.1770812537
D22: 2013 | E22: 1180 | F22: 4729 | G22: 5909 | H22: 0.1996953799
D23: 2014 | E23: 967 | F23: 5174 | G23: 6141 | H23: 0.1574662107
D24: 2015 | E24: 1114 | F24: 4681 | G24: 5795 | H24: 0.1922346851
D25: 2016 | E25: 1266 | F25: 5460 | G25: 6726 | H25: 0.1882247993
D26: 2017 | E26: 171 | F26: 416 | G26: 587 | H26: 0.2913117547
D27: 2018b | E27: 19 | F27: 20 | G27: 39 | H27: 0.4871794872
D28: 2019b | E28: 5 | F28: 24 | G28: 29 | H28: 0.1724137931
D29: 2020b | E29: N/A | F29: 32 | G29: 32 | H29: —
D30: 2021b | E30: 17 | F30: 17 | G30: =E30+F30 -> 34 | H30: =E30/G30 -> 0.5
D31: 2022b | E31: 1 | F31: N/A | G31: 1 | H31: =E31/G31 -> 1
D32: Source: SANC, www.sanc.co.za, accessed 27 February 2016; Output Pupil Auxiliaries (2008-2017) Overview, accessed 24 April 2018; Output Pupil Auxiliaries (2008-2018) Overview, accessed 13 August 2019; Output Pupil Auxiliaries (2010-2019) Overview, accessed 20 October 2020; Output Pupil Auxiliaries (2011-2020) Overview, accessed 24 March 2021; Output Pupil Auxiliaries (2012-2021) Overview, accessed 16 April 2022; Output Pupil Auxiliaries (2013-2022) Overview, accessed 15 August 2023
D33: a Includes nurses practising in either the public or the private sector, those working abroad, and those registered but no longer practising. Nursing assistants, also referred to as auxiliary nurses, have completed a year-long programme or course at a college or have exited after completing the first year of the university four-year programme. Nursing assistants practise elementary nursing.
D34: b Figures from most provinces were missing.
D35: N/A — Not available.

Sheet Therapists

Sheet Occupatio therapists.07-24
C2: Occupational and physiotherapists
C4: All registered occupational therapistsa, 2007-24
D6: Year | E6: Number | F6: People per registered occupational therapistb
D7: 2007 | E7: 3015 | F7: 15 871 to 1
D8: 2008 | E8: 3174 | F8: 15 339 to 1
D9: 2009 | E9: 3325 | F9: 14 833 to 1
D10: 2010 | E10: 3508 | F10: 14 251 to 1
D11: 2011 | E11: 3629 | F11: 13 940 to 1
D12: 2012 | E12: 3805 | F12: 13 756 to 1
D13: 2013 | E13: 4024 | F13: 13 167 to 1
D14: 2014 | E14: 4305 | F14: 12 544 to 1
D15: 2015 | E15: 4575 | F15: 12 012 to 1
D16: 2016 | E16: 4792 | F16: 11 667 to 1
D17: 2017 | E17: 5327 | F17: 10 610 to 1
D18: 2018c | E18: 5784 | F18: 9 980 to 1
D19: 2019d | E19: 6157 | F19: 9 546 to 1
D20: 2020e | E20: 6200 | F20: 9 617 to 1
D21: 2021f | E21: 6311 | F21: 9 556 to 1
D22: 2022g | E22: 6026 | F22: 10 057 to 1
D23: 2023h | E23: 6175 | F23: 9 926 to 1
D24: 2024i | E24: 6296 | F24: 10 009 to 1
D25: 2007-24 | E25: =(E24-E7)/E7 -> 1.088225539 | F25: —
C26: Source: HPCSA, www.hpcsa.co.za, Welcome to iregister, accessed 25 June 2018; HPCSA, www.hpcsa.co.za, Welcome to iregister, accessed 5 September 2017, 1 June 2016, 1 December 2014; SAHR 2016, May 2016, Table 34, p302; HPCSA, www.hpcsa.co.za, Welcome to iregister, accessed 4 February 2019, 9 June 2020, 18 March 2021; Stats SA, Mid-year population estimates, 2007-22 data; Province projections by sex and age (2023-2027), accessed 26 July 2023; HPCSA, email communication, 26 July 2023; 1 August 2024
C27: a Registered with the Health Professions Council of South Africa. Includes those practising in either the public or the private sector, those working abroad, and those registered but are no longer practising.
C28: b CRA calculations.
C29: c As at 25 June 2018.
C30: d As at 9 July 2019.
C31: e As at 9 June 2020.
C32: f As at 18 March 2021.
C33: g As at 31 March 2022.
C34: h As at 31 March 2023.
C35: i As at 30 April 2024.

Sheet Occup.therapists.by.prov17.24
C2: All registereda occupational therapists by province, 2017 and 2024
C4: Province | D4: 2017b | E4: 2024c | F4: Changed
C5: Eastern Cape | D5: 279 | E5: 344 | F5: =(E5-D5)/D5 -> 0.2329749104
C6: Free State | D6: 336 | E6: 374 | F6: =(E6-D6)/D6 -> 0.1130952381
C7: Gauteng | D7: 2094 | E7: 2168 | F7: 0.03533906399
C8: KwaZulu-Natal | D8: 364 | E8: 818 | F8: 1.247252747
C9: Limpopo | D9: 187 | E9: 238 | F9: 0.2727272727
C10: Mpumalanga | D10: 264 | E10: 298 | F10: 0.1287878788
C11: North West | D11: 109 | E11: 134 | F11: 0.2293577982
C12: Northern Cape | D12: 89 | E12: 144 | F12: 0.6179775281
C13: Western Cape | D13: 1605 | E13: 1778 | F13: =(E13-D13)/D13 -> 0.107788162
C14: South Africa | D14: 5327 | E14: =SUM(E5:E13) -> 6296 | F14: =(E14-D14)/D14 -> 0.1819035104
C15: Source: HPCSA, www.hpcsa.co.za, Welcome to iregister, accessed 5 September 2017; HPCSA, email communication, 1 August 2024.
C16: a Registered with the Health Professions Council of South Africa. Includes those practising in either the public or the private sector, those working abroad, and those registered but are no longer practising.
C17: b As at 5 September 2017.
C18: c As at 30 April 2024.
C19: d CRA calculations.

Sheet Registered physiothrapsts.07-24
C2: All registered physiotherapistsa, 2007-24
C4: Year | D4: Number | E4: People per registered physiotherapistb
C5: 2007 | D5: 5059 | E5: 9 459 to 1
C6: 2008 | D6: 5314 | E6: 9 162 to 1
C7: 2009 | D7: 5582 | E7: 8 836 to 1
C8: 2010 | D8: 5777 | E8: 8 654 to 1
C9: 2011 | D9: 5937 | E9: 8 521 to 1
C10: 2012 | D10: 6150 | E10: 8 511 to 1
C11: 2013 | D11: 6359 | E11: 8 332 to 1
C12: 2014 | D12: 6673 | E12: 8 093 to 1
C13: 2015 | D13: 6942 | E13: 7 917 to 1
C14: 2016 | D14: 7183 | E14: 7 784 to 1
C15: 2017 | D15: 8002 | E15: 7 063 to 1
C16: 2018c | D16: 8505 | E16: 6 787 to 1
C17: 2019d | D17: 8898 | E17: 6 605 to 1
C18: 2020e | D18: 8891 | E18: 6 706 to 1
C19: 2021f | D19: 9016 | E19: 6 689 to 1
C20: 2022g | D20: 8458 | E20: 7 165 to 1
C21: 2023h | D21: 8633 | E21: 7 100 to 1
C22: 2024i | D22: 8840 | E22: 7 128 to 1
C23: 2007-24 | D23: =(D22-D5)/D5 -> 0.7473809053 | E23: —
C24: Source: HPCSA, www.hpcsa.co.za, Welcome to iregister, accessed 5 September 2017, 1 June 2016, 1 December 2014; SAHR 2016, May 2016, Table 34, p303; HPCSA, www.hpcsa.co.za, Welcome to iregister, accessed 25 June 2018, 9 July 2019, 9 June 2020, 18 March 2021; Stats SA, Mid-year population estimates, 2007-22 data; Province projections by sex and age (2023-2027), accessed 26 July 2023; HPCSA, email communication, 26 July 2023; 1 August 2024
C25: a Registered with the Health Professions Council of South Africa. Includes those practising in either the public or the private sector, those working abroad, and those registered but are no longer practising.
C26: b CRA calculations.
C27: c As at 25 June 2018.
C28: d As at 4 February 2019.
C29: e As at 9 June 2020.
C30: f As at 18 March 2021.
C31: g As at 31 March 2022.
C32: h As at 31 March 2023.
C33: i As at 30 April 2024.

Sheet Physiotherapists by prov.17.24
C2: All registereda physiotherapists by province, 2017 and 2024
D4: Province | E4: 2017b | F4: 2024c | G4: Changed
D5: Eastern Cape | E5: 445 | F5: 470 | G5: =(F5-E5)/E5 -> 0.05617977528
D6: Free State | E6: 391 | F6: 444 | G6: =(F6-E6)/E6 -> 0.1355498721
D7: Gauteng | E7: 3214 | F7: 2980 | G7: -0.07280647169
D8: KwaZulu-Natal | E8: 702 | F8: 1368 | G8: 0.9487179487
D9: Limpopo | E9: 274 | F9: 359 | G9: 0.3102189781
D10: Mpumalanga | E10: 374 | F10: 369 | G10: -0.01336898396
D11: North West | E11: 158 | F11: 204 | G11: 0.2911392405
D12: Northern Cape | E12: 112 | F12: 193 | G12: 0.7232142857
D13: Western Cape | E13: 2332 | F13: 2453 | G13: =(F13-E13)/E13 -> 0.05188679245
D14: South Africa | E14: 8002 | F14: =SUM(F5:F13) -> 8840 | G14: =(F14-E14)/E14 -> 0.104723819
D15: Source: HPCSA, www.hpcsa.co.za, Welcome to iregister, accessed 5 September 2017;HPCSA, email communication, 1 August 2024.
C16: a Registered with the Health Professions Council of South Africa. Includes those practising in either the public or the private sector, those working abroad, and those registered but are no longer practising.
C17: b As at 5 September 2017.
C18: c As at 30 April 2024.
C19: d CRA calculations.

Sheet Pub&priv occu.& ptheraps.00-23
B2: Public sector occupational and physiotherapists, 2000-23
B4: Year | C4: Occupational therapists | D4: Physiotherapists | E4: Total | F4: Occupational therapists as a proportion of totala | G4: Physiotherapists as a proportion of totala | H4: People per occupational/ physiotherapista
B5: 2000 | C5: 414 | D5: 454 | E5: 868 | F5: 0.477 | G5: 0.523 | H5: 50 329 to 1
B6: 2001 | C6: 402 | D6: 459 | E6: 861 | F6: 0.467 | G6: 0.533 | H6: 51 755 to 1
B7: 2002 | C7: 419 | D7: 462 | E7: 881 | F7: 0.476 | G7: 0.524 | H7: 51 594 to 1
B8: 2003 | C8: 546 | D8: 628 | E8: 1174 | F8: 0.465 | G8: 0.535 | H8: 39 548 to 1
B9: 2005 | C9: 605 | D9: 724 | E9: 1329 | F9: 0.455 | G9: 0.545 | H9: 35 281 to 1
B10: 2006 | C10: 667 | D10: 783 | E10: 1450 | F10: 0.46 | G10: 0.54 | H10: 32 683 to 1
B11: 2007 | C11: 736 | D11: 850 | E11: 1586 | F11: 0.464 | G11: 0.536 | H11: 30 171 to 1
B12: 2008 | C12: 785 | D12: 903 | E12: 1688 | F12: 0.465 | G12: 0.535 | H12: 28 843 to 1
B13: 2009 | C13: 806 | D13: 946 | E13: 1752 | F13: 0.46 | G13: 0.54 | H13: 28 151 to 1
B14: 2010 | C14: 838 | D14: 1009 | E14: 1847 | F14: 0.454 | G14: 0.546 | H14: 27 066 to 1
B15: 2011 | C15: 940 | D15: 1057 | E15: 1997 | F15: 0.471 | G15: 0.53 | H15: 25 331 to 1
B16: 2012 | C16: 1038 | D16: 1132 | E16: 2170 | F16: 0.478 | G16: 0.522 | H16: 24 121 to 1
B17: 2013 | C17: 1110 | D17: 1219 | E17: 2329 | F17: 0.477 | G17: 0.523 | H17: 22 749 to 1
B18: 2014 | C18: 1250 | D18: 1239 | E18: 2489 | F18: 0.502 | G18: 0.498 | H18: 21 696 to 1
B19: 2015 | C19: 1313 | D19: 1315 | E19: 2628 | F19: 0.5 | G19: 0.5 | H19: 20 912 to 1
B20: 2016 | C20: 1280 | D20: 1339 | E20: 2619 | F20: =C20/E20 -> 0.4887361588 | G20: =D20/E20 -> 0.5112638412 | H20: 21 347 to 1
B21: 2017 | C21: 1237 | D21: 1410 | E21: =C21+D21 -> 2647 | F21: =C21/E21 -> 0.467321496 | G21: =D21/E21 -> 0.532678504 | H21: 21 353 to 1
B22: 2018 | C22: 1297 | D22: 1428 | E22: =C22+D22 -> 2725 | F22: =C22/E22 -> 0.4759633028 | G22: 0.5240366972 | H22: 21 184 to 1
B23: 2019b | C23: 979 | D23: 1077 | E23: =C23+D23 -> 2056 | F23: 0.4761673152 | G23: =D23/E23 -> 0.5238326848 | H23: 28 587 to 1
B24: 2020c | C24: 1003 | D24: 1110 | E24: 2113 | F24: 0.474680549 | G24: =D24/E24 -> 0.525319451 | H24: 28 217 to 1
B25: 2021d | C25: 1084 | D25: 1239 | E25: 2323 | F25: 0.4666379681 | G25: =D25/E25 -> 0.5333620319 | H25: 25 890 to 1
B26: 2022e | C26: 1101 | D26: 1225 | E26: 2326 | F26: 0.4733447979 | G26: =D26/E26 -> 0.5266552021 | H26: 26 055 to 1
B27: 2023f | C27: 1071 | D27: 1172 | E27: =C27+D27 -> 2243 | F27: 0.4774855105 | G27: =D27/E27 -> 0.5225144895 | H27: 27 722 to 1
B28: 2000-23 | C28: =(C27-C5)/C5 -> 1.586956522 | D28: =(D27-D5)/D5 -> 1.581497797 | E28: 1.584101382 | F28: — | G28: — | H28: —
B29: Source: HST, www.hst.org.za, SAHR 2018, December 2018, Table 45, p221; SAHR 2019, December 2019, Table 31, p287; Table 32, p290; SAHR 2020, December 2020, Table 23, p260; SAHR 2021, April 2022, Table 16, p356; SAHR 2022, September 2023, Table 19, p95; Stats SA, email communication; Mid-year population estimates, 2001-22 data; SAHR 2023, October 2024, Table12, p54
B30: a CRA calculations.
B31: b As at March 2019.
B32: c As at March 2020.
B33: d As at March 2021.
B34: e As at March 2022.
B35: f As at March 2023.

Sheet Registered stud.occup.13-24
D2: Total registered student occupational therapists, 2007-24
D4: Year | E4: Numbera
D5: 2007 | E5: 1451
D6: 2008 | E6: 1525
D7: 2009 | E7: 1498
D8: 2010 | E8: 1735
D9: 2011 | E9: 1829
D10: 2012 | E10: 1936
D11: 2013 | E11: 1856
D12: 2014 | E12: 1951
D13: 2015 | E13: 2048
D14: 2016 | E14: 2270
D15: 2017b | E15: 3581
D16: 2018c | E16: 4017
D17: 2019d | E17: 4365
D18: 2020e | E18: 6200
D19: 2021f | E19: 4524
D20: 2022g | E20: 1918
D21: 2023h | E21: 2059
D22: 2024i | E22: 2359
D23: 2007-24 | E23: =(E22-E5)/E5 -> 0.6257753274
C24: Source: HPCSA, www.hpcsa.co.za, 2013 Annual Report, September 2013, p21; HPCSA Annual Report 2015/16, September 2016, p99; Welcome to iregister, accessed 30 August 2017; 25 June 2018; 10 July 2019; 9 June 2020; 18 March 2021; HPCSA, email communication, 26 July 2023; 1 August 2024
C25: a This is a person studying occupational therapy at a tertiary institution and is also registered with the Health Professions Council of South Africa.
C26: b As at 31 March 2017.
C27: c As at 3 July 2018.
C28: d As at 4 February 2019.
C29: e As at 9 June 2020.
C30: f As at 18 March 2021.
C31: g As at 31 March 2022.
C32: h As at 31 March 2023.
C33: i As at 30 April 2024.

Sheet Radiographers

Sheet Registered radiographers.07-24
B2: Radiographers
B4: All registered radiographersa, 2007-24
B6: Year | C6: Number | D6: People per registered radiographerb
B7: 2007 | C7: 5509 | D7: 8 686 to 1
B8: 2008 | C8: 5760 | D8: 8 453 to 1
B9: 2009 | C9: 6015 | D9: 8 200 to 1
B10: 2010 | C10: 6215 | D10: 8 044 to 1
B11: 2011 | C11: 6431 | D11: 7 866 to 1
B12: 2012 | C12: 6748 | D12: 7 757 to 1
B13: 2013 | C13: 7072 | D13: 7 492 to 1
B14: 2014 | C14: 7430 | D14: 7 268 to 1
B15: 2015 | C15: 7787 | D15: 7 058 to 1
B16: 2016 | C16: 8072 | D16: 6 926 to 1
B17: 2017 | C17: 7646 | D17: 7 392 to 1
B18: 2018c | C18: 8460 | D18: 6 823 to 1
B19: 2019d | C19: 9058 | D19: 6 489 to 1
B20: 2020e | C20: 9275 | D20: 6 428 to 1
B21: 2021f | C21: 9532 | D21: 6 310 to 1
B22: 2022g | C22: 8554 | D22: 7 085 to 1
B23: 2023h | C23: 8719 | D23: 7 030 to 1
B24: 2024i | C24: 8968 | D24: 7 027 to 1
B25: 2007-24 | C25: =(C24-C7)/C7 -> 0.6278816482 | D25: —
B26: Source: HPCSA, www.hpcsa.co.za, Welcome to iregister, accessed 5 September 2017,1 June 2016; HST, www.hst.org.za, accessed 1 December 2014; SAHR 2016, May 2016, Table 34, p303; HPCSA, www.hpcsa.co.za, 25 June 2018; June 2018, 10 July 2019, 9 June 2020, 19 March 2021; Stats SA, Mid-year population estimates, 2007-22 data; Province projections by sex and age (2023-2027), accessed 26 July 2023; HPCSA, email communication, 26 July 2023; 1 August 2024
B27: a Registered with the Health Professions Council of South Africa. Includes those practising in either the public or the private sector, those working abroad, and those registered but are no longer practising.
B28: b CRA calculations.
B29: c As at 3 June 2018.
B30: d As at 10 July 2019.
B31: e As at 9 June 2020.
B32: f As at 19 March 2021.
B33: g As at 31 March 2022.
B34: h As at 31 March 2023.
B35: i As at 30 April 2024.

Sheet Radiographers by pro.17.24
D2: All registereda radiographers by province, 2017 and 2024
D4: Province | E4: 2017b | F4: 2024c | G4: Changed
D5: Eastern Cape | E5: 623 | F5: 710 | G5: =(F5-E5)/E5 -> 0.13964687
D6: Free State | E6: 476 | F6: 611 | G6: =(F6-E6)/E6 -> 0.2836134454
D7: Gauteng | E7: 2956 | F7: 3118 | G7: 0.0548037889
D8: KwaZulu-Natal | E8: 945 | F8: 1607 | G8: 0.7005291005
D9: Limpopo | E9: 222 | F9: 331 | G9: 0.490990991
D10: Mpumalanga | E10: 370 | F10: 417 | G10: 0.127027027
D11: North West | E11: 206 | F11: 275 | G11: 0.3349514563
D12: Northern Cape | E12: 111 | F12: 176 | G12: 0.5855855856
D13: Western Cape | E13: 1737 | F13: 1723 | G13: =(F13-E13)/E13 -> -0.008059873345
D14: South Africa | E14: 7646 | F14: =SUM(F5:F13) -> 8968 | G14: =(F14-E14)/E14 -> 0.1729008632
D15: Source: HPCSA, www.hpcsa.co.za, Welcome to iregister, accessed 5 September 2017; HPCSA, email communication, 26 July 2023; 1 August 2024
D16: a Registered with the Health Professions Council of South Africa. Includes those practising in either the public or the private sector, those working abroad, and those registered but are no longer practising.
D17: b As at 5 September 2017.
D18: c As at 30 April 2024.
D19: d CRA calculations.

Sheet Public sector radiogrphrs.00-23
B2: Public sector radiographers, 2000-23
C4: Yeara | D4: Number
C5: 2000 | D5: 2116
C6: 2001 | D6: 2061
C7: 2002 | D7: 2009
C8: 2003 | D8: 2033
C9: 2005 | D9: 2048
C10: 2006 | D10: 2103
C11: 2007 | D11: 2100
C12: 2008 | D12: 2141
C13: 2009 | D13: 2196
C14: 2010 | D14: 2301
C15: 2011 | D15: 2454
C16: 2012 | D16: 2611
C17: 2013 | D17: 2652
C18: 2014 | D18: 2735
C19: 2015 | D19: 2765
C20: 2016 | D20: 2827
C21: 2017 | D21: 2789
C22: 2018 | D22: 2890
C23: 2019b | D23: 2632
C24: 2020c | D24: 2716
C25: 2021d | D25: 2882
C26: 2022e | D26: 3034
C27: 2023f | D27: 2970
C28: 2000-23 | D28: =(D27-D5)/D5 -> 0.4035916824
B29: Source: The Society of Radiographers of South Africa (SORSA), www.sorsa.org.za, accessed 18 July 2017; HST, www.hst.org.za, SAHR 2018, December 2018, Table 45, p221; SAHR 2019, December 2019, Table 32, p290; SAHR 2019, December 2020, Table 23, p261; SAHR 2021, April 2022, Table 16, p356; SAHR 2022, August 2023, Table 19, p96; SAHR 2023, October 2024, Table12, p55
B30: a Figures for 2004 were not available.
B31: b As at March 2019.
B32: c As at March 2020.
B33: d As at March 2021.
B34: e As at March 2022.
B35: f As at March 2023.

Sheet Student radiographers.07-24
D2: Total registered student radiographers, 2007-24
D4: Year | E4: Numbera
D5: 2007 | E5: 1355
D6: 2008 | E6: 1506
D7: 2009 | E7: 1346
D8: 2010 | E8: 1561
D9: 2011 | E9: 1695
D10: 2012 | E10: 1907
D11: 2013b | E11: 1763
D12: 2014c | E12: 1890
D13: 2015d | E13: 1987
D14: 2016e | E14: 1937
D15: 2017f | E15: 3283
D16: 2018g | E16: 4041
D17: 2019h | E17: 4549
D18: 2020i | E18: 4747
D19: 2021j | E19: 4989
D20: 2022k | E20: 2516
D21: 2023l | E21: 2561
D22: 2024m | E22: 3222
D23: 2007-24 | E23: =(E22-E5)/E5 -> 1.377859779
C24: Source: HPCSA, www.hpcsa.co.za, 2013 Annual Report, September 2013, p21; HPCSA Annual Report 2015/16, September 2016, p100; Welcome to iregister, accessed 30 August 2017, 4 July 2018, 4 February 2019, 9 June 2020, 19 March 2021; HPCSA, email communication, 26 July 2023; 1 August 2024
C25: a Studying radiography at a tertiary institution, and is also registered with the Health Professions Council of South Africa.
C26: b As at 1 April 2013.
C27: c As at 1 April 2014.
C28: d As at 1 April 2015.
C29: e As at 31 March 2016.
C30: f As at 30 August 2017.
C31: g As at 4 July 2018.
C32: h As at 10 July 2019.
C33: i As at 9 June 2020.
C34: j As at 19 March 2021.
C35: k As at 31 March 2022.
C36: l As at 31 March 2023.
C37: m As at 30 April 2024.

Sheet Pharmacists

Sheet Registered pharmacists.03-23
D2: Pharmacists
D4: All registered pharmacistsa, 2003-23
D6: Year | E6: Number | F6: People per registered pharmacistb
D7: 2003 | E7: 10629 | F7: 4 368 to 1
D8: 2004 | E8: 10891 | F8: 4 278 to 1
D9: 2005 | E9: 10824 | F9: 4 332 to 1
D10: 2007 | E10: 11547 | F10: 4 144 to 1
D11: 2008 | E11: 11905 | F11: 4 090 to 1
D12: 2010 | E12: 12218 | F12: 4 092 to 1
D13: 2011 | E13: 12460 | F13: 4 060 to 1
D14: 2012 | E14: 13003 | F14: 4 025 to 1
D15: 2014 | E15: 13364 | F15: 4 041 to 1
D16: 2015 | E16: 13479 | F16: 4 077 to 1
D17: 2017 | E17: 14412 | F17: 3 922 to 1
D18: 2018 | E18: 14904 | F18: 3 873 to 1
D19: 2019c | E19: 15515 | F19: 3 788 to 1
D20: 2022d | E20: 17112 | F20: 3 542 to 1
D21: 2023e | E21: 17198 | F21: 3 564 to 1
D22: 2003-23 | E22: =(E21-E7)/E7 -> 0.6180261549 | F22: —
C23: Source: South African Pharmacy Council (SAPC), https://pharmcouncil.co.za, Statistics for registered persons and organisations, accessed 1 February 2017; Statistics for registered persons and organisations, accessed 1 August 2018; HST, www.hst.org.za, accessed 1 December 2014; SAHR 2016, May 2016, Table 34; SAPC, https://pharmcouncil.co.za, Statistics for registered persons and organisations, accessed 4 February 2019; HST, www.hst.org.za, accessed 1 December 2014; SAHR 2016, May 2016, Table 34; SAPC, https://pharmcouncil.co.za, Statistics for registered persons and organisations, accessed 1 August 2023; Stats SA, Mid-year population estimates, 2003-22 data; Province projections by sex and age (2023-2027), accessed 26 July 2023
C24: a Registered with the South African Pharmacy Council. Includes those practising in either the public or the private sector, those working abroad, and those registered but are no longer practising. 2020 and 2021 figures are not available.
C25: b CRA calculations.
C26: c As at 4 February 2019.
C27: d As at 2 May 2022.
C28: e As at 28 July 2023.

Sheet Pub.sector pharmacists.00-23
C2: Public and private sector pharmacists, 2000-23
D4: —Public sector— | F4: —Private sector—
C5: Yeara | D5: Pharmacists | E5: People per pharmacist | F5: Pharmacists | G5: People per pharmacist
C6: 2000 | D6: 1085 | E6: 40 263 to 1 | F6: — | G6: —
C7: 2001 | D7: 1260 | E7: 35 366 to 1 | F7: — | G7: —
C8: 2002 | D8: 1238 | E8: 35 908 to 1 | F8: — | G8: —
C9: 2003 | D9: 1222 | E9: 37 995 to 1 | F9: 9407 | G9: 4 936 to 1
C10: 2005 | D10: 1617 | E10: 28 997 to 1 | F10: 9207 | G10: 5 093 to 1
C11: 2006 | D11: 1746 | E11: 27 143 to 1 | F11: — | G11: —
C12: 2007 | D12: 1830 | E12: 26 148 to 1 | F12: 9717 | G12: 4 924 to 1
C13: 2008 | D13: 1853 | E13: 26 275 to 1 | F13: 10052 | G13: 4 844 to 1
C14: 2009 | D14: 1835 | E14: 26 878 to 1 | F14: — | G14: —
C15: 2010 | D15: 2966 | E15: 16 855 to 1 | F15: 9252 | G15: 5 403 to 1
C16: 2011 | D16: 3550 | E16: 14 583 to 1 | F16: 8910 | G16: 5 810 to 1
C17: 2012 | D17: 3901 | E17: 13 400 to 1 | F17: 9102 | G17: 5 743 to 1
C18: 2013 | D18: 4224 | E18: 12 543 to 1 | F18: — | G18: —
C19: 2014 | D19: 4516 | E19: 11 958 to 1 | F19: 8848 | G19: 6 104 to 1
C20: 2015 | D20: 4970 | E20: 11 058 to 1 | F20: 8509 | G20: 6 459 to 1
C21: 2016a | D21: 5223 | E21: 10 704 to 1 | F21: — | G21: —
C22: 2017b | D22: 5405 | E22: 10 457 to 1 | F22: 9007 | G22: 6 275 to 1
C23: 2018c | D23: 5486 | E23: 10 522 to 1 | F23: 9744 | G23: 5 924 to 1
C24: 2019d | D24: 5132 | E24: 11 453 to 1 | F24: 10383 | G24: 5 661 to 1
C25: 2020e | D25: 5337 | E25: 11 172 to 1 | F25: — | G25: —
C26: 2021f | D26: 5543 | E26: 10 850 to 1 | F26: — | G26: —
C27: 2022g | D27: 5777 | E27: 10 491 to 1 | F27: — | G27: —
C28: 2023h | D28: 5958 | E28: 10 436 to 1 | F28: — | G28: —
C29: Source: Reply by the minister of health to parliamentary question 2737/2016 by Dr H C Volmink (DA), 7 December 2016; HST, www.hst.org.za; SAHR 2017, December 2018, Table 45, p221; SAHR 2018, December 2019, Table 31, p286; SAHR 2019, December 2019, Table 31, p286; SAHR 2020, December 2020, Table 23, p261; SAHR 2021, April 2022, Table 16, p356; SAHR 2022, September 2023, Table 19, p95; SAHR 2023, October 2024, Table12, p55; Stats SA, Mid-year population estimates, 2000-24 data
C30: a As at March 2016.
C31: b As at October 2017.
C32: c As at April 2018.
C33: d As at March 2019.
C34: e As at March 2020.
C35: f As at March 2021.
C36: g As at March 2022.
C37: h As at March 2023.

Sheet Pharmacy students.18.23
B2: Pharmacy students by year of study, 2018a and 2023b
C4: —First year— | E4: —Second year— | G4: —Third year— | I4: —Fourth year— | K4: —Total—
B5: Universityc | C5: 2018 | D5: 2023 | E5: 2018 | F5: 2023 | G5: 2018 | H5: 2023 | I5: 2018 | J5: 2023 | K5: 2018 | L5: 2023
B6: Nelson Mandela University | C6: 170 | D6: 144 | E6: 117 | F6: 124 | G6: 148 | H6: 131 | I6: 150 | J6: 97 | K6: =C6+E6+G6+I6 -> 585 | L6: =D6+F6+H6+J6 -> 496
B7: North West University | C7: 201 | D7: 217 | E7: 220 | F7: 183 | G7: 221 | H7: 196 | I7: 269 | J7: 280 | K7: =C7+E7+G7+I7 -> 911 | L7: =D7+F7+H7+J7 -> 876
B8: Rhodes University | C8: 53 | D8: 349 | E8: 154 | F8: 197 | G8: 135 | H8: 138 | I8: 127 | J8: 32 | K8: 469 | L8: 716
B9: Sefako Makgatho Health Sciences University | C9: 85 | D9: 69 | E9: 78 | F9: 79 | G9: 72 | H9: 78 | I9: 49 | J9: 56 | K9: 284 | L9: 282
B10: Tshwane University of Technology | C10: 72 | D10: 81 | E10: 58 | F10: 72 | G10: 54 | H10: 71 | I10: 40 | J10: 48 | K10: 224 | L10: 272
B11: University of KwaZulu-Natal | C11: 119 | D11: 123 | E11: 112 | F11: 107 | G11: 111 | H11: 105 | I11: 141 | J11: 115 | K11: 483 | L11: 450
B12: University of Limpopo (Turf) | C12: 84 | D12: 63 | E12: 104 | F12: 92 | G12: 53 | H12: 82 | I12: 80 | J12: 81 | K12: 321 | L12: 318
B13: University of Limpopo (Medunsa) | C13: — | D13: 0 | E13: — | F13: 0 | G13: — | H13: 0 | I13: — | J13: 1 | K13: — | L13: 1
B14: University of the Western Cape | C14: 147 | D14: 147 | E14: 144 | F14: 163 | G14: 112 | H14: 124 | I14: 93 | J14: 113 | K14: 496 | L14: 547
B15: University of the Witwatersrand | C15: 91 | D15: 271 | E15: 94 | F15: 116 | G15: 78 | H15: 79 | I15: 99 | J15: 9 | K15: 362 | L15: 475
B16: Totald | C16: =SUM(C6:C15) -> 1022 | D16: =SUM(D6:D15) -> 1464 | E16: =SUM(E6:E15) -> 1081 | F16: 1133 | G16: 984 | H16: 1004 | I16: 1048 | J16: 832 | K16: =C16+E16+G16+I16 -> 4135 | L16: =D16+F16+H16+J16 -> 4433
B17: Source: SAPC, www.sapc.za.org, Statistics for registered persons and organisations, accessed 2 May 2022; Statistics for registered persons and organisations, accessed 28 July 2023
B18: a Figures as at 4 July 2018.
B19: b Figures as at 28 July 2023.
B20: c List of universities as provided by the South African Pharmacy Council.
B21: d Total number of students from universities that are registered with the South African Pharmacy Council.

Sheet Clinics

Sheet Public Clinics by province 24
B2: Clinics and hospitals
B4: Clinics
B6: Public clinics by province, 2024
B7: Province | C7: Number of clinics | D7: Community Health Centres and Community Day Centres | E7: Proportion of total | F7: People per public clinic
B8: Eastern Cape | C8: 772 | D8: 43 | E8: =C8/3448 -> 0.2238979118 | F8: 9 296 to 1
B9: Free State | C9: 238 | D9: 11 | E9: =C9/3448 -> 0.06902552204 | F9: 12 790 to 1
B10: Gauteng | C10: 372 | D10: 42 | E10: 0.1078886311 | F10: 42 827 to 1
B11: KwaZulu-Natal | C11: 652 | D11: 23 | E11: 0.1890951276 | F11: 18 885 to 1
B12: Limpopo | C12: 467 | D12: 29 | E12: 0.1354408353 | F12: 13 710 to 1
B13: Mpumalanga | C13: 266 | D13: 61 | E13: 0.07714617169 | F13: 19 014 to 1
B14: North West | C14: 285 | D14: 48 | E14: 0.08265661253 | F14: 14 580 to 1
B15: Northern Cape | C15: 138 | D15: 33 | E15: 0.04002320186 | F15: 9 949 to 1
B16: Western Cape | C16: 258 | D16: 84 | E16: 0.07482598608 | F16: 29 312 to 1
B17: South Africa | C17: 3448 | D17: 374 | E17: 1 | F17: 18 276 to 1
B18: Source: National Department of Health (NDOH), www.health.gov.za, Briefing to the portfolio committee on health, accessed 23 September 2024

Sheet Hospitals

Sheet Health facili by province.23
C3: Health facilities by type and province, 2023
C5: Province | D5: Districta | E5: Regionalb | F5: Centralc | G5: Millitary | H5: Specialised | I5: Specialised psychiatric | J5: Specialised TB | K5: Private | L5: Totald | M5: People per facilitye
C6: Eastern Cape | D6: 65 | E6: 5 | F6: 4 | G6: N/A | H6: 2 | I6: 4 | J6: 10 | K6: 27 | L6: =SUM(D6:K6) -> 117 | M6: 61 118 to 1
C7: Free State | D7: 25 | E7: 4 | F7: 2 | G7: 1 | H7: N/A | I7: 1 | J7: N/A | K7: 30 | L7: 63 | M7: 47 982 to 1
C8: Gauteng | D8: 12 | E8: 9 | F8: 7 | G8: 1 | H8: 3 | I8: 3 | J8: N/A | K8: 181 | L8: 216 | M8: 72 407 to 1
C9: KwaZulu-Natal | D9: 39 | E9: 13 | F9: 4 | G9: N/A | H9: 3 | I9: 6 | J9: 4 | K9: 102 | L9: 171 | M9: 71 122 to 1
C10: Limpopo | D10: 30 | E10: 5 | F10: 2 | G10: N/A | H10: N/A | I10: 3 | J10: 1 | K10: 17 | L10: 58 | M10: 109 229 to 1
C11: Mpumalanga | D11: 23 | E11: 3 | F11: 2 | G11: N/A | H11: N/A | I11: N/A | J11: 5 | K11: 22 | L11: 55 | M11: 90 620 to 1
C12: North West | D12: 12 | E12: 3 | F12: 2 | G12: N/A | H12: N/A | I12: 2 | J12: N/A | K12: 21 | L12: 40 | M12: 102 290 to 1
C13: Northern Cape | D13: 11 | E13: 1 | F13: 1 | G13: N/A | H13: N/A | I13: 1 | J13: 1 | K13: 11 | L13: 26 | M13: 52 176 to 1
C14: Western Cape | D14: 33 | E14: 5 | F14: 3 | G14: 1 | H14: N/A | I14: 4 | J14: 6 | K14: 59 | L14: 111 | M14: 67 003 to 1
C15: South Africa | D15: 250 | E15: 48 | F15: 27 | G15: 3 | H15: 8 | I15: 24 | J15: 27 | K15: 470 | L15: 857 | M15: 72 556 to 1
C16: Source: HST, www.hst.org.za, SAHR 2023, October 2024, Table 11, p50; Stats SA, Provincial projection by sex and age (2002-2024), accessed 15 October 2024
C17: a District hospitals must:
C18: (i) serve a defined population within a health district and support primary healthcare;
C19: (ii) provide a district hospital package of care on a 24-hour basis;
C20: (iii) have general practitioners and clinical nurse practitioners for primary health services;
C21: (iv) provide services that include in-patient, ambulatory health, and emergency health services;
C22: (v) where practical, provide training for healthcare service providers; and
C23: (vi) have between 30 and 200 beds.
C24: b Regional hospitals must, on a 24-hour basis, provide:
C25: (i) health services in the fields of internal medicine, paediatrics, obstetrics and gynaecology, and general surgery;
C26: (ii) health services in at least one of the following specialties:
C27: 1. orthopaedic surgery,
C28: 2. psychiatry,
C29: 3. anaesthetics,
C30: 4. diagnostic radiology;
C31: (iii) trauma and emergency services;
C32: (iv) short-term ventilation in a critical care unit;
C33: (v) services to a defined regional population limited to provincial boundaries, and receive referrals from district hospitals;
C34: (vi) where practical, provide training for healthcare service providers; and
C35: (vii) have between 200 and 800 beds.
C36: c Central hospitals must:
C37: (i) provide tertiary hospital services and central referral services and may provide national referral services;
C38: (ii) provide training of healthcare providers;
C39: (iii) conduct research;
C40: (iv) receive patients referred from more than one province;
C41: (v) be attached to a medical school as the main teaching platform; and
C42: (vi) have a maximum of 1 200 beds.
C43: d Total excludes primary healthcare fixed facilities.
C44: e CRA calculations.
C45: N/A — Not available.

Sheet Hospital beds. province20.23
B2: Beds in public hospitals by province, 2020-23
C4: —Number of beds— | G4: Change (2020-23)e | H4: People per hospital bed (2023)e
B5: Province | C5: 2020a | D5: 2021b | E5: 2022c | F5: 2023d
B6: Eastern Cape | C6: 13231 | D6: 14322 | E6: 13186 | F6: 13284 | G6: =(F6-C6)/C6 -> 0.004005744086 | H6: 538 to 1
B7: Free State | C7: 4908 | D7: 5652 | E7: 6525 | F7: 6571 | G7: =(F7-C7)/C7 -> 0.3388345558 | H7: 460 to 1
B8: Gauteng | C8: 17358 | D8: 13130 | E8: 17836 | F8: 18214 | G8: 0.04931443715 | H8: 859 to 1
B9: KwaZulu-Natal | C9: 20628 | D9: N/A | E9: 7900 | F9: 21000 | G9: 0.01803374055 | H9: 579 to 1
B10: Limpopo | C10: 7857 | D10: 10067 | E10: 5099 | F10: 7856 | G10: -0.0001272750414 | H10: 806 to 1
B11: Mpumalanga | C11: 4948 | D11: 5798 | E11: 20897 | F11: 4767 | G11: -0.03658043654 | H11: 1 046 to 1
B12: North West | C12: 4668 | D12: 5216 | E12: 4432 | F12: 4465 | G12: -0.04348757498 | H12: 916 to 1
B13: Northern Cape | C13: 1597 | D13: 1728 | E13: 1895 | F13: 1865 | G13: 0.1678146525 | H13: 727 to 1
B14: Western Cape | C14: 9868 | D14: N/A | E14: 10786 | F14: 10763 | G14: =(F14-C14)/C14 -> 0.09069720308 | H14: 691 to 1
B15: South Africa | C15: 85063 | D15: 55913 | E15: 88556 | F15: 88785 | G15: =(F15-C15)/C15 -> 0.04375580452 | H15: 700 to 1
B16: Source: HST, www.hst.org.za, SAHR 2021, April 2022, Table 15, p352; SAHR 2022, September 2023, Table 18, pp90; SAHR 2023, October 2024, Table 11, p50
B17: a As at March 2020.
B18: b As at March 2021.
B19: c As at March 2022.
B20: d As at March 2023.
B21: e CRA calculations.
B22: N/A — Not available.

Sheet Bed utilisationrate.15.16-22-23
B2: In-patient bed utilisation in public and private hospitals by province, 2015/16-2022/23
D4: —Bed utilisation ratea—
C5: Province | D5: 2015/16 | E5: 2016/17 | F5: 2017/18 | G5: 2018/19 | H5: 2019/20 | I5: 2020/21 | J5: 2021/22 | K5: 2022/23
C6: Eastern Cape | D6: 0.667 | E6: 0.643 | F6: 0.646 | G6: 0.648 | H6: 0.64 | I6: 0.508 | J6: 0.554 | K6: 0.565
C7: Free State | D7: 0.69 | E7: 0.667 | F7: 0.386 | G7: 0.739 | H7: 0.724 | I7: 0.571 | J7: 0.666 | K7: 0.677
C8: Gauteng | D8: 0.765 | E8: 0.77 | F8: 0.788 | G8: 0.807 | H8: 0.82 | I8: 0.707 | J8: 0.75 | K8: 0.772
C9: KwaZulu-Natal | D9: 0.654 | E9: 0.624 | F9: 0.637 | G9: 0.654 | H9: 0.65 | I9: 0.519 | J9: 0.565 | K9: 0.593
C10: Limpopo | D10: 0.74 | E10: 0.711 | F10: 0.751 | G10: 0.749 | H10: 0.742 | I10: 0.631 | J10: 0.662 | K10: 0.685
C11: Mpumalanga | D11: 0.714 | E11: 0.723 | F11: 0.658 | G11: 0.645 | H11: 0.636 | I11: 0.574 | J11: 0.598 | K11: 0.644
C12: North West | D12: 0.746 | E12: 0.78 | F12: 0.775 | G12: 0.721 | H12: 0.738 | I12: 0.636 | J12: 0.722 | K12: 0.732
C13: Northern Cape | D13: 0.657 | E13: 0.608 | F13: 0.583 | G13: 0.604 | H13: 0.617 | I13: 0.62 | J13: 0.594 | K13: 0.311
C14: Western Cape | D14: 0.851 | E14: 0.841 | F14: 0.845 | G14: 0.866 | H14: 0.869 | I14: 0.737 | J14: 0.822 | K14: 0.849
C15: South Africa | D15: 0.72 | E15: 0.706 | F15: 0.677 | G15: 0.725 | H15: 0.724 | I15: 0.607 | J15: 0.659 | K15: 0.669
B16: Source: HST, www.hst.org.za, SAHR 2018, December 2018, Table 42, p216; SAHR 2020, December 2020, Table 22, p257; SAHR 2021, April 2022, Table 15, p352; SAHR 2022, September 2023, Table 18, p89; SAHR 2023, October 2024, Table 11, p49
B17: a Measures the occupancy of available beds and therefore indicates how efficiently a hospital is using its available capacity. It is calculated as follows: number of inpatient days added to half the number of day patients, and divided by usable bed days. The bed utilisation rate is expressed as a percentage.

Sheet ICU depts in hosp by prov.18-24
B2: Intensive Care Unita (ICU) departments in public hospitals by province, 2018-24
B4: Province | C4: 2018b | D4: 2019c | E4: 2020d | F4: 2021e | G4: 2022f | H4: 2023g | I4: 2024h | J4: Change (2018-24)i | K4: Proportion of total (2024)i
B5: Eastern Cape | C5: 17 | D5: 18 | E5: 18 | F5: 18 | G5: 18 | H5: 18 | I5: 19 | J5: =(I5-C5)/C5 -> 0.1176470588 | K5: =I5/240 -> 0.07916666667
B6: Free State | C6: 12 | D6: 13 | E6: 13 | F6: 13 | G6: 13 | H6: 13 | I6: 13 | J6: =(I6-C6)/C6 -> 0.08333333333 | K6: =I6/240 -> 0.05416666667
B7: Gauteng | C7: 85 | D7: 87 | E7: 84 | F7: 85 | G7: 86 | H7: 85 | I7: 86 | J7: 0.01176470588 | K7: 0.3583333333
B8: KwaZulu-Natal | C8: 47 | D8: 48 | E8: 51 | F8: 51 | G8: 51 | H8: 49 | I8: 49 | J8: 0.04255319149 | K8: 0.2041666667
B9: Limpopo | C9: 6 | D9: 6 | E9: 6 | F9: 6 | G9: 6 | H9: 6 | I9: 6 | J9: 0 | K9: 0.025
B10: Mpumalanga | C10: 12 | D10: 12 | E10: 12 | F10: 11 | G10: 11 | H10: 10 | I10: 10 | J10: -0.1666666667 | K10: 0.04166666667
B11: North West | C11: 17 | D11: 16 | E11: 15 | F11: 15 | G11: 15 | H11: 13 | I11: 13 | J11: -0.2352941176 | K11: 0.05416666667
B12: Northern Cape | C12: 6 | D12: 6 | E12: 6 | F12: 6 | G12: 6 | H12: 4 | I12: 5 | J12: -0.1666666667 | K12: 0.02083333333
B13: Western Cape | C13: 38 | D13: 38 | E13: 38 | F13: 37 | G13: 38 | H13: 39 | I13: 39 | J13: 0.02631578947 | K13: 0.1625
B14: South Africa | C14: 240 | D14: 244 | E14: 243 | F14: 242 | G14: 244 | H14: 238 | I14: 240 | J14: 0 | K14: 1
B15: Source: Medpages, www.medpages.co.za, Hospital Departments-ICU statistics, accessed 22 August 2024
B16: a A hospital unit with special equipment and specially trained personnel for the care of seriously ill patients requiring immediate and continuous attention.
B17: b As at 3 June 2018.
B18: c As at 10 July 2019.
B19: d As at 1 September 2020.
B20: e As at 26 March 2021.
B21: f As at 20 April 2022.
B22: g As at 6 July 2023.
B23: h As at 22 August 2024.
B24: i CRA calculations.

Sheet Hospital av.lengthofstay.8-23
B2: Average length of stay in public hospitals by province, 2008-2022/23
B4: Province | C4: —Average length of staya (days)—
C5: 2008 | D5: 2010 | E5: 2012 | F5: 2014 | G5: 2016 | H5: 2017/18 | I5: 2018/19 | J5: 2019/20 | K5: 2020/21 | L5: 2021/22 | M5: 2022/23
B6: Eastern Cape | C6: 7.7 | D6: 7.7 | E6: 7.8 | F6: 7.3 | G6: 7.1 | H6: 7.3 | I6: 6.8 | J6: 6.8 | K6: 6.3 | L6: 6.4 | M6: 6.9
B7: Free State | C7: 5.7 | D7: 5.8 | E7: 6 | F7: 6 | G7: 5.7 | H7: 5.5 | I7: 5.6 | J7: 5.6 | K7: 5.7 | L7: 5.9 | M7: 5.7
B8: Gauteng | C8: 6 | D8: 6.1 | E8: 6.2 | F8: 6.5 | G8: 5.9 | H8: 6.7 | I8: 6 | J8: 6.7 | K8: 6.9 | L8: 7 | M8: 7.2
B9: KwaZulu-Natal | C9: 7.1 | D9: 7.7 | E9: 7.5 | F9: 7.1 | G9: 7 | H9: 6.8 | I9: 6.8 | J9: 6.6 | K9: 6.3 | L9: 6.4 | M9: 6.4
B10: Limpopo | C10: 5.8 | D10: 5.9 | E10: 5.9 | F10: 5.7 | G10: 5.6 | H10: 5.5 | I10: 5.4 | J10: 5.3 | K10: 5.1 | L10: 5.3 | M10: 5.4
B11: Mpumalanga | C11: 5.7 | D11: 5.1 | E11: 4.9 | F11: 4.9 | G11: 5.3 | H11: 4.6 | I11: 4.9 | J11: 4.5 | K11: 4.2 | L11: 4.5 | M11: 4.7
B12: North West | C12: 6.2 | D12: 6.4 | E12: 6.7 | F12: 7.2 | G12: 7.3 | H12: 7.2 | I12: 6.9 | J12: 6.8 | K12: 6 | L12: 6.3 | M12: 6.1
B13: Northern Cape | C13: 3.4 | D13: 4 | E13: 4 | F13: 4.6 | G13: 4.9 | H13: 4.7 | I13: 5 | J13: 5.1 | K13: 5.2 | L13: 5.4 | M13: 5.3
B14: Western Cape | C14: 6.4 | D14: 6.1 | E14: 6.8 | F14: 6.4 | G14: 5.7 | H14: 5.6 | I14: 5.5 | J14: 5.3 | K14: 5.6 | L14: 5.6 | M14: 5.6
B15: South Africa | C15: 6.4 | D15: 6.5 | E15: 6.6 | F15: 6.5 | G15: 6.2 | H15: 6.2 | I15: 6 | J15: 6.1 | K15: 5.9 | L15: 6.1 | M15: 6.2
B16: Source: Reply by the Minister of Health to parliamentary question 252 by Ms N V Mente (EFF), 16 February 2018. HST, www.hst.org,za, SAHR 2018, December 2018, Table 42, p216; SAHR 2019. December 2019. Table 33, p298; SAHR 2020, December 2020, Table 22, p257; SAHR 2021, April 2022, Table 15, p352; SAHR 2022, September 2023, Table 18, p89; SAHR 2023, October 2024, Table 11, p49
B17: a Refers to the average number of days that patients spend in hospital. It is calculated as follows: total number of inpatient days during a year plus half the number of day patients, divided by the number of separations (deaths, discharges and transfers out).

Sheet Laboratories

Sheet Blood trans labs by prov.24
C2: Laboratories, medical equipment, other
C4: Blood transfusion servicesa by province, 2024
C6: Province | D6: Accredited providers | E6: Proportion of total accreditedb | F6: Suspended/withdrawn providers | G6: Proportion of total suspended/withdrawnb
C7: Eastern Cape | D7: 15 | E7: =D7/163 -> 0.09202453988 | F7: 0 | G7: =F7/13 -> 0
C8: Free State | D8: 10 | E8: =D8/163 -> 0.06134969325 | F8: 1 | G8: =F8/13 -> 0.07692307692
C9: Gauteng | D9: 54 | E9: 0.3312883436 | F9: 3 | G9: 0.2307692308
C10: KwaZulu-Natal | D10: 28 | E10: 0.1717791411 | F10: 5 | G10: 0.3846153846
C11: Limpopo | D11: 11 | E11: 0.06748466258 | F11: 2 | G11: 0.1538461538
C12: Mpumalanga | D12: 18 | E12: 0.1104294479 | F12: 1 | G12: 0.07692307692
C13: North West | D13: 10 | E13: 0.06134969325 | F13: 0 | G13: 0
C14: Northern Cape | D14: 6 | E14: 0.03680981595 | F14: 0 | G14: 0
C15: Western Cape | D15: 11 | E15: 0.06748466258 | F15: 1 | G15: 0.07692307692
C16: South Africa | D16: =SUM(D7:D15) -> 163 | E16: 1 | F16: =SUM(F7:F15) -> 13 | G16: 1
C17: Source: South African National Accreditation System (SANAS), www.sanas.co.za, Directory of accredited facilities, accessed 23 August 2024
C18: a Services such as blood collection, processing, testing, virology, blood grouping and reference laboratory.
C19: b CRA calculations.

Sheet Medical labs by province. 24
D2: Medical laboratories by province, 2024
D4: Province | E4: Accredited medical laboratories | F4: Proportion of total accrediteda | G4: Suspended/expired/withdrawn facilities | H4: Proportion of total suspended/withdrawna
D5: Eastern Cape | E5: 55 | F5: =E5/541 -> 0.101663586 | G5: 2 | H5: =G5/10 -> 0.2
D6: Free State | E6: 28 | F6: =E6/541 -> 0.05175600739 | G6: 1 | H6: =G6/10 -> 0.1
D7: Gauteng | E7: 202 | F7: 0.3733826248 | G7: 2 | H7: 0.2
D8: KwaZulu-Natal | E8: 99 | F8: 0.1829944547 | G8: 0 | H8: 0
D9: Limpopo | E9: 25 | F9: 0.04621072089 | G9: 0 | H9: 0
D10: Mpumalanga | E10: 28 | F10: 0.05175600739 | G10: 0 | H10: 0
D11: North West | E11: 19 | F11: 0.03512014787 | G11: 0 | H11: 0
D12: Northern Cape | E12: 13 | F12: 0.02402957486 | G12: 0 | H12: 0
D13: Western Cape | E13: 72 | F13: 0.1330868762 | G13: 5 | H13: 0.5
D14: South Africa | E14: =SUM(E5:E13) -> 541 | F14: 1 | G14: =SUM(G5:G13) -> 10 | H14: 1
D15: Source: SANAS, www.sanas.co.za, Directory of accredited facilities, accessed 26 August 2024
D16: a CRA calculations.

Sheet Ambulance services

Sheet Ambulances.19.24
B2: Ambulance services provider organisations by province, 2019-24
C4: —Number of service provider organisations—
B5: Province | C5: 2019 | D5: 2020 | E5: 2021 | F5: 2022 | G5: 2023 | H5: 2024 | I5: Proportion of totala (2024) | J5: Change (2019-24)a
B6: Eastern Cape | C6: 76 | D6: 77 | E6: 75 | F6: 75 | G6: 77 | H6: 82 | I6: =H6/834 -> 0.09832134293 | J6: =(H6-C6)/C6 -> 0.07894736842
B7: Free State | C7: 40 | D7: 42 | E7: 43 | F7: 42 | G7: 43 | H7: 45 | I7: =H7/834 -> 0.05395683453 | J7: =(H7-C7)/C7 -> 0.125
B8: Gauteng | C8: 205 | D8: 209 | E8: 210 | F8: 219 | G8: 226 | H8: 236 | I8: 0.2829736211 | J8: 0.1512195122
B9: KwaZulu-Natal | C9: 180 | D9: 182 | E9: 182 | F9: 188 | G9: 197 | H9: 207 | I9: 0.2482014388 | J9: 0.15
B10: Limpopo | C10: 42 | D10: 48 | E10: 46 | F10: 48 | G10: 55 | H10: 56 | I10: 0.06714628297 | J10: 0.3333333333
B11: Mpumalanga | C11: 33 | D11: 34 | E11: 34 | F11: 39 | G11: 40 | H11: 43 | I11: 0.051558753 | J11: 0.303030303
B12: North West | C12: 31 | D12: 30 | E12: 32 | F12: 37 | G12: 40 | H12: 40 | I12: 0.0479616307 | J12: 0.2903225806
B13: Northern Cape | C13: 32 | D13: 33 | E13: 31 | F13: 32 | G13: 34 | H13: 33 | I13: 0.03956834532 | J13: 0.03125
B14: Western Cape | C14: 73 | D14: 81 | E14: 81 | F14: 80 | G14: 85 | H14: 92 | I14: 0.1103117506 | J14: 0.2602739726
B15: South Africa | C15: 712 | D15: 736 | E15: 734 | F15: 760 | G15: 797 | H15: 834 | I15: 1 | J15: 0.1713483146
B16: Source: Medpages, www.medpages.co.za, Organisations, accessed 10 July 2019; 24 August 2020; 26 March 2021; 8 March 2022; 15 April 2023; 26 August 2024
B17: a CRA calculations.

Sheet Pharmacies

Sheet Pharmacies by group.14-24
B2: Pharmacies by pharmacy group, 2014-24
B4: Pharmacy group | C4: —Number of pharmacies— | I4: Change 2014-24
C5: 2014a | D5: 2016b | E5: 2018c | F5: 2020d | G5: 2022e | H5: 2024f
B6: Afrimed | C6: 22 | D6: 21 | E6: 18 | F6: 19 | G6: 17 | H6: 21 | I6: =(H6-C6)/C6 -> -0.04545454545
B7: Alpha Pharm | C7: 401 | D7: 383 | E7: 376 | F7: 360 | G7: 344 | H7: 412 | I7: 0.02743142145
B8: Arrie Nel | C8: 28 | D8: 32 | E8: 35 | F8: 71 | G8: 81 | H8: 123 | I8: 3.392857143
B9: Clicks | C9: 365 | D9: 469 | E9: 521 | F9: 609 | G9: 680 | H9: 807 | I9: 1.210958904
B10: Clinix | C10: 7 | D10: 7 | E10: 6 | F10: 6 | G10: 8 | H10: 9 | I10: 0.2857142857
B11: Courier | C11: 14 | D11: 13 | E11: 13 | F11: 11 | G11: 11 | H11: 10 | I11: -0.2857142857
B12: Dis-Chem | C12: 86 | D12: 116 | E12: 137 | F12: 185 | G12: 231 | H12: 282 | I12: 2.279069767
B13: Durbell | C13: 5 | D13: 10 | E13: N/A | F13: N/A | G13: N/A | H13: N/A | I13: —
B14: Essential Health | C14: 7 | D14: 6 | E14: 6 | F14: 7 | G14: 8 | H14: 6 | I14: =(H14-C14)/C14 -> -0.1428571429
B15: Hyper Pharm (PMA) | C15: 2 | D15: 2 | E15: 2 | F15: 3 | G15: 4 | H15: 3 | I15: =(H15-C15)/C15 -> 0.5
B16: Independent Community Pharmacy Association (ICPA) | C16: 1135 | D16: 1164 | E16: 1222 | F16: 1356 | G16: 1341 | H16: 1289 | I16: =(H16-C16)/C16 -> 0.1356828194
B17: Independent | C17: 325 | D17: 286 | E17: 279 | F17: 269 | G17: 234 | H17: N/A | I17: —
B18: Independent hospitals | C18: 39 | D18: 35 | E18: 35 | F18: 33 | G18: 30 | H18: 28 | I18: =(H18-C18)/C18 -> -0.2820512821
B19: Leading | C19: 19 | D19: 9 | E19: 9 | F19: 6 | G19: 5 | H19: 3 | I19: -0.8421052632
B20: Lenmed Health | C20: 8 | D20: 7 | E20: 7 | F20: 7 | G20: 8 | H20: 9 | I20: 0.125
B21: Life Healthcare | C21: 48 | D21: 50 | E21: 50 | F21: 49 | G21: 50 | H21: 50 | I21: 0.04166666667
B22: Link | C22: 310 | D22: 316 | E22: 310 | F22: 289 | G22: 246 | H22: 232 | I22: -0.2516129032
B23: Medicare | C23: 12 | D23: 17 | E23: 29 | F23: 44 | G23: 30 | H23: 13 | I23: 0.08333333333
B24: Mediclinic | C24: 54 | D24: 54 | E24: 55 | F24: 58 | G24: 57 | H24: 57 | I24: 0.05555555556
B25: Melomed | C25: 3 | D25: 3 | E25: 3 | F25: 3 | G25: 3 | H25: 5 | I25: 0.6666666667
B26: Mining hospitals | C26: 12 | D26: 9 | E26: 9 | F26: 9 | G26: 10 | H26: 10 | I26: -0.1666666667
B27: ML Manco | C27: 9 | D27: 8 | E27: 8 | F27: 8 | G27: 8 | H27: 7 | I27: -0.2222222222
B28: Netcare | C28: 95 | D28: 97 | E28: 64 | F28: 64 | G28: 64 | H28: 84 | I28: -0.1157894737
B29: Pharmasave | C29: 2 | D29: 1 | E29: 1 | F29: 1 | G29: N/A | H29: 1 | I29: -0.5
B30: Pick n Pay | C30: 31 | D30: 30 | E30: 33 | F30: 34 | G30: 23 | H30: 6 | I30: -0.8064516129
B31: Pro Group | C31: 5 | D31: 5 | E31: 5 | F31: 5 | G31: 5 | H31: 2 | I31: -0.6
B32: Pure Pharmacy | C32: N/A | D32: 42 | E32: 34 | F32: 32 | G32: N/A | H32: N/A | I32: —
B33: Ring | C33: 26 | D33: 27 | E33: 27 | F33: 26 | G33: 24 | H33: 11 | I33: =(H33-C33)/C33 -> -0.5769230769
B34: S Buys | C34: 7 | D34: 4 | E34: 4 | F34: 4 | G34: 2 | H34: 3 | I34: -0.5714285714
B35: Scriptnet | C35: 1307 | D35: 1274 | E35: 1271 | F35: 1342 | G35: 1344 | H35: 1342 | I35: 0.02677888294
B36: Shoprite | C36: 151 | D36: 156 | E36: N/A | F36: N/A | G36: N/A | H36: 156 | I36: 0.03311258278
B37: Spar | C37: 39 | D37: 57 | E37: 77 | F37: 86 | G37: 120 | H37: 148 | I37: 2.794871795
B38: Van Heerden | C38: 13 | D38: 13 | E38: 15 | F38: 17 | G38: 16 | H38: 24 | I38: 0.8461538462
B39: We Care | C39: 424 | D39: 399 | E39: 387 | F39: 358 | G39: 341 | H39: 263 | I39: -0.3797169811
B40: Total | C40: 5014 | D40: =SUM(D6:D39) -> 5122 | E40: 5048 | F40: =SUM(F6:F39) -> 5371 | G40: 5345 | H40: =SUM(H6:H39) -> 5416 | I40: 0.08017550858
B41: Source: Medpages, www.medpages.co.za, Pharmaceutical (Pharmacies, Distributors, etc.) in South Africa , accessed 27 February 2017; 4 July 2018; 11 July 2019; 1 September 2020; 26 March 2021; 8 March 2022; 12 April 2023; 26 August 2024
B42: a As at 1 December 2014.
B43: b As at 28 July 2016.
B44: c As at 12 June 2018.
B45: d As at 1 September 2020.
B46: e As at 8 March 2022.
B47: f As at 26 August 2024.
B48: N/A — Not available.

Sheet Vaccination&Immunisation

Sheet Vaccination by province.17-23
B2: Vaccination and immunisation
B4: Vaccination of childrena by province, 2017/18-2022/23
C6: —DTaPb-IPVc-Hibd—HBVe 3rd dose coverage—
B7: Province | C7: 2017/18 | D7: 2018/19 | E7: 2019/20 | F7: 2020/21 | G7: 2021/22 | H7: 2022/23
B8: Eastern Cape | C8: 0.634 | D8: 0.671 | E8: 0.698 | F8: 0.672 | G8: 0.871 | H8: 0.789
B9: Free State | C9: 0.779 | D9: 0.786 | E9: 0.83 | F9: 0.798 | G9: 0.862 | H9: 0.824
B10: Gauteng | C10: 0.806 | D10: 0.842 | E10: 0.903 | F10: 0.902 | G10: 0.88 | H10: 0.833
B11: KwaZulu-Natal | C11: 0.754 | D11: 0.779 | E11: 0.823 | F11: 0.786 | G11: 0.839 | H11: 0.832
B12: Limpopo | C12: 0.826 | D12: 0.975 | E12: 0.933 | F12: 0.79 | G12: 1.056 | H12: 0.919
B13: Mpumalanga | C13: 0.79 | D13: 0.904 | E13: 0.909 | F13: 0.957 | G13: 0.907 | H13: 0.834
B14: North West | C14: 0.759 | D14: 0.779 | E14: 0.623 | F14: 0.729 | G14: 0.641 | H14: 0.771
B15: Northern Cape | C15: 0.956 | D15: 0.969 | E15: 1.005 | F15: 0.937 | G15: 0.809 | H15: 0.821
B16: Western Cape | C16: 0.788 | D16: 0.929 | E16: 0.961 | F16: 0.983 | G16: 0.925 | H16: 0.859
B17: South Africa | C17: 0.766 | D17: 0.83 | E17: 0.845 | F17: 0.827 | G17: 0.876 | H17: 0.835
B18: Source: HST, SAHR 2020, December 2020, Table 19, p250; SAHR 2021, April 2022, Table 12, p345; SAHR 2022, September 2023, Table 15, p71; SAHR 2023, October 2024, Table 8, p40
B19: a Children under 1 year who received specific vaccines.
B20: b Diphtheria-Tetanus-Pertussis.
B21: c Inactivated Polio Vaccine.
B22: d Haemophilus Influenzae Type B.
B23: e Hepatitis B.

Sheet Rates of immunisation.21.22
C2: Rates of immunisation and TB treatment, selected countries, 2021 and 2022
C4: Proportion of children aged 12-23 months immunised against measles | D4: TB treatment success ratea | E4: TB detection rateb
B6: Country | C6: 2022 | D6: 2021 | E6: 2022
B7: Australia | C7: 96 | D7: 88 | E7: 87
B8: Botswana | C8: 90 | D8: 76 | E8: 44
B9: Brazil | C9: 81 | D9: 65 | E9: 83
B10: Chile | C10: 94 | D10: 74 | E10: 87
B11: China | C11: 99 | D11: 94 | E11: 67
B12: Denmark | C12: 95 | D12: 20 | E12: 87
B13: Egypt | C13: 96 | D13: 88 | E13: 74
B14: France | C14: 94 | D14: 37 | E14: 82
B15: Germany | C15: 97 | D15: 67 | E15: 91
B16: Ghana | C16: 95 | D16: 87 | E16: 37
B17: Greece | C17: 97 | D17: N/A | E17: 130
B18: Hong Kong | C18: N/A | D18: 74 | E18: 87
B19: India | C19: 95 | D19: 87 | E19: 80
B20: Indonesia | C20: 84 | D20: 87 | E20: 67
B21: Ireland | C21: 90 | D21: 3 | E21: 87
B22: Israel | C22: 99 | D22: 86 | E22: 87
B23: Italy | C23: 94 | D23: N/A | E23: 85
B24: Japan | C24: 98 | D24: 64 | E24: 87
B25: Kazakhstan | C25: 99 | D25: N/A | E25: 66
B26: Lithuania | C26: 87 | D26: 86 | E26: 87
B27: Mexico | C27: 86 | D27: 71 | E27: 70
B28: Mozambique | C28: 84 | D28: 94 | E28: 92
B29: Nigeria | C29: 60 | D29: 91 | E29: 59
B30: Pakistan | C30: 82 | D30: 94 | E30: 70
B31: Philippines | C31: 69 | D31: 80 | E31: 59
B32: Poland | C32: 71 | D32: N/A | E32: 88
B33: Russia | C33: 97 | D33: 60 | E33: 100
B34: Saudi Arabia | C34: 98 | D34: 90 | E34: 87
B35: South Africa | C35: 86 | D35: 79 | E35: 77
B36: Spain | C36: 96 | D36: 37 | E36: 79
B37: Switzerland | C37: 96 | D37: 75 | E37: 87
B38: Turkey | C38: 95 | D38: 80 | E38: 83
B39: Uganda | C39: 90 | D39: 88 | E39: 100
B40: United Kingdom | C40: 90 | D40: 86 | E40: 92
B41: United States | C41: 92 | D41: 76 | E41: 87
B42: Venezuela | C42: 68 | D42: 84 | E42: 75
B43: Source: World Bank, www.worldbank.org, World Development Indicators, accessed 26 August 2024
B44: a Proportion of registered cases, 2021.
B45: b Proportion of estimated cases, 2022.
B46: N/A —Not available.

Sheet Medical tourism

Sheet Med tourists to SA.24
C2: Medical tourism
B4: Medical tourists to South Africa, 2024
C6: Country | D6: Medical touristsa | E6: Total number of tourists | F6: Medical as a proportion of totalb
C7: Africa | D7: 221 | E7: 515245 | F7: =D7/E7 -> 0.0004289221632
C8: SADC | D8: 182 | E8: 501743 | F8: =D8/E8 -> 0.000362735504
C9: Angola | D9: 27 | E9: 3457 | F9: 0.007810240093
C10: Botswana | D10: 23 | E10: 25933 | F10: 0.0008869008599
C11: Congo(DRC) | D11: 23 | E11: 2502 | F11: 0.009192645883
C12: Eswatini | D12: 7 | E12: 56254 | F12: 0.0001244355957
C13: Lesotho | D13: 15 | E13: 90842 | F13: 0.0001651218599
C14: Madagascar | D14: 1 | E14: 355 | F14: 0.002816901408
C15: Malawi | D15: 10 | E15: 11708 | F15: 0.0008541168432
C16: Mauritius | D16: 2 | E16: 1594 | F16: =D16/E16 -> 0.001254705144
C17: Mozambique | D17: 15 | E17: 122060 | F17: 0.0001228903818
C18: Namibia | D18: 17 | E18: 11989 | F18: 0.001417966469
C19: Seychelles | D19: 1 | E19: 523 | F19: 0.001912045889
C20: Tanzania | D20: 7 | E20: 3029 | F20: 0.002310993727
C21: Zambia | D21: 6 | E21: 12370 | F21: 0.0004850444624
C22: Zimbabwe | D22: 28 | E22: 159127 | F22: 0.0001759600822
C23: Other African | D23: 39 | E23: 13502 | F23: 0.002888460969
C24: Overseas | D24: 59 | E24: 209545 | F24: 0.0002815624329
C25: Asia | D25: 7 | E25: 17778 | F25: =D25/E25 -> 0.0003937450782
C26: Australasia | D26: 1 | E26: 7064 | F26: =D26/E26 -> 0.0001415628539
C27: Central and South America | D27: 1 | E27: 5738 | F27: =D27/E27 -> 0.0001742767515
C28: Europe | D28: 44 | E28: 145532 | F28: 0.0003023390045
C29: Middle East | D29: N/A | E29: 2971 | F29: —
C30: North America | D30: 6 | E30: 30462 | F30: 0.0001969667126
C31: TOTAL | D31: 280 | E31: 725674 | F31: =D31/E31 -> 0.0003858481908
C32: Source: Stats SA, Tourism and migration January 2024, Statistical release P0351, 26 March 2024, Annexure C, pp17-19
C33: a As at February 2024.
C34: N/A —Not available.

Sheet HEALTH INDICATORS

Sheet Teenage pregnancy

Sheet Teenage pregnancybyage.15-23
B2: HEALTH INDICATORS
B4: Teenage pregnancy
C6: Teenage pregnancya by age, 2015-23
C8: Age | D8: 2015 | E8: 2016 | F8: 2017 | G8: 2018 | H8: 2019 | I8: 2021 | J8: 2022 | K8: 2023
C9: 14 | D9: 0.006 | E9: 0.007 | F9: 0.006 | G9: 0.003 | H9: 0.004 | I9: 0 | J9: 0.003 | K9: 0.006
C10: 15 | D10: 0.019 | E10: 0.017 | F10: 0.012 | G10: 0.017 | H10: 0.017 | I10: 0.017 | J10: 0.009 | K10: 0.013
C11: 16 | D11: 0.04 | E11: 0.033 | F11: 0.038 | G11: 0.036 | H11: 0.039 | I11: 0.026 | J11: 0.024 | K11: 0.015
C12: 17 | D12: 0.062 | E12: 0.065 | F12: 0.059 | G12: 0.058 | H12: 0.066 | I12: 0.027 | J12: 0.036 | K12: 0.043
C13: 18 | D13: 0.097 | E13: 0.071 | F13: 0.077 | G13: 0.093 | H13: 0.102 | I13: 0.038 | J13: 0.074 | K13: 0.062
C14: 19 | D14: 0.097 | E14: 0.107 | F14: 0.107 | G14: 0.097 | H14: 0.125 | I14: 0.068 | J14: 0.104 | K14: 0.078
C15: Totala | D15: 0.053 | E15: 0.051 | F15: 0.051 | G15: 0.052 | H15: 0.057 | I15: 0.027 | J15: 0.038 | K15: 3.4%
C16: Source: Stats SA, General Household Survey, 2015-23 data
C17: a Of females aged 14 to 19.
C18: b Figures for 2020 are not available.

Sheet Births and Maternal Care

Sheet Births

Sheet Recorded live births.2002-22
B3: Births and maternal health
B5: Births
B7: Recorded live birthsa by sex, 2002-22
B9: Year | C9: Male | D9: Female | E9: Totalb | F9: Total population | G9: Births as a proportion of total population ͨ
B11: 2002 | C11: 488377 | D11: 487118 | E11: 975495 | F11: 45454200 | G11: =(E11/F11) -> 0.0214610531
B12: 2003 | C12: 487564 | D12: 483245 | E12: 970809 | F12: 46429800 | G12: =(E12/F12) -> 0.02090917902
B13: 2004 | C13: 517422 | D13: 512002 | E13: 1029424 | F13: 46586607 | G13: 0.02209699453
B14: 2005 | C14: 538809 | D14: 532319 | E14: 1071128 | F14: 46888200 | G14: 0.02284429771
B15: 2006 | C15: 553837 | D15: 548806 | E15: 1102643 | F15: 46888200 | G15: 0.02351642844
B16: 2007 | C16: 547990 | D16: 540537 | E16: 1088527 | F16: 47850700 | G16: 0.02274840284
B17: 2008 | C17: 559512 | D17: 553012 | E17: 1112524 | F17: 48687000 | G17: 0.02285053505
B18: 2009 | C18: 534181 | D18: 526969 | E18: 1061150 | F18: 49320500 | G18: 0.02151539421
B19: 2010 | C19: 521814 | D19: 512620 | E19: 1034434 | F19: 49991300 | G19: 0.02069228046
B20: 2011 | C20: 526293 | D20: 517160 | E20: 1043453 | F20: 51770560 | G20: 0.02015533539
B21: 2012 | C21: 526564 | D21: 517349 | E21: 1043913 | F21: 52274943 | G21: =(E21/F21) -> 0.01996966309
B22: 2013 | C22: 520240 | D22: 510719 | E22: 1030959 | F22: 52981991 | G22: 0.01945866851
B23: 2014 | C23: 522105 | D23: 512753 | E23: 1034858 | F23: 54001953 | G23: 0.01916334396
B24: 2015 | C24: 496514 | D24: 488763 | E24: 985277 | F24: 54956920 | G24: 0.01792816992
B25: 2016 | C25: 468727 | D25: 459152 | E25: 927879 | F25: 55908865 | G25: 0.01659627682
B26: 2017 | C26: 474861 | D26: 466357 | E26: 941218 | F26: 56521948 | G26: =(E26/F26) -> 0.01665225693
B27: 2018 | C27: 488574 | D27: 478894 | E27: 967468 | F27: 57725606 | G27: 0.01675977208
B28: 2019 | C28: 498431 | D28: 489448 | E28: 987879 | F28: 58775022 | G28: 0.01680780315
B29: 2020 | C29: 508443 | D29: 499107 | E29: 1007550 | F29: 59622350 | G29: =(E29/F29) -> 0.01689886427
B30: 2021 | C30: 504854 | D30: 497101 | E30: 1001955 | F30: 60142978 | G30: =(E30/F30) -> 0.01665955085
B31: 2022 | C31: 470015 | D31: 462189 | E31: 932204 | F31: 62027503 | G31: =(E31/F31) -> 0.01502888162
B32: 2002-22 | C32: =(C31-C11)/C11 -> -0.03759800318 | D32: =(D31-D11)/D11 -> -0.05117651165 | E32: =(E31-E11)/E11 -> -0.04437849502 | F32: =(F31-F11)/F11 -> 0.3646154371 | G32: ─
B33: Source: Stats SA, Recorded live births 2022, Statistical release P0305, 13 December 2023, Table 11, p25; Census counts and population estimates
B34: a Generally, more males than females are born. In 2022, the male/female ratio of babies was 102 males per 100 females.
B35: b Figures include updated births at 31 July 2023 and are thus higher in number than those in the table that follows.
B36: c CRA calculations, based on census counts and population estimates.

Sheet Births by age of mother 16-22#
B2: Births by age of mother (actual numbers), 2016-22
B4: Year | C4: 10-14 | D4: 15-19 | E4: 20-24 | F4: 25-29 | G4: 30-34 | H4: 35-39 | I4: 40-44 | J4: 45-49 | K4: 50-54 | L4: Othera | M4: Totalb | N4: 15-19 | O4: 20-24 | P4: 25-29 | Q4: 30-34 | R4: 35-39 | S4: 40-44 | T4: 45-49 | U4: 50-54 | V4: Othera
B5: 2016 | C5: 2463 | D5: 122844 | E5: 233956 | F5: 233696 | G5: 190274 | H5: 100369 | I5: 30547 | J5: 2112 | K5: 152 | L5: 2940 | M5: 919353 | N5: =(D5/M5) -> 0.1336200567 | O5: =(E5/M5) -> 0.2544789651 | P5: =(F5/M5) -> 0.2541961575 | Q5: =(G5/M5) -> 0.2069651157 | R5: =(H5/M5) -> 0.1091735166 | S5: =(I5/M5) -> 0.03322662786 | T5: =(J5/M5) -> 0.002297267752 | U5: =(K5/M5) -> 0.000165333664 | V5: =(L5/M5) -> 0.003197901133
B6: 2017 | C6: 2023 | D6: 109505 | E6: 235527 | F6: 240808 | G6: 195964 | H6: 105266 | I6: 31281 | J6: 2268 | K6: 181 | L6: 9267 | M6: 932090 | N6: =(D6/M6) -> 0.1174832902 | O6: =(E6/M6) -> 0.2526869723 | P6: =(F6/M6) -> 0.2583527342 | Q6: =(G6/M6) -> 0.2102415003 | R6: =(H6/M6) -> 0.1129354461 | S6: =(I6/M6) -> 0.03356006394 | T6: =(J6/M6) -> 0.002433241425 | U6: =(K6/M6) -> 0.0001941872566 | V6: =(L6/M6) -> 0.009942172966
B7: 2018 | C7: 1810 | D7: 96714 | E7: 242444 | F7: 251928 | G7: 205450 | H7: 114958 | I7: 32589 | J7: 2606 | K7: 220 | L7: 5919 | M7: 954638 | N7: 0.1013096064 | O7: 0.2539643299 | P7: 0.2638989858 | Q7: 0.215212468 | R7: 0.1204205154 | S7: 0.03413754743 | T7: 0.002729830575 | U7: 0.0002304538474 | V7: 0.006200256013
B8: 2019 | C8: 3440 | D8: 111875 | E8: 249622 | F8: 262540 | G8: 215274 | H8: 124533 | I8: 33809 | J8: 2526 | K8: 143 | L8: 13226 | M8: 1016988 | N8: 0.1100062144 | O8: 0.2454522571 | P8: 0.2581544718 | Q8: 0.2116780139 | R8: 0.1224527723 | S8: 0.03324424674 | T8: 0.002483805119 | U8: 0.0001406112953 | V8: 0.01300506987
B9: 2020 | C9: 2665 | D9: 91580 | E9: 214875 | F9: 234514 | G9: 197713 | H9: 118687 | I9: 33527 | J9: 2689 | K9: 196 | L9: 2857 | M9: 899303
B10: 2021 | C10: 2720 | D10: 106744 | E10: 220163 | F10: 242136 | G10: 207282 | H10: 128143 | I10: 35279 | J10: 2445 | K10: 125 | L10: 4720 | M10: 949757
B11: 2022 | C11: 3598 | D11: 101569 | E11: 203766 | F11: 232276 | G11: 203622 | H11: 127357 | I11: 36797 | J11: 2625 | K11: 134 | L11: 242 | M11: 911986
B12: 2016-22 | C12: =(C11-C5)/C5 -> 0.460820138 | D12: =(D11-D5)/D5 -> -0.1731871316 | E12: -0.1290413582 | F12: -0.006076270026 | G12: 0.07015146578 | H12: 0.268887804 | I12: 0.2046027433 | J12: 0.2428977273 | K12: -0.1184210526 | L12: -0.9176870748 | M12: -0.008013244097
B13: Source: Stats SA, Recorded live births 2020, Statistical release P0305, 11 November 2021, Appendix D, p39; Recorded live births 2021, Statistical release P0305, 19 December 2022, Table 10, p21; Recorded live births 2022, Statistical release P0305, 13 December 2023, Table 10, p22
B14: a Births by mothers aged below 10 or over 54, including unknown/unspecified.
B15: b Totals are different from those in the previous table on births, which is based on an updated births register.
C16: Peak
N19: =N7/954638 -> 1.061235844e-07 | O19: 2.66032077e-07 | P19: 2.764388028e-07 | Q19: 2.254388239e-07 | R19: 1.261425959e-07 | S19: 3.575967794e-08 | T19: 2.859545267e-09 | U19: 2.414044354e-10 | V19: 6.494876606e-09 | W19: 0 | X19: 0

Sheet Births by age of mum 16-22
B2: Births by age of mother (proportions), 2016-22
B4: Year | C4: 10-14 | D4: 15-19 | E4: 20-24 | F4: 25-29 | G4: 30-34 | H4: 35-39 | I4: 40-44 | J4: 45-49 | K4: 50-54 | L4: Othera | M4: Totalb
B5: 2016 | C5: 0.00267905799 | D5: 0.1336200567 | E5: 0.2544789651 | F5: 0.2541961575 | G5: 0.2069651157 | H5: 0.1091735166 | I5: 0.03322662786 | J5: 0.002297267752 | K5: 0.000165333664 | L5: 0.003197901133 | M5: 1
B6: 2017 | C6: 0.002170391271 | D6: 0.1174832902 | E6: 0.2526869723 | F6: 0.2583527342 | G6: 0.2102415003 | H6: 0.1129354461 | I6: 0.03356006394 | J6: 0.002433241425 | K6: 0.0001941872566 | L6: 0.009942172966 | M6: 1
B7: 2018 | C7: 0.001896006654 | D7: 0.1013096064 | E7: 0.2539643299 | F7: 0.2638989858 | G7: 0.215212468 | H7: 0.1204205154 | I7: 0.03413754743 | J7: 0.002729830575 | K7: 0.0002304538474 | L7: 0.006200256013 | M7: 1
B8: 2019 | C8: 0.003382537454 | D8: 0.1100062144 | E8: 0.2454522571 | F8: 0.2581544718 | G8: 0.2116780139 | H8: 0.1224527723 | I8: 0.03324424674 | J8: 0.002483805119 | K8: 0.0001406112953 | L8: 0.01300506987 | M8: 1
B9: 2020 | C9: 0.002963406105 | D9: 0.1018344207 | E9: 0.2389350419 | F9: 0.2607730654 | G9: 0.2198513738 | H9: 0.131976653 | I9: 0.03728109436 | J9: 0.002990093439 | K9: 0.0002179465653 | L9: 0.003176904781 | M9: 1
B10: 2021 | C10: 0.002863890448 | D10: 0.1123908537 | E10: 0.2318098208 | F10: 0.2549452123 | G10: 0.2182474043 | H10: 0.13492188 | I10: 0.03714529085 | J10: 0.0025743427 | K10: 0.0001316126125 | L10: 0.004969692248 | M10: 1
B11: 2022 | C11: 0.003945236001 | D11: 0.1113712272 | E11: 0.2234310614 | F11: 0.2546925062 | G11: 0.2232731643 | H11: 0.1396479771 | I11: 0.0403482071 | J11: 0.002878333659 | K11: 0.0001469320801 | L11: 0.0002653549506 | M11: 1
B12: Source: CRA calculations
B13: a Births by mothers aged below 10 or over 54, including unknown/unspecified.
B14: b Figures should add up horizontally to 100% but may not, owing to rounding.

Sheet Maternal health

Sheet ANC1stvisit before 20 wks.6-23
B2: Maternal health
B4: Rate of antenatal first visitsa by province, 2006/07-2022/23
B6: Province | C6: 2006/07 | D6: 2008/09 | E6: 2010/11 | F6: 2014/15 | G6: 2016/17 | H6: 2018/19 | I6: 2019/20 | J6: 2020/21 | K6: 2021/22 | L6: 2022/23
B7: Eastern Cape | C7: 0.275 | D7: 0.276 | E7: 0.317 | F7: 0.488 | G7: 0.638 | H7: 0.617 | I7: 0.625 | J7: 0.625 | K7: 0.63 | L7: 0.635
B8: Free State | C8: 0.367 | D8: 0.398 | E8: 0.452 | F8: 0.586 | G8: 0.658 | H8: 0.652 | I8: 0.666 | J8: 0.613 | K8: 0.605 | L8: 0.621
B9: Gauteng | C9: 0.254 | D9: 0.243 | E9: 0.306 | F9: 0.484 | G9: 0.584 | H9: 0.647 | I9: 0.665 | J9: 0.633 | K9: 0.668 | L9: 0.693
B10: KwaZulu-Natal | C10: 0.309 | D10: 0.335 | E10: 0.369 | F10: 0.573 | G10: 0.702 | H10: 0.732 | I10: 0.745 | J10: 0.746 | K10: 0.742 | L10: 0.738
B11: Limpopo | C11: 0.358 | D11: 0.4 | E11: 0.416 | F11: 0.507 | G11: 0.657 | H11: 0.672 | I11: 0.69 | J11: 0.668 | K11: 0.667 | L11: 0.675
B12: Mpumalanga | C12: 0.295 | D12: 0.323 | E12: 0.36 | F12: 0.566 | G12: 0.717 | H12: 0.756 | I12: 0.774 | J12: 0.749 | K12: 0.743 | L12: 0.773
B13: North West | C13: 0.318 | D13: 0.271 | E13: 0.472 | F13: 0.601 | G13: 0.637 | H13: 0.69 | I13: 0.709 | J13: 0.68 | K13: 0.701 | L13: 0.712
B14: Northern Cape | C14: 0.454 | D14: 0.364 | E14: 0.396 | F14: 0.543 | G14: 0.647 | H14: 0.631 | I14: 0.65 | J14: 0.586 | K14: 0.563 | L14: 0.585
B15: Western Cape | C15: 0.383 | D15: 0.466 | E15: 0.62 | F15: 0.616 | G15: 0.696 | H15: 0.703 | I15: 0.719 | J15: 0.706 | K15: 0.726 | L15: 0.743
B16: South Africa | C16: 0.313 | D16: 0.329 | E16: 0.376 | F16: 0.539 | G16: 0.652 | H16: 0.681 | I16: 0.697 | J16: 0.679 | K16: 0.689 | L16: 0.701
B17: Source: HST, www.hst.org.za, DHB 2016/17, November 2017, Table 1, p72; SAHR 2018, December 2018, Table 22, p188; DHB 2018/19, February 2020, Figure 3, p7; DHB 2019/20 Data file, accessed 14 April 2021; SAHR 2021, April 2022, Table 11, p340; SAHR 2022, September 2023, Table 14, p61; SAHR 2023, October 2024, Table 7, p32
B18: a Measures the proportion of pregnant women who visit antenatal clinics for the first time before 20 weeks of their pregnancy. The denominator is the number of pregnant women who had at least one antenatal visit before delivery.

Sheet ANC iniated on arvt
B2: Antenatal clients initiated on ARTa, by province, 2014/15-2022/23
B4: Province | C4: 2014/15 | D4: 2015/16 | E4: 2016/17 | F4: 2017/18 | G4: 2018/19 | H4: 2019/20 | I4: 2020/21 | J4: 2021/22 | K4: 2022/23
B5: Eastern Cape | C5: 0.927 | D5: 0.944 | E5: 0.939 | F5: 0.884 | G5: 0.929 | H5: 0.953 | I5: 0.918 | J5: 0.904 | K5: 0.898
B6: Free State | C6: 0.894 | D6: 0.87 | E6: 0.949 | F6: 0.854 | G6: 0.929 | H6: 0.984 | I6: 0.981 | J6: 0.977 | K6: 0.951
B7: Gauteng | C7: 0.89 | D7: 0.948 | E7: 0.958 | F7: 0.958 | G7: 0.974 | H7: 0.972 | I7: 0.986 | J7: 0.993 | K7: 0.998
B8: KwaZulu-Natal | C8: 0.962 | D8: 0.973 | E8: 0.97 | F8: 0.976 | G8: 0.99 | H8: 0.984 | I8: 0.989 | J8: 0.989 | K8: 0.966
B9: Limpopo | C9: 0.928 | D9: 0.927 | E9: 0.952 | F9: 0.954 | G9: 0.977 | H9: 0.952 | I9: 0.968 | J9: 0.98 | K9: 0.973
B10: Mpumalanga | C10: 0.925 | D10: 0.955 | E10: 0.935 | F10: 0.991 | G10: 0.996 | H10: 0.988 | I10: 0.966 | J10: 0.976 | K10: 0.991
B11: North West | C11: 0.917 | D11: 0.881 | E11: 0.956 | F11: 0.917 | G11: 0.983 | H11: 0.981 | I11: 0.932 | J11: 0.903 | K11: 0.946
B12: Northern Cape | C12: 0.911 | D12: 0.924 | E12: 0.956 | F12: 0.874 | G12: 0.96 | H12: 0.934 | I12: 0.886 | J12: 0.904 | K12: 0.9
B13: Western Cape | C13: 0.793 | D13: 0.731 | E13: 0.788 | F13: 0.886 | G13: 0.753 | H13: 0.802 | I13: 0.679 | J13: 0.685 | K13: 0.633
B14: South Africa | C14: 0.912 | D14: 0.93 | E14: 0.951 | F14: 0.939 | G14: 0.958 | H14: 0.962 | I14: 0.949 | J14: 0.95 | K14: 0.941
B15: Source: HST, www.hst.org.za, DHB 2018/19 Data file, accessed 17 September 2020; DHB 2019/20 Data file, accessed 14 April 2021; SAHR 2022, September 2023, Table 13, p52; SAHR 2023, October 2024, Table 6, p28
B16: a Antiretroviral treatment. The antenatal client initiated on ART rate measures antenatal clients on ART as a proportion of the total number of antenatal clients who are HIV positive and not previously on ART.

Sheet Live birth by province.22.23
C2: Live births in facility by province, 2022/23
C4: Province | D4: Live births in facility | E4: Proportion of total
C5: Eastern Cape | D5: 99503 | E5: =D5/947395 -> 0.1050279978
C6: Free State | D6: 46291 | E6: =D6/947395 -> 0.04886135139
C7: Gauteng | D7: 214128 | E7: 0.2260176589
C8: KwaZulu-Natal | D8: 212530 | E8: 0.2243309285
C9: Limpopo | D9: 120626 | E9: 0.1273238723
C10: Mpumalanga | D10: 79570 | E10: 0.08398819922
C11: North West | D11: 59304 | E11: =D11/947395 -> 0.06259691048
C12: Northern Cape | D12: 22487 | E12: 0.02373561186
C13: Western Cape | D13: 92956 | E13: 0.09811746948
C14: South Africa | D14: 947395 | E14: 1
C15: Source: HST, www.hst.org.za, SAHR 2023, October 2024, Table 7, p33

Sheet Termination of pregnancy.

Sheet Termination of pregnancy.17-23
B2: Termination of pregnancya by province, 2017/18-2022/23
C4: Province | D4: 2017/18 | E4: 2018/19 | F4: 2019/20 | G4: 2020/21 | H4: 2021/22 | I4: 2022/23 | J4: Changeb 2017/18-2022/23
C5: Eastern Cape | D5: 10912 | E5: 12267 | F5: 12597 | G5: 9696 | H5: 13107 | I5: 14741 | J5: =(I5-D5)/D5 -> 0.3508980938
C6: Free State | D6: 7323 | E6: 8563 | F6: 7776 | G6: 6888 | H6: 7837 | I6: 8166 | J6: =(I6-D6)/D6 -> 0.1151167554
C7: Gauteng | D7: 18942 | E7: 20768 | F7: 23048 | G7: 22832 | H7: 26427 | I7: 33481 | J7: 0.7675535846
C8: KwaZulu-Natal | D8: 23048 | E8: 28595 | F8: 27441 | G8: 21754 | H8: 24204 | I8: 26200 | J8: 0.1367580701
C9: Limpopo | D9: 9758 | E9: 12467 | F9: 14960 | G9: 13660 | H9: 14408 | I9: 14926 | J9: 0.5296167247
C10: Mpumalanga | D10: 4331 | E10: 5559 | F10: 8127 | G10: 2494 | H10: 6706 | I10: 10004 | J10: 1.309859155
C11: North West | D11: 6615 | E11: 8363 | F11: 9806 | G11: 8367 | H11: 9222 | I11: 10160 | J11: 0.5359032502
C12: Northern Cape | D12: 1628 | E12: 1621 | F12: 1497 | G12: 1454 | H12: 1816 | I12: 2279 | J12: 0.3998771499
C13: Western Cape | D13: 20671 | E13: 18216 | F13: 19194 | G13: 16205 | H13: 16417 | I13: 18041 | J13: =(I13-D13)/D13 -> -0.127231387
C14: South Africa | D14: 104660 | E14: 116419 | F14: 124446 | G14: 103350 | H14: 120144 | I14: 137998 | J14: =(I14-D14)/D14 -> 0.3185362125
B15: Source: HST,SAHR 2021, April 2022, Table 11, p340; SAHR 2022, September 2023, Table 14, p63; SAHR 2023, October 2024, Table 7, p34
B16: a The Choice of Termination of Pregnancy Act was passed in South Africa in 1997, repealing the stringent restrictions of the Abortion and Sterilisation Act of 1975. The Act ensures the provision of abortion on demand for a variety of cases. Any woman of any age can get an abortion, if she is less than 13 weeks pregnant.
B17: b CRA calculations.

Sheet Still birth rate

Sheet Stillbirthratebyyear.01-23
B2: Still birthsa by year of death, 2001-2022/23
B4: Year | C4: Rate
B5: 2001 | C5: 27
B6: 2002 | C6: 29
B7: 2003 | C7: 27
B8: 2004 | C8: 24
B9: 2005 | C9: 24
B10: 2006 | C10: 24
B11: 2007 | C11: 23
B12: 2008 | C12: 22.3
B13: 2009 | C13: 23
B14: 2010 | C14: 22.7
B15: 2011 | C15: 22.5
B16: 2012 | C16: 21.8
B17: 2013 | C17: 21.5
B18: 2014 | C18: 20.7
B19: 2015 | C19: 21.3
B20: 2016/17 | C20: 20.2
B21: 2017/18 | C21: 21.1
B22: 2018/19 | C22: 20
B23: 2019/20 | C23: 20
B24: 2020/21 | C24: 20
B25: 2021/22 | C25: 21
B26: 2022/23 | C26: 21
B27: Source: HST, www.hst.org.za, accessed 1 July 2016; DHB 2017/18 Data file, accessed 31 August 2019; SAHR 2019, December 2019, Table 30, p281; SAHR 2020, December 2020, Table 15, p237; SAHR 2021, April 2022, Table 7, p324; SAHR 2022, September 2023, Table 14, p63; SAHR 2023, October 2024, Table 7, p34
B28: a The still birth rate measures the number of babies born dead per 1 000 births.

Sheet Maternalmortalityratio.11-23
B2: Institutional maternal mortality ratioa by province, 2011/12-2022/23
B4: Province | C4: 2011/12 | D4: 2013/14 | E4: 2015/16 | F4: 2016/17 | G4: 2017/18 | H4: 2018/19 | I4: 2019/20 | J4: 2020/21 | K4: 2021/22 | L4: 2022/23 | M4: Change 2011/12-2022/23
B5: Eastern Cape | C5: 114.9 | D5: 156.2 | E5: 128 | F5: 127.6 | G5: 128.3 | H5: 106.1 | I5: 108.2 | J5: 146.2 | K5: 114.6 | L5: 124 | M5: =(L5-C5)/C5 -> 0.07919930374
B6: Free State | C6: 199.1 | D6: 143.4 | E6: 122.1 | F6: 148.4 | G6: 132.9 | H6: 168.3 | I6: 116.2 | J6: 178.8 | K6: 156.5 | L6: 95 | M6: =(L6-C6)/C6 -> -0.5228528378
B7: Gauteng | C7: 123.3 | D7: 104.5 | E7: 103.8 | F7: 114.7 | G7: 108.5 | H7: 122.8 | I7: 102.9 | J7: 118.7 | K7: 129.3 | L7: 119 | M7: -0.03487429035
B8: KwaZulu-Natal | C8: 192.2 | D8: 148.4 | E8: 121.9 | F8: 100.2 | G8: 101.9 | H8: 88.4 | I8: 76.9 | J8: 123.9 | K8: 100.6 | L8: 79 | M8: -0.5889698231
B9: Limpopo | C9: 184.6 | D9: 152 | E9: 139.4 | F9: 125.9 | G9: 109.2 | H9: 111.6 | I9: 97.8 | J9: 120.1 | K9: 134.6 | L9: 109 | M9: -0.4095341278
B10: Mpumalanga | C10: 135 | D10: 149.1 | E10: 119.1 | F10: 123 | G10: 120 | H10: 92.4 | I10: 67.1 | J10: 108.3 | K10: 130 | L10: 115 | M10: -0.1481481481
B11: North West | C11: 147.7 | D11: 184.9 | E11: 141.7 | F11: 130.1 | G11: 117.5 | H11: 137.4 | I11: 88 | J11: 124.6 | K11: 129.9 | L11: 118 | M11: -0.2010832769
B12: Northern Cape | C12: 189.7 | D12: 118.9 | E12: 103.8 | F12: 87.5 | G12: 65.9 | H12: 71.3 | I12: 109.9 | J12: 80.6 | K12: 157.5 | L12: 80 | M12: -0.5782814971
B13: Western Cape | C13: 28.6 | D13: 68.6 | E13: 66.9 | F13: 57.7 | G13: 55.1 | H13: 66.8 | I13: 43.6 | J13: 83.9 | K13: 75.1 | L13: 62 | M13: =(L13-C13)/C13 -> 1.167832168
B14: South Africa | C14: 144.9 | D14: 133.3 | E14: 115.6 | F14: 111.5 | G14: 105.7 | H14: 105.9 | I14: 88 | J14: 120.9 | K14: 119.1 | L14: 101 | M14: -0.3029675638
B15: Source: HST, www.hst.org.za, DHB 2015/16, October 2016, Table 3, p69; DHB 2016/17, November 2017, Figure 4, p56; DHB 2017/18, January 2018, Table 4, p68; DHB 2018/19, February 2020, Table 5, p19; DHB 2019/20, December 2020, Figure 2, p23; SAHR 2021, April 2022, Table 7, p323; SAHR 2022, September 2023, Table 14, p62; SAHR 2023, October 2024, Table 7, p33
B16: a Number of maternal deaths per 100 000 live births in public and private health facilities or institutions.

Sheet Mortality

Sheet Leading causes of death.04-20
B2: Mortality
B4: Causes of death
B6: Leading causes of death, 2004-20
C8: ──2004── | E8: ──2018── | G8: ──2019── | I8: ──2020──
B9: Cause of death | C9: Rank | D9: Number | E9: Rank | F9: Number | G9: Rank | H9: Number | I9: Rank | J9: Number
B10: Covid-19 | C10: N/A | D10: N/A | E10: N/A | F10: N/A | G10: N/A | H10: N/A | I10: 1 | J10: 32757
B11: Diabetes mellitus | C11: 10 | D11: 18654 | E11: 2 | F11: 27383 | G11: 1 | H11: 26315 | I11: 2 | J11: 32100
B12: Cerebrovascular diseases | C12: 4 | D12: 33224 | E12: 3 | F12: 23509 | G12: 3 | H12: 23247 | I12: 3 | J12: 27066
B13: Hypertensive diseases | C13: 5 | D13: 30679 | E13: 6 | F13: 20985 | G13: 5 | H13: 20602 | I13: 4 | J13: 24847
B14: Influenza and pneumonia | C14: 2 | D14: 71800 | E14: 7 | F14: 18009 | G14: 6 | H14: 17426 | I14: 5 | J14: 19805
B15: Tuberculosis | C15: 1 | D15: 77406 | E15: 1 | F15: 28315 | G15: 2 | H15: 25409 | I15: 6 | J15: 19757
B16: Human immunodeficiency virus [HIV] disease | C16: 11 | D16: 13590 | E16: 5 | F16: 22533 | G16: 4 | H16: 22128 | I16: 7 | J16: 19382
B17: Intestinal infectious diseasesa | C17: 6 | D17: 29841 | E17: N/A | F17: N/A | G17: N/A | H17: N/A | I17: N/A | J17: N/A
B18: Ischaemic heart diseases | D18: N/A | E18: 8 | F18: 13863 | G18: 7 | H18: 15969 | I18: 8 | J18: 15759
B19: Certain disorders involving the immune mechanism | C19: 7 | D19: 28778 | E19: N/A | F19: N/A | G19: N/A | H19: N/A | I19: N/A | J19: N/A
B20: Respiratory and cardiovascular disorders-perinatal | C20: 9 | D20: 19801 | E20: N/A | F20: N/A | G20: N/A | H20: N/A | I20: N/A | J20: N/A
B21: Other forms of heart disease | C21: 3 | D21: 46795 | E21: 4 | F21: 23301 | G21: 8 | H21: 15777 | I21: 9 | J21: 15057
B22: Other viral diseases | C22: 8 | D22: 19828 | E22: N/A | F22: N/A | G22: 9 | H22: 13257 | I22: 10 | J22: 12434
B23: Chronic lower respiratory diseases | C23: N/A | D23: N/A | E23: 9 | F23: 13825 | G23: 10 | H23: 12384 | I23: N/A | J23: N/A
B24: Malignant neoplasms of digestive organs | C24: N/A | D24: N/A | E24: 10 | F24: 11061 | G24: N/A | H24: N/A | I24: N/A | J24: N/A
B25: Other Natural | C25: ── | D25: 108217 | E25: ── | F25: 208498 | G25: ── | H25: 213500 | I25: ── | J25: 223594
B26: Non-natural | C26: ── | D26: 52491 | E26: ── | F26: 56283 | G26: ── | H26: 57604 | I26: ── | J26: 47186
B27: Totalb | C27: ── | D27: 576700 | E27: ── | F27: 467565 | G27: ── | H27: 463618 | I27: ── | J27: 489744
B28: Source: Stats SA, Mortality and causes of death in South Africa 2004: Findings from death notification, Statistical Release P0309.3, May 2006, Table 4.2, p21; Mortality and causes of death in South Africa 2020: Findings from death notification, Statistical Release P0309.3, 30 April 2024, Table 4.5, p41
B29: a Cholera would fall under this category.
B30: b Stats SA totals.
B31: N/A — Not available.

Sheet Causes of death, 2020
B2: Causes of death, 2020
B4: Cause of death | C4: Number | D4: Proportion
B5: Covid-19 | C5: 32757 | D5: =C5/536930 -> 0.06100795262
B6: Tuberculosis | C6: 19757 | D6: 0.03679623042
B7: Influenza and pneumonia | C7: 19805 | D7: 0.03688562755
B8: Human immuno-deficiency virus [HIV] disease | C8: 19382 | D8: 0.03609781536
B9: Cerebrovascular diseases | C9: 27066 | D9: 0.05040880562
B10: Diabetes mellitus | C10: 32100 | D10: 0.05978432943
B11: Other forms of heart disease | C11: 15057 | D11: 0.02804276163
B12: Malignant neoplasms of digestive organs | C12: N/A | D12: N/A
B13: Hypertensive diseases | C13: 24847 | D13: =C13/536930 -> 0.04627605088
B14: Intestinal infectious diseasesa | C14: N/A | D14: N/A
B15: Other viral diseases | C15: 12434 | D15: =C15/536930 -> 0.02315758106
B16: Chronic lower respiratory diseases | C16: N/A | D16: N/A
B17: Ischaemic heart diseases | C17: 15759 | D17: =C17/536930 -> 0.02935019462
B18: Other natural causes | C18: 223594 | D18: 0.4164304472
B19: Natural causes | C19: 489744 | D19: 0.9121188982
B20: Other external causes of accidental injury | C20: 33386 | D20: 0.06217942749
B21: Event of undetermined intent | C21: 2603 | D21: 0.00484793176
B22: Transport accidents | C22: 4592 | D22: 0.008552325257
B23: Assault | C23: 5668 | D23: 0.01055631088
B24: Complications of medical and surgical care | C24: 683 | D24: 0.001272046636
B25: Intentional self-harm | C25: 211 | D25: 0.0003929748757
B26: Sequelae of external causes of morbidity and mortality | C26: 43 | D26: 8.008492727e-05
B27: Legal intervention and operations of war | C27: N/A | D27: N/A
B28: Non-natural causes | C28: 47186 | D28: =C28/536930 -> 0.08788110182
B29: All causes | C29: =C19+C28 -> 536930 | D29: =C29/536930 -> 1
B30: Source: Stats SA, Mortality and causes of death in South Africa 2020: Findings from death notification, Statistical Release P0309.3, 30 April 2024, Table 4.5, p41; Table 4.11, p53
B31: a Cholera would fall under this category.
B32: N/A — Not available.

Sheet Top five n causes of death,2020
E1: 2020
B2: Covid-19 | C2: 32757
B3: Diabetes mellitus | C3: 32100
B4: Cerebrovascular diseases | C4: 27066
B5: Hypertensive diseases | C5: 24847
B6: Influenza and pneumonia | C6: 19805

Sheet Causes of death by race, 2020
A2: Causes of death by race, 2020
B4: —Black— | E4: —Coloured— | H4: —Indian/Asian— | K4: —White— | N4: —Other/unspecified—
A5: Cause of death | B5: Rank | C5: Number | D5: % | E5: Rank | F5: Number | G5: % | H5: Rank | I5: Number | J5: % | K5: Rank | L5: Number | M5: % | N5: Rank | O5: Number | P5: %
A6: Diabetes mellitus | B6: 1 | C6: 23177 | D6: =C6/324451 -> 0.07143451554 | E6: 2 | F6: 3209 | G6: =F6/36802 -> 0.08719634802 | H6: 3 | I6: 1183 | J6: =I6/11641 -> 0.1016235719 | K6: 6 | L6: 1846 | M6: =L6/46064 -> 0.04007467871 | N6: 3 | O6: 2685 | P6: =O6/70786 -> 0.03793122934
A7: Covid-19 | B7: 2 | C7: 20084 | D7: 0.06190148898 | E7: 1 | F7: 3731 | G7: 0.1013803598 | H7: 1 | I7: 1692 | J7: =I7/11641 -> 0.1453483378 | K7: 2 | L7: 3517 | M7: =L7/46064 -> 0.07635029524 | N7: 2 | O7: 3733 | P7: 0.05273641681
A8: Hypertensive diseases | B8: 3 | C8: 18715 | D8: 0.05768205368 | E8: 5 | F8: 2101 | G8: 0.05708928863 | H8: 5 | I8: 380 | J8: =I8/11641 -> 0.03264324371 | K8: 9 | L8: 1674 | M8: =L8/46064 -> 0.03634074331 | N8: 5 | O8: 1977 | P8: 0.02792925155
A9: Cerebrovascular diseases | B9: 4 | C9: 17532 | D9: 0.05403589448 | E9: 3 | F9: 2416 | G9: 0.06564860605 | H9: 4 | I9: 538 | J9: =I9/11641 -> 0.04621596083 | K9: 3 | L9: 2757 | M9: =L9/46064 -> 0.05985151094 | N9: 1 | O9: 3823 | P9: 0.05400785466
A10: Human immunodefiency virus (HIV) disease | B10: 5 | C10: 16440 | D10: 0.05067020906 | E10: 9 | F10: 1332 | G10: 0.03619368513 | H10: — | I10: — | J10: — | K10: — | L10: — | M10: — | N10: 8 | O10: 1430 | P10: 0.02020173481
A11: Tuberculosis | B11: 6 | C11: 15925 | D11: 0.04908291237 | E11: 6 | F11: 1756 | G11: 0.04771479811 | H11: — | I11: — | J11: — | K11: — | L11: — | M11: — | N11: 7 | O11: 1771 | P11: 0.02501907157
A12: Influenza and pneumonia | B12: 7 | C12: 14341 | D12: 0.04420081923 | E12: — | F12: — | G12: — | H12: 8 | I12: 329 | J12: =I12/11641 -> 0.02826217679 | K12: 7 | L12: 1779 | M12: =L12/46064 -> 0.03862018062 | N12: 4 | O12: 2553 | P12: 0.03606645382
A13: Other viral diseases | B13: 8 | C13: 11316 | D13: 0.03487737748 | E13: — | F13: — | G13: — | H13: — | I13: — | J13: — | K13: — | L13: — | M13: — | N13: — | O13: — | P13: —
A14: Other forms of heart disease | B14: 9 | C14: 9895 | D14: 0.03049767145 | E14: — | F14: — | G14: — | H14: 6 | I14: 377 | J14: =I14/11641 -> 0.03238553389 | K14: 4 | L14: 2607 | M14: =L14/46064 -> 0.05659517193 | N14: 9 | O14: 1372 | P14: =O14/70786 -> 0.01938236374
A15: Renal failurea | B15: 10 | C15: 5922 | D15: 0.01825237093 | E15: — | F15: — | G15: — | H15: 9 | I15: 312 | J15: =I15/11641 -> 0.02680182115 | K15: — | L15: — | M15: — | N15: — | O15: — | P15: —
A16: Ischaemic heart diseases | B16: — | C16: — | D16: — | E16: 4 | F16: 2333 | G16: =F16/36802 -> 0.06339329384 | H16: 2 | I16: 1467 | J16: =I16/11641 -> 0.1260201014 | K16: 1 | L16: 5150 | M16: =L16/46064 -> 0.1118009726 | N16: 6 | O16: 1774 | P16: =O16/70786 -> 0.02506145283
A17: Malignant neoplasms of digestive organsb | B17: — | C17: — | D17: — | E17: 10 | F17: 1231 | G17: 0.03344926906 | H17: 7 | I17: 331 | J17: =I17/11641 -> 0.02843398333 | K17: 5 | L17: 2393 | M17: 0.05194946162 | N17: — | O17: — | P17: —
A18: Chronic lower respiratory diseases | B18: — | C18: — | D18: — | E18: 7 | F18: 1649 | G18: 0.04480734743 | H18: 10 | I18: 237 | J18: =I18/11641 -> 0.02035907568 | K18: 8 | L18: 1730 | M18: 0.03755644321 | N18: 10 | O18: 1345 | P18: =O18/70786 -> 0.01900093239
A19: Malignant neoplasms of respiratory and intrathoracic organsc | B19: — | C19: — | D19: — | E19: 8 | F19: 1344 | G19: 0.03651975436 | H19: — | I19: — | J19: — | K19: 10 | L19: 1312 | M19: 0.02848211184 | N19: — | O19: — | P19: —
A20: Other natural causes | C20: 137829 | D20: =C20/324451 -> 0.4248068275 | F20: 12959 | G20: 0.3521276018 | I20: 4137 | J20: =I20/11641 -> 0.35538184 | L20: 18869 | M20: 0.4096257381 | O20: 40241 | P20: =O20/70786 -> 0.5684881191
A21: Non–natural causes | C21: 33275 | D21: =C21/324451 -> 0.1025578593 | F21: 2741 | G21: 0.07447964785 | I21: 658 | J21: =I21/11641 -> 0.05652435358 | L21: 2430 | M21: 0.05275269191 | O21: 8082 | P21: =O21/70786 -> 0.1141751194
A22: All causesd | C22: 324451 | D22: =C22/324451 -> 1 | F22: 36802 | G22: 1 | I22: 11641 | J22: =I22/11641 -> 1 | L22: 46064 | M22: 1 | O22: 70786 | P22: =O22/70786 -> 1
A23: Source: Stats SA, Mortality and causes of death in South Africa 2020: Findings from death notification, Statistical Release P0309.3, 30 April 2024, Appendix Q1, p152
A24: a Failure of the kidneys.
A25: b Such as cancers of the bowel or stomach.
A26: c Such as cancer of the lungs.
A27: d The proportions may not add up to 100%, owing to rounding.

Sheet Deaths by age&year.1997-2020
B2: Deaths by age and year of death
B4: Deaths by age and year of death, 1997-2020
B6: Age group | C6: 1997 | D6: 2000 | E6: 2005 | F6: 2010 | G6: 2015 | H6: 2020 | I6: Change 1997-2020
B7: 0–4 | C7: 32514 | D7: 39331 | E7: 62222 | F7: 48216 | G7: 33182 | H7: 25293 | I7: =(H7-C7)/C7 -> -0.2220889463
B8: 5–9 | C8: 2981 | D8: 3628 | E8: 6202 | F8: 4713 | G8: 3230 | H8: 2346 | I8: -0.2130157665
B9: 10–14 | C9: 2763 | D9: 3101 | E9: 4033 | F9: 4596 | G9: 3191 | H9: 2834 | I9: 0.02569670648
B10: 15–19 | C10: 6288 | D10: 7899 | E10: 9392 | F10: 8450 | G10: 7105 | H10: 5763 | I10: -0.08349236641
B11: 20–24 | C11: 13719 | D11: 18912 | E11: 25532 | F11: 20286 | G11: 14580 | H11: 11388 | I11: -0.1699103433
B12: 25–29 | C12: 18466 | D12: 31013 | E12: 46812 | F12: 36225 | G12: 23792 | H12: 18289 | I12: -0.009585183581
B13: 30–34 | C13: 19139 | D13: 34527 | E13: 60327 | F13: 44125 | G13: 29812 | H13: 24184 | I13: 0.2635978891
B14: 35–39 | C14: 18976 | D14: 32364 | E14: 55903 | F14: 45412 | G14: 30404 | H14: 27880 | I14: 0.4692242833
B15: 40–44 | C15: 18307 | D15: 28364 | E15: 49146 | F15: 41216 | G15: 30690 | H15: 26784 | I15: 0.4630469219
B16: 45–49 | C16: 18720 | D16: 25844 | E16: 42005 | F16: 39532 | G16: 30167 | H16: 28701 | I16: 0.5331730769
B17: 50–54 | C17: 17640 | D17: 24524 | E17: 36615 | F17: 37425 | G17: 32894 | H17: 31647 | I17: 0.794047619
B18: 55–59 | C18: 20692 | D18: 22956 | E18: 33126 | F18: 35474 | G18: 34953 | H18: 38518 | I18: 0.8614923642
B19: 60–64 | C19: 20584 | D19: 25623 | E19: 30172 | F19: 35076 | G19: 37082 | H19: 44901 | I19: 1.18135445
B20: 65–69 | C20: 23617 | D20: 24747 | E20: 31635 | F20: 32036 | G20: 35629 | H20: 45326 | I20: 0.919210738
B21: 70–74 | C21: 21439 | D21: 27366 | E21: 28054 | F21: 32681 | G21: 32453 | H21: 42758 | I21: 0.994402724
B22: 75–79 | C22: 23622 | D22: 21958 | E22: 28210 | F22: 28020 | G22: 31881 | H22: 36591 | I22: 0.549022098
B23: 80–84 | C23: 15436 | D23: 21181 | E23: 20321 | F23: 26246 | G23: 25882 | H23: 32560 | I23: 1.109354755
B24: 85–89 | C24: 10909 | D24: 12944 | E24: 15828 | F24: 16326 | G24: 20945 | H24: 22759 | I24: 1.086259052
B25: 90+ | C25: 6778 | D25: 9098 | E25: 11196 | F25: 14866 | G25: 16513 | H25: 21222 | I25: 2.131012098
B26: Unspecified | C26: 5588 | D26: 2236 | E26: 3289 | F26: 1600 | G26: 1552 | H26: 0 | I26: -1
B27: Total | C27: 318178 | D27: 417616 | E27: 600020 | F27: 552521 | G27: 475937 | H27: 489744 | I27: 0.5392138991
B28: Source: Stats SA, Mortality and causes of death in South Africa 2020: Findings from death notification, Statistical Release P0309.3, 30 April 2024, Appendix D-D7, pp79-86

Sheet Infant.U5.mortality rate.02-24
B3: Mortality
B5: Infant and under-five mortality
B7: Infant and under-five mortality ratea, 2002-24
C9: Year | D9: Infant mortality rate | E9: Under-five mortality rate
C10: 2002 | D10: 57 | E10: 79.7
C11: 2003 | D11: 57.1 | E11: 82.3
C12: 2004 | D12: 57.2 | E12: 81.3
C13: 2005 | D13: 56.2 | E13: 80.9
C14: 2006 | D14: 55.1 | E14: 78.2
C15: 2007 | D15: 49.4 | E15: 71
C16: 2008 | D16: 48.9 | E16: 63.8
C17: 2009 | D17: 44.7 | E17: 55.9
C18: 2010 | D18: 41.9 | E18: 50.6
C19: 2011 | D19: 37.1 | E19: 44
C20: 2012 | D20: 34.6 | E20: 40.4
C21: 2013 | D21: 32.9 | E21: 38.5
C22: 2014 | D22: 30.9 | E22: 37.4
C23: 2015 | D23: 29.2 | E23: 36.7
C24: 2016 | D24: 28.2 | E24: 36.2
C25: 2017 | D25: 27.3 | E25: 35.7
C26: 2018 | D26: 25.6 | E26: 33.4
C27: 2019 | D27: 25.4 | E27: 32.5
C28: 2020 | D28: 24.5 | E28: 31.4
C29: 2021 | D29: 24.5 | E29: 31.3
C30: 2022 | D30: 24.9 | E30: 31.2
C31: 2023 | D31: 24 | E31: 30.5
C32: 2024 | D32: 22.9 | E32: 28.6
C33: 2002-24 | D33: =(D32-D10)/D10 -> -0.598245614 | E33: =(E32-E10)/E10 -> -0.6411543287
B34: Source: Stats SA, Mid-year population estimates report table website 2024, accessed 20 August 2024
B35: a The number of children under one year who die, per 1 000 live births, in a particular year.

Sheet Inf. & mort sel count. 90 &22
B2: Under-five mortality ratea, selected countries, 1990 and 2022
B4: Country | C4: 1990 | D4: 2022 | E4: Change
B5: Australia | C5: 9.2 | D5: 3.8 | E5: =(D5-C5)/C5 -> -0.5869565217
B6: Botswana | C6: 51.2 | D6: 38.7 | E6: =(D6-C6)/C6 -> -0.244140625
B7: Brazil | C7: 63 | D7: 14 | E7: =(D7-C7)/C7 -> -0.7777777778
B8: Chile | C8: 19.1 | D8: 6.3 | E8: -0.6701570681
B9: China | C9: 53.7 | D9: 6.6 | E9: -0.8770949721
B10: Denmark | C10: 8.9 | D10: 3.5 | E10: -0.606741573
B11: Egypt | C11: 85.8 | D11: 18.1 | E11: -0.789044289
B12: France | C12: 9 | D12: 4.1 | E12: -0.5444444444
B13: Germany | C13: 8.5 | D13: 3.6 | E13: -0.5764705882
B14: Ghana | C14: 127.4 | D14: 42.3 | E14: -0.6679748823
B15: Greece | C15: 10.4 | D15: 3.9 | E15: -0.625
B16: Hong Kong | C16: N/A | D16: N/A | E16: —
B17: India | C17: 126.2 | D17: 29.1 | E17: =(D17-C17)/C17 -> -0.7694136292
B18: Indonesia | C18: 84.2 | D18: 21.3 | E18: =(D18-C18)/C18 -> -0.7470308789
B19: Ireland | C19: 9.2 | D19: 3.1 | E19: =(D19-C19)/C19 -> -0.6630434783
B20: Israel | C20: 11.6 | D20: 3.4 | E20: -0.7068965517
B21: Italy | C21: 9.6 | D21: 2.6 | E21: -0.7291666667
B22: Japan | C22: 6.3 | D22: 2.3 | E22: -0.6349206349
B23: Kazakhstan | C23: 52.3 | D23: 9.7 | E23: -0.8145315488
B24: Lithuania | C24: 15 | D24: 3.5 | E24: -0.7666666667
B25: Mexico | C25: 44.8 | D25: 12.8 | E25: -0.7142857143
B26: Mozambique | C26: 241.3 | D26: 66.2 | E26: -0.7256527145
B27: Nigeria | C27: 210.9 | D27: 107.2 | E27: -0.4917022285
B28: Pakistan | C28: 138.9 | D28: 61 | E28: -0.5608351332
B29: Philippines | C29: 56.7 | D29: 27.5 | E29: -0.5149911817
B30: Poland | C30: 17.4 | D30: 4.4 | E30: -0.7471264368
B31: Russia | C31: 21.6 | D31: 4.8 | E31: -0.7777777778
B32: Saudi Arabia | C32: 44.7 | D32: 6.4 | E32: -0.8568232662
B33: South Africa | C33: 59.2 | D33: 34.5 | E33: -0.4172297297
B34: Spain | C34: 9.1 | D34: 3 | E34: -0.6703296703
B35: Switzerland | C35: 8.2 | D35: 4 | E35: -0.512195122
B36: Turkey | C36: 73.9 | D36: 9.6 | E36: -0.8700947226
B37: Uganda | C37: 184.7 | D37: 40.5 | E37: -0.7807255008
B38: United Kingdom | C38: 9.3 | D38: 4.1 | E38: -0.5591397849
B39: United States | C39: 11.2 | D39: 6.3 | E39: -0.4375
B40: Venezuela | C40: 29.5 | D40: 24.2 | E40: -0.1796610169
B41: Source: World Bank, databank.worldbank.org, World Development Indicators, accessed 26 August 2024
B42: a The number of children who die by the age of five in a year, per 1 000 live births, during that year.
B43: N/A — Not available.

Sheet Inf. & mort. emer mark. 90 &22
B2: Under-five mortality rate, emerging markets, 1990 and 2022
B4: Country | C4: 1990 | D4: 2022 | E4: Change
B5: Brazil | C5: 63 | D5: 14 | E5: =(D5-C5)/C5 -> -0.7777777778
B6: Bulgaria | C6: 18.3 | D6: 6.1 | E6: -0.6666666667
B7: Chile | C7: 19.1 | D7: 6.3 | E7: -0.6701570681
B8: China | C8: 53.7 | D8: 6.6 | E8: -0.8770949721
B9: Colombia | C9: 35.2 | D9: 12.4 | E9: -0.6477272727
B10: Czech Republic | C10: 12.2 | D10: 2.6 | E10: -0.7868852459
B11: Egypt | C11: 85.8 | D11: 18.1 | E11: -0.789044289
B12: Estonia | C12: 17.6 | D12: 1.9 | E12: -0.8920454545
B13: Greece | C13: 10.4 | D13: 3.9 | E13: -0.625
B14: Hungary | C14: 17.3 | D14: 4 | E14: -0.7687861272
B15: India | C15: 126.2 | D15: 29.1 | E15: -0.7694136292
B16: Indonesia | C16: 84.2 | D16: 21.3 | E16: -0.7470308789
B17: Jordan | C17: 36.2 | D17: 14.1 | E17: -0.6104972376
B18: Kuwait | C18: 17.5 | D18: 8.6 | E18: -0.5085714286
B19: Latvia | C19: 17 | D19: 3.2 | E19: -0.8117647059
B20: Lithuania | C20: 15 | D20: 3.5 | E20: -0.7666666667
B21: Malaysia | C21: 16.6 | D21: 7.8 | E21: -0.5301204819
B22: Mauritius | C22: 23.1 | D22: 15 | E22: -0.3506493506
B23: Mexico | C23: 44.8 | D23: 12.8 | E23: -0.7142857143
B24: Morocco | C24: 79.1 | D24: 17.3 | E24: -0.781289507
B25: Oman | C25: 38.9 | D25: 10.5 | E25: -0.7300771208
B26: Pakistan | C26: 138.9 | D26: 61 | E26: -0.5608351332
B27: Peru | C27: 80.5 | D27: 15.1 | E27: -0.8124223602
B28: Philippines | C28: 56.7 | D28: 27.5 | E28: -0.5149911817
B29: Poland | C29: 17.4 | D29: 4.4 | E29: -0.7471264368
B30: Qatar | C30: 20.8 | D30: 5.2 | E30: -0.75
B31: Romania | C31: 31.1 | D31: 6.8 | E31: -0.7813504823
B32: Russia | C32: 21.6 | D32: 4.8 | E32: -0.7777777778
B33: Slovakia | C33: 14.7 | D33: 5.9 | E33: -0.5986394558
B34: South Africa | C34: 59.2 | D34: 34.5 | E34: -0.4172297297
B35: Sri Lanka | C35: 21.9 | D35: 6.5 | E35: -0.703196347
B36: Thailand | C36: 36.9 | D36: 8.1 | E36: -0.7804878049
B37: Turkey | C37: 73.9 | D37: 9.6 | E37: -0.8700947226
B38: United Arab Emirates | C38: 16.6 | D38: 5.3 | E38: -0.6807228916
B39: Venezuela | C39: 29.5 | D39: 24.2 | E39: -0.1796610169
B40: Vietnam | C40: 51.4 | D40: 20.3 | E40: -0.6050583658
B41: Source: World Bank, databank.worldbank.org, World Development Indicators, accessed 26 August 2024
B42: a The number of children who die by the age of five in a year, per 1 000 live births, during that year.

Sheet Inf.&mort. Africa. 90 &22
B2: Under-five mortality rate, selected African countries, 1990 and 2022
B4: Country | C4: 1990 | D4: 2022 | E4: Change
B5: Algeria | C5: 49.5 | D5: 21.8 | E5: =(D5-C5)/C5 -> -0.5595959596
B6: Angola | C6: 223.4 | D6: 66.9 | E6: =(D6-C6)/C6 -> -0.7005371531
B7: Botswana | C7: 51.2 | D7: 38.7 | E7: -0.244140625
B8: Burundi | C8: 174.2 | D8: 50.5 | E8: -0.7101033295
B9: Cameroon | C9: 137.1 | D9: 69.8 | E9: -0.4908825675
B10: Central African Republic | C10: 179.6 | D10: 96.8 | E10: -0.4610244989
B11: Congo (DRC) | C11: 185.8 | D11: 75.6 | E11: -0.5931108719
B12: Congo (Republic) | C12: 90.2 | D12: 41.6 | E12: -0.5388026608
B13: Egypt | C13: 85.8 | D13: 18.1 | E13: -0.789044289
B14: Eritrea | C14: 152.5 | D14: 36.6 | E14: -0.76
B15: Eswatini | C15: 70.9 | D15: 50 | E15: =(D15-C15)/C15 -> -0.2947813822
B16: Ethiopia | C16: 201.8 | D16: 46.2 | E16: -0.7710604559
B17: Ghana | C17: 127.4 | D17: 42.3 | E17: -0.6679748823
B18: Ivory Coast | C18: 154.6 | D18: 69.4 | E18: -0.5510996119
B19: Kenya | C19: 106.6 | D19: 41.1 | E19: -0.6144465291
B20: Lesotho | C20: 90.1 | D20: 72.2 | E20: -0.1986681465
B21: Liberia | C21: 261.9 | D21: 73.2 | E21: -0.7205040092
B22: Libya | C22: 41.6 | D22: 10.3 | E22: -0.7524038462
B23: Madagascar | C23: 159.5 | D23: 65.8 | E23: -0.587460815
B24: Malawi | C24: 238.7 | D24: 40.1 | E24: -0.832006703
B25: Mauritius | C25: 23.1 | D25: 15 | E25: -0.3506493506
B26: Morocco | C26: 79.1 | D26: 17.3 | E26: -0.781289507
B27: Mozambique | C27: 241.3 | D27: 66.2 | E27: -0.7256527145
B28: Namibia | C28: 73.7 | D28: 37.9 | E28: -0.4857530529
B29: Nigeria | C29: 210.9 | D29: 107.2 | E29: -0.4917022285
B30: Rwanda | C30: 153.6 | D30: 38 | E30: -0.7526041667
B31: Senegal | C31: 139 | D31: 37 | E31: -0.7338129496
B32: Somalia | C32: 179.2 | D32: 106.1 | E32: -0.4079241071
B33: South Africa | C33: 59.2 | D33: 34.5 | E33: -0.4172297297
B34: Sudan | C34: 131.6 | D34: 51.6 | E34: =(D34-C34)/C34 -> -0.6079027356
B35: Tanzania | C35: 166.1 | D35: 40.5 | E35: -0.7561709813
B36: Tunisia | C36: 55.5 | D36: 11.5 | E36: -0.7927927928
B37: Uganda | C37: 184.7 | D37: 40.5 | E37: -0.7807255008
B38: Zambia | C38: 185.8 | D38: 55.6 | E38: -0.7007534984
B39: Zimbabwe | C39: 80.5 | D39: 47.7 | E39: -0.4074534161
B40: Source: World Bank, databank.worldbank.org, World Development Indicators, accessed 26 August 2024
B41: a The number of children who die by the age of five in a year, per 1 000 live births, during that year.

Sheet Nutrition.

Sheet Malnutrition.1722
B2: Nutrition
B4: Malnutrition
B6: Severe acute malnutrition case fatality ratea, 2017/18-2022/23
B8: Province | C8: 2017/18 | D8: 2018/19 | E8: 2019/20 | F8: 2020/21 | G8: 2021/22 | H8: 2022/23
B9: Eastern Cape | C9: 0.118 | D9: 0.089 | E9: 0.099 | F9: 0.086 | G9: 0.097 | H9: 0.076
B10: Free State | C10: 0.075 | D10: 0.062 | E10: 0.06 | F10: 0.032 | G10: 0.086 | H10: 0.097
B11: Gauteng | C11: 0.062 | D11: 0.068 | E11: 0.064 | F11: 0.077 | G11: 0.077 | H11: 0.065
B12: KwaZulu-Natal | C12: 0.077 | D12: 0.078 | E12: 0.076 | F12: 0.105 | G12: 0.104 | H12: 0.092
B13: Limpopo | C13: 0.05 | D13: 0.063 | E13: 0.079 | F13: 0.08 | G13: 0.062 | H13: 0.074
B14: Mpumalanga | C14: 0.091 | D14: 0.091 | E14: 0.106 | F14: 0.16 | G14: 0.109 | H14: 0.078
B15: North West | C15: 0.08 | D15: 0.093 | E15: 0.118 | F15: 0.049 | G15: 0.066 | H15: 0.039
B16: Northern Cape | C16: 0.061 | D16: 0.043 | E16: 0.047 | F16: 0.05 | G16: 0.059 | H16: 0.085
B17: Western Cape | C17: 0.022 | D17: 0.016 | E17: 0.015 | F17: 0.022 | G17: 0.024 | H17: 0.024
B18: South Africa | C18: 0.074 | D18: 0.071 | E18: 0.078 | F18: 0.073 | G18: 0.079 | H18: 0.072
B19: Source: HST, www.hst.org.za, SAHR 2020, December 2020, Table 19, p250; SAHR 2021, April 2022, Table 12, p346; SAHR 2022, September 2023, Table 15, p73; SAHR 2023, October 2024, Table 8, p41
B20: a Severe acute malnutrition deaths in children under 5 years as a proportion of severe acute malnutrition (SAM) under 5 years in health facilities.

Sheet Cancer

Sheet Cancer death rate, sel.coun.22
D2: Cancer
D5: Cancer mortality, 2022
D7: Country | E7: Cancer mortality for both sexes including non-melanoma skin cancer | F7: Cancer mortality for both sexes excluding non-melanoma skin cancer
D8: Australia | E8: 84.6 | F8: 83.6
D9: Botswana | E9: 66.1 | F9: 65
D10: Brazil | E10: 91.3 | F10: 90.4
D11: Chile | E11: 90.1 | F11: 89.5
D12: China | E12: 96.5 | F12: 96
D13: Denmark | E13: 106.5 | F13: 106.1
D14: Egypt | E14: 107.7 | F14: 106.3
D15: France | E15: 106.7 | F15: 106.3
D16: Germany | E16: 99.7 | F16: 99.4
D17: Ghana | E17: 82.6 | F17: 82.1
D18: Greece | E18: 100.6 | F18: 100.3
D19: India | E19: 64,4 | F19: 64
D20: Indonesia | E20: 82.5 | F20: 81.7
D21: Ireland | E21: 98.7 | F21: 97.7
D22: Israel | E22: 83.2 | F22: 82.6
D23: Italy | E23: 94.2 | F23: 93.7
D24: Japan | E24: 78.6 | F24: 78.5
D25: Kazakhstan | E25: 92.1 | F25: 91.5
D26: Lithuania | E26: 125 | F26: 124.5
D27: Mexico | E27: 63.5 | F27: 62.9
D28: Mozambique | E28: 96.3 | F28: 94.5
D29: Nigeria | E29: 74.6 | F29: 73.4
D30: Pakistan | E30: 69.8 | F30: 68.4
D31: Philippines | E31: 112.9 | F31: 112.4
D32: Poland | E32: 133.1 | F32: 132.4
D33: Russia | E33: 110.5 | F33: 110
D34: Saudi Arabia | E34: 46.2 | F34: 45.8
D35: South Africa | E35: 122.5 | F35: 120.8
D36: Spain | E36: 88.8 | F36: 88.4
D37: Switzerland | E37: 78.8 | F37: 78.4
D38: Turkey | E38: 116.1 | F38: 115.6
D39: Uganda | E39: 113.9 | F39: 112.9
D40: United Kingdom | E40: 98.3 | F40: 97.6
D41: United States | E41: 82.3 | F41: 81.8
D42: Venezuela | E42: 91.3 | F42: 89.5
D43: Source: Word Cancer Research Fund International, www.wcrf.org, accessed 28 October 2024
D44: a Deaths per 100 000 people

Sheet Pneumonia

Sheet Pneumoniacasesbyprov.19.23
B2: Pneumonia and asthma
B4: Pneumonia in children under 5 by provincea , 2019/20-2022/23
C6: —Admissionsa— | G6: —Deaths— | K6: —Case fatality rateb—
B7: Province | C7: 2019/20 | D7: 2020/21 | E7: 2021/22 | F7: 2022/23 | G7: 2019/20 | H7: 2020/21 | I7: 2021/22 | J7: 2022/23 | K7: 2019/20 | L7: 2020/21 | M7: 2021/22 | N7: 2022/23
B8: Eastern Cape | C8: 4053 | D8: 2970 | E8: 3545 | F8: 4964 | G8: 139 | H8: 98 | I8: 117 | J8: 139 | K8: 0.034 | L8: 0.033 | M8: 0.033 | N8: 0.028
B9: Free State | C9: 2418 | D9: 839 | E9: 1375 | F9: 2706 | G9: 44 | H9: 26 | I9: 44 | J9: 46 | K9: 0.018 | L9: 0.031 | M9: 0.032 | N9: 0.0174
B10: Gauteng | C10: 6532 | D10: 4261 | E10: 6533 | F10: 11200 | G10: 116 | H10: 98 | I10: 98 | J10: 168 | K10: 0.018 | L10: 0.023 | M10: 0.015 | N10: 0.015
B11: KwaZulu-Natal | C11: 9588 | D11: 6435 | E11: 8909 | F11: 11579 | G11: 192 | H11: 148 | I11: 196 | J11: 220 | K11: 0.02 | L11: 0.023 | M11: 0.022 | N11: 0.019
B12: Limpopo | C12: 5637 | D12: 2595 | E12: 3870 | F12: 6192 | G12: 154 | H12: 109 | I12: 89 | J12: 161 | K12: 0.027 | L12: 0.042 | M12: 0.023 | N12: 0.026
B13: Mpumalanga | C13: 2918 | D13: 1396 | E13: 1636 | F13: 3536 | G13: 66 | H13: 74 | I13: 36 | J13: 99 | K13: 0.023 | L13: 0.053 | M13: 0.022 | N13: 0.028
B14: North West | C14: 3533 | D14: 1000 | E14: 1913 | F14: 2857 | G14: 42 | H14: 32 | I14: 44 | J14: 40 | K14: 0.012 | L14: 0.032 | M14: 0.023 | N14: 0.014
B15: Northern Cape | C15: 1374 | D15: 762 | E15: 1333 | F15: 1083 | G15: 24 | H15: 16 | I15: 40 | J15: 26 | K15: 0.017 | L15: 0.021 | M15: 0.03 | N15: 0.024
B16: Western Cape | C16: 12953 | D16: 10000 | E16: 13000 | F16: 20000 | G16: 29 | H16: 20 | I16: 26 | J16: 40 | K16: 0.002 | L16: 0.002 | M16: 0.002 | N16: 0.0024
B17: South Africa | C17: 49006 | D17: 29571 | E17: 40588 | F17: 62600 | G17: 806 | H17: 621 | I17: 690 | J17: 939 | K17: 0.016 | L17: 0.021 | M17: 0.017 | N17: 0.015
B18: Source: HST, www.hst.org.za, DHB 2019/20, December 2020, Table 3, p41; SAHR 2022, September 2023, Table 15, p73; SAHR 2023, October 2024, Table 8, p41
B19: a Hospital admissions.
B20: b Measures the number of children who died of pneumonia as a proportion of the number of children who were admitted for pneumonia.

Sheet Pneumoniacases.12-23
B2: Pneumonia rates in children under 5, 2010/11-2022/23
C4: Year | D4: Admissionsa | E4: Case fatality rateb
C5: 2010/11 | D5: 39465 | E5: 0.058
C6: 2011/12 | D6: 43078 | E6: 0.042
C7: 2012/13 | D7: 36444 | E7: 0.038
C8: 2013/14 | D8: 43445 | E8: 0.035
C9: 2014/15 | D9: 48365 | E9: 0.029
C10: 2015/16 | D10: 53290 | E10: 0.023
C11: 2016/17 | D11: 49832 | E11: 0.02
C12: 2017/18 | D12: 35354 | E12: 0.024
C13: 2018/19 | D13: 50212 | E13: 0.019
C14: 2019/20 | D14: 49006 | E14: 0.016
C15: 2020/21 | D15: 29571 | E15: 0.021
C16: 2021/22 | D16: 40588 | E16: 0.017
C17: 2022/23 | D17: 62600 | E17: 0.015
C18: Source: HST, www.hst.org.za, SAHR 2021, April 2022, Table 12, p345; SAHR 2022, September 2023, Table 15, p73; SAHR 2023, October 2024, Table 8, p41
C19: a Hospital admissions.
C20: b Measures the number of children who died of pneumonia as a proportion of the number of children who were admitted for pneumonia.

Sheet Diarrhoea

Sheet Diarrhoeacase fbyprovince.17.23
B2: Diarrhoea
B4: Diarrhoea case fatality ratea in children under 5 by province, 2017/18-2022/23
B6: Province | C6: 2017/18 | D6: 2018/19 | E6: 2019/20 | F6: 2020/21 | G6: 2021/22 | H6: 2022/23
B7: Eastern Cape | C7: 0.036 | D7: 0.03 | E7: 0.028 | F7: 0.04 | G7: 0.034 | H7: 0.026
B8: Free State | C8: 0.025 | D8: 0.011 | E8: 0.009 | F8: 0.027 | G8: 0.023 | H8: 0.018
B9: Gauteng | C9: 0.023 | D9: 0.021 | E9: 0.017 | F9: 0.027 | G9: 0.018 | H9: 0.019
B10: KwaZulu-Natal | C10: 0.02 | D10: 0.022 | E10: 0.017 | F10: 0.026 | G10: 0.018 | H10: 0.018
B11: Limpopo | C11: 0.026 | D11: 0.022 | E11: 0.028 | F11: 0.038 | G11: 0.024 | H11: 0.02
B12: Mpumalanga | C12: 0.019 | D12: 0.023 | E12: 0.021 | F12: 0.025 | G12: 0.019 | H12: 0.022
B13: North West | C13: 0.031 | D13: 0.034 | E13: 0.028 | F13: 0.028 | G13: 0.023 | H13: 0.013
B14: Northern Cape | C14: 0.017 | D14: 0.024 | E14: 0.015 | F14: 0.015 | G14: 0.021 | H14: 0.015
B15: Western Cape | C15: 0.004 | D15: 0.001 | E15: 0.002 | F15: 0.002 | G15: 0.003 | H15: 0.003
B16: South Africa | C16: 0.02 | D16: 0.019 | E16: 0.018 | F16: 0.026 | G16: 0.018 | H16: 0.017
B17: Source: HST, www.hst.org.za, SAHR 2020, December 2020, Table 19, p250; SAHR 2021, April 2022, Table 12, p345; SAHR 2022, September 2023, Table 15, p71; SAHR 2023, October 2024, Table 8, p40
B18: a Measures the proportion of all children aged under five admitted to hospital who died as a result of diarrhoea.

Sheet Diarrhoea in children 12.23
C2: Diarrhoea in children under 5, 2012/13-2022/23
D4: Year | E4: Admissionsa | F4: Case fatality rateb
D5: 2012/13 | E5: 35692 | F5: 0.043
D6: 2013/14 | E6: 45880 | F6: 0.039
D7: 2014/15 | E7: 45787 | F7: 0.033
D8: 2015/16 | E8: 47758 | F8: 0.022
D9: 2017/18 | E9: 28189 | F9: 0.02
D10: 2018/19 | E10: 36009 | F10: 0.019
D11: 2019/20 | E11: 40557 | F11: 0.018
D12: 2020/21 | E12: — | F12: 0.026
D13: 2021/22 | E13: — | F13: 0.018
D14: 2022/23 | E14: 42586 | F14: 0.017
D15: Source: HST, www.hst.org.za, DHB 2016/17, November 2017, Table 2, p85; DHB 2018/19 Data file, accessed 20 September 2020; DHB 2019/20 Data file, accessed 14 April 2021; SAHR 2021, April 2022, Table 12, p345; SAHR 2022, September 2023, Table 15, p71; SAHR 2023, October 2024, Table 8, p40
D16: a Hospital admissions.
D17: b Refers to the proportion of all children under 5 years admitted to hospital with diarrhoeal disease who die during admission. Case fatality rates only indicate the number of deaths that occur in the facility; deaths that occur outside facilities are excluded.

Sheet Malaria

Sheet Malariacasesanddeaths.71-23
B2: Malaria
B4: Malaria cases and deaths, 1971-2023
B6: Year | C6: Cases | D6: Deaths | E6: Deaths as a proportion of casesb
B7: 1971 | C7: 364 | D7: 5 | E7: =D7/C7 -> 0.01373626374
B8: 1976 | C8: 1747 | D8: 6 | E8: =D8/C8 -> 0.003434459073
B9: 1981 | C9: 2343 | D9: 9 | E9: 0.003841229193
B10: 1986 | C10: 7491 | D10: 20 | E10: 0.002669870511
B11: 1991 | C11: 4693 | D11: 19 | E11: 0.004048582996
B12: 1996 | C12: 27035 | D12: 163 | E12: 0.00602922138
B13: 1997 | C13: 23121 | D13: 104 | E13: 0.004498075343
B14: 1998 | C14: 26445 | D14: 198 | E14: 0.007487237663
B15: 1999 | C15: 51444 | D15: 406 | E15: 0.007892076821
B16: 2000 | C16: 64622 | D16: 459 | E16: 0.007102844233
B17: 2001 | C17: 26506 | D17: 119 | E17: 0.004489549536
B18: 2002 | C18: 15649 | D18: 96 | E18: 0.006134577289
B19: 2003 | C19: 13459 | D19: 142 | E19: 0.01055056096
B20: 2004 | C20: 13399 | D20: 89 | E20: 0.006642286738
B21: 2005 | C21: 7755 | D21: 64 | E21: 0.008252740168
B22: 2006 | C22: 12163 | D22: 89 | E22: 0.007317273699
B23: 2007 | C23: 5351 | D23: 51 | E23: 0.009530928798
B24: 2008 | C24: 6841 | D24: 43 | E24: 0.006285630756
B25: 2009 | C25: 6150 | D25: 51 | E25: 0.008292682927
B26: 2010 | C26: 8066 | D26: 87 | E26: 0.01078601537
B27: 2011 | C27: 9874 | D27: 91 | E27: 0.009216123152
B28: 2012 | C28: 6848 | D28: 72 | E28: 0.01051401869
B29: 2013 | C29: 8851 | D29: 105 | E29: 0.01186306632
B30: 2014 | C30: 13988 | D30: 174 | E30: 0.01243923363
B31: 2015 | C31: 11276 | D31: 141 | E31: 0.0125044342
B32: 2016 | C32: 5842 | D32: 54 | E32: 0.009243409791
B33: 2017 | C33: 30437 | D33: 331 | E33: 0.01087492197
B34: 2018 | C34: 18638 | D34: 120 | E34: 0.006438459062
B35: 2019 | C35: 5265 | D35: 20 | E35: 0.003798670465
B36: 2020 | C36: 8126 | D36: 38 | E36: =D36/C36 -> 0.004676347526
B37: 2021 | C37: 4300 | D37: 49 | E37: 0.01139534884
B38: 2022 | C38: 4109 | D38: 34 | E38: =D38/C38 -> 0.008274519348
B39: 2023a | C39: 7400 | D39: 66 | E39: =D39/C39 -> 0.008918918919
B40: 1971-2023 | C40: =(C39-C7)/C7 -> 19.32967033 | D40: =(D39-D7)/D7 -> 12.2 | E40: =(E39-E7)/E7 -> -0.3507027027
B41: Source: National Health Laboratories Services (NICD-NHLS), www.nicd.ac.za, Communicable Diseases Communique, accessed May 2017; About SADC Malaria week (Nov 2021), accessed 12 April 2022; NICD communique-monthly, accessed December 2022; South African Government News Agency (SAGNA), www.sanews.gov.za, accessed 3 November 2024
B42: a For the period January 2023 until October 2023.
B43: b CRA calculations.

Sheet Incidence of malaria, SC.00-22
D2: Incidencea of malaria, selected countries, 2000 and 2022
D5: Country | E5: 2000 | F5: 2022
D6: Australia | E6: N/A | F6: N/A
D7: Botswana | E7: 16.72 | F7: 0.3
D8: Brazil | E8: 21.31 | F8: 3.4
D9: Chile | E9: N/A | F9: N/A
D10: China | E10: 0.015 | F10: 0
D11: Denmark | E11: N/A | F11: N/A
D12: Egypt | E12: N/A | F12: 0
D13: France | E13: N/A | F13: N/A
D14: Germany | E14: N/A | F14: N/A
D15: Ghana | E15: 431.1 | F15: 158.8
D16: Greece | E16: N/A | F16: N/A
D17: Hong Kong | E17: N/A | F17: N/A
D18: India | E18: 19.89 | F18: 2.6
D19: Indonesia | E19: 5.33 | F19: 4.2
D20: Ireland | E20: N/A | F20: N/A
D21: Israel | E21: N/A | F21: N/A
D22: Italy | E22: N/A | F22: N/A
D23: Japan | E23: N/A | F23: N/A
D24: Kazakhstan | E24: N/A | F24: N/A
D25: Lithuania | E25: N/A | F25: N/A
D26: Mexico | E26: 3.56 | F26: 0.1
D27: Mozambique | E27: 473.7 | F27: 316.7
D28: Nigeria | E28: 413.3 | F28: 305.3
D29: Pakistan | E29: 6.09 | F29: 11.5
D30: Philippines | E30: 1.77 | F30: 0.1
D31: Poland | E31: N/A | F31: N/A
D32: Russia | E32: N/A | F32: N/A
D33: Saudi Arabia | E33: 3.83 | F33: 0
D34: South Africa | E34: 3.89 | F34: 0.3
D35: Spain | E35: N/A | F35: N/A
D36: Switzerland | E36: N/A | F36: N/A
D37: Turkey | E37: 2.74 | F37: 0
D38: Uganda | E38: 487.2 | F38: 267.8
D39: United Kingdom | E39: N/A | F39: N/A
D40: United States | E40: N/A | F40: N/A
D41: Venezuela | E41: 2.91 | F41: 10.9
C42: Source: World Health Organisation (WHO), www.who.int, accessed 10 October 2024
C43: a Incidence of malaria per 1 000 people.
C44: N/A — Not available.

Sheet Measles

Sheet Measles.immun.by.prov.10-23
B2: Measles
B4: Measles dose coveragea by province, 2010/11-2022/23
B6: Province | C6: 2010/11 | D6: 2012/13 | E6: 2014/15 | F6: 2016/17 | G6: 2018/19 | H6: 2019/20 | I6: 2020/21 | J6: 2021/22 | K6: 2022/23
B7: Eastern Cape | C7: 0.781 | D7: 0.656 | E7: 0.736 | F7: 0.753 | G7: 0.651 | H7: 0.737 | I7: 0.667 | J7: 0.833 | K7: 0.817
B8: Free State | C8: 0.754 | D8: 0.858 | E8: 0.813 | F8: 0.862 | G8: 0.721 | H8: 0.733 | I8: 0.733 | J8: 0.775 | K8: 0.8
B9: Gauteng | C9: 0.914 | D9: 0.868 | E9: 0.949 | F9: 0.859 | G9: 0.789 | H9: 0.798 | I9: 0.778 | J9: 0.832 | K9: 0.839
B10: KwaZulu-Natal | C10: 0.768 | D10: 0.781 | E10: 0.863 | F10: 0.846 | G10: 0.779 | H10: 0.826 | I10: 0.806 | J10: 0.913 | K10: 0.895
B11: Limpopo | C11: 0.912 | D11: 0.724 | E11: 0.833 | F11: 0.871 | G11: 0.805 | H11: 0.79 | I11: 0.763 | J11: 0.832 | K11: 0.866
B12: Mpumalanga | C12: 0.743 | D12: 0.67 | E12: 0.746 | F12: 0.825 | G12: 0.859 | H12: 0.939 | I12: 0.842 | J12: 0.916 | K12: 0.974
B13: North West | C13: 0.737 | D13: 0.629 | E13: 0.777 | F13: 0.749 | G13: 0.69 | H13: 0.669 | I13: 0.65 | J13: 0.715 | K13: 0.764
B14: Northern Cape | C14: 0.825 | D14: 0.772 | E14: 0.771 | F14: 1.05 | G14: 0.863 | H14: 0.898 | I14: 0.835 | J14: 0.722 | K14: 0.736
B15: Western Cape | C15: 0.787 | D15: 0.701 | E15: 0.763 | F15: 0.863 | G15: 0.776 | H15: 0.8 | I15: 0.806 | J15: 0.792 | K15: 0.777
B16: South Africa | C16: 0.813 | D16: 0.749 | E16: 0.828 | F16: 0.836 | G16: 0.765 | H16: 0.796 | I16: 0.764 | J16: 0.84 | K16: 0.848
B17: Source: HST, www.hst.org.za, DHB 2015/16, October 2016, Table 5, p161; DHB 2016/17, November 2017, Table 5, p125; DHB 2017/18, January 2019, Figure 7 p147; DHB 2018/19, February 2020, Figure 3, p54; SAHR 2020, December 2020, Table 19, p250; SAHR 2021, April 2022, Table 12, p345; SAHR 2022, September 2023, Table 15, p72; SAHR 2023, October 2024, Figure 7, p88
B18: a Measles 2nd dose coverage. This measures the proportion of children aged 1 (12–23 months) who received measles 2nd dose coverage, normally at 18 months.

Sheet Tuberculosis

Sheet Tuberculosis prevalence.90-22
C2: Tuberculosis (TB)
C4: TB prevalence and death rates in South Africa, 1990-2022
C6: Year | D6: Prevalence ratea | E6: Death rateb (including HIV co-infectionc) | F6: Death rateb (excluding HIV co-infection)
C7: 1990 | D7: 475 | E7: 78 | F7: 42
C8: 1991 | D8: 475 | E8: 78 | F8: 43
C9: 1992 | D9: 473 | E9: 82 | F9: 43
C10: 1993 | D10: 461 | E10: 112 | F10: 41
C11: 1994 | D11: 444 | E11: 114 | F11: 38
C12: 1995 | D12: 427 | E12: 116 | F12: 35
C13: 1996 | D13: 415 | E13: 126 | F13: 33
C14: 1997 | D14: 417 | E14: 133 | F14: 32
C15: 1998 | D15: 443 | E15: 144 | F15: 34
C16: 1999 | D16: 496 | E16: 129 | F16: 38
C17: 2000 | D17: 568 | E17: 183 | F17: 44
C18: 2001 | D18: 644 | E18: 213 | F18: 50
C19: 2002 | D19: 694 | E19: 194 | F19: 53
C20: 2003 | D20: 722 | E20: 227 | F20: 54
C21: 2004 | D21: 736 | E21: 233 | F21: 52
C22: 2005 | D22: 748 | E22: 249 | F22: 51
C23: 2006 | D23: 748 | E23: 232 | F23: 49
C24: 2007 | D24: 753 | E24: 230 | F24: 48
C25: 2008 | D25: 761 | E25: N/A | F25: 47
C26: 2009 | D26: 795 | E26: N/A | F26: 50
C27: 2010 | D27: 803 | E27: N/A | F27: 51
C28: 2011 | D28: 831 | E28: N/A | F28: 55
C29: 2012 | D29: 857 | E29: 168 | F29: 59
C30: 2013 | D30: 715 | E30: 121 | F30: 48
C31: 2014 | D31: 696 | E31: 134 | F31: 44
C32: 2015 | D32: 454 | E32: 133 | F32: 46
C33: 2016 | D33: 438 | E33: 181 | F33: 41
C34: 2017 | D34: 322 | E34: 99 | F34: 39
C35: 2018 | D35: 301 | E35: 73 | F35: 37
C36: 2019 | D36: 360 | E36: 62 | F36: 38
C37: 2020 | D37: N/A | E37: 61 | F37: 42
C38: 2021 | D38: N/A | E38: 55 | F38: 38
C39: 2022 | D39: N/A | E39: 52 | F39: 39
C40: 1990-2022 | D40: — | E40: =(E39-E7)/E7 -> -0.3333333333 | F40: =(F39-F7)/F7 -> -0.07142857143
C41: Source: WHO, www.who.int, Global Tuberculosis Report 2016, October 2016, p155; HST, www.hst.org.za, accessed 11 June 2016; WHO, www.who.int, Global Tuberculosis Report 2017, December 2017, p188; Global Tuberculosis Report 2018, September 2018, p204; Global Tuberculosis Report 2019, August 2019, p222; Tuberculosis country, regional and global profiles, accessed 12 April 2021; Tuberculosis country, regional and global profiles, accessed 12 April 2022; Tuberculosis country, regional and global profiles, accessed 26 July 2023; Tuberculosis country, regional and global profiles, accessed 14 October 2024
C42: a The number of people with TB per 100 000 people.
C43: b The number of deaths owing to TB reported in that year per 100 000 people.
C44: c Includes deaths occurring in HIV-positive TB cases.
C45: N/A — Not available.

Sheet Incidence of TB int.22
B2: Incidence of TB per 100 000 people, 2022
B4: —Selected countries— | D4: —Emerging markets— | F4: —Selected African countries—
B5: Australia | C5: 5.6 | D5: Brazil | E5: 49 | F5: Algeria | G5: 51
B6: Botswana | C6: 229 | D6: Bulgaria | E6: 16 | F6: Angola | G6: 333
B7: Chile | C7: 17 | D7: Chile | E7: 17 | F7: Botswana | G7: 229
B8: China | C8: 52 | D8: China | E8: 52 | F8: Burundi | G8: 97
B9: Denmark | C9: 4 | D9: Colombia | E9: 47 | F9: Cameroon | G9: 157
B10: Egypt | C10: 9.8 | D10: Czech Republic | E10: 4.2 | F10: Central African Republic | G10: 540
B11: France | C11: 7.2 | D11: Egypt | E11: 9.8 | F11: Congo (DRC) | G11: 317
B12: Germany | C12: 5.1 | D12: Estonia | E12: 11 | F12: Congo (Republic) | G12: 369
B13: Ghana | C13: 133 | D13: Greece | E13: 2.2 | F13: Eritrea | G13: 69
B14: Greece | C14: 2.2 | D14: Hungary | E14: 5 | F14: Eswatini | G14: 325
B15: India | C15: 199 | D15: India | E15: 199 | F15: Ethiopia | G15: 126
B16: Indonesia | C16: 385 | D16: Indonesia | E16: 385 | F16: Ghana | G16: 133
B17: Ireland | C17: 4.5 | D17: Jordan | E17: 3.8 | F17: Ivory Coast | G17: 123
B18: Israel | C18: 2.6 | D18: Kuwait | E18: 12 | F18: Kenya | G18: 237
B19: Italy | C19: 4.6 | D19: Latvia | E19: 19 | F19: Lesotho | G19: 661
B20: Japan | C20: 9.5 | D20: Lithuania | E20: 30 | F20: Liberia | G20: 308
B21: Kazakhstan | C21: 78 | D21: Malaysia | E21: 113 | F21: Libya | G21: 59
B22: Lithuania | C22: 30 | D22: Mauritius | E22: 12 | F22: Madagascar | G22: 233
B23: Mexico | C23: 28 | D23: Mexico | E23: 28 | F23: Malawi | G23: 125
B24: Mozambique | C24: 361 | D24: Morocco | E24: 93 | F24: Mauritius | G24: 12
B25: Nigeria | C25: 219 | D25: Oman | E25: 9.3 | F25: Morocco | G25: 93
B26: Pakistan | C26: 258 | D26: Pakistan | E26: 258 | F26: Mozambique | G26: 361
B27: Philippines | C27: 638 | D27: Peru | E27: 151 | F27: Namibia | G27: 450
B28: Poland | C28: 12 | D28: Philippines | E28: 638 | F28: Nigeria | G28: 219
B29: Russia | C29: 39 | D29: Poland | E29: 12 | F29: Rwanda | G29: 56
B30: Saudi Arabia | C30: 8.2 | D30: Qatar | E30: 37 | F30: Senegal | G30: 112
B31: South Africa | C31: 468 | D31: Romania | E31: 52 | F31: Somalia | G31: 246
B32: Spain | C32: 6.9 | D32: Russia | E32: 39 | F32: South Africa | G32: 468
B33: Switzerland | C33: 4.6 | D33: Slovakia | E33: 2.9 | F33: Sudan | G33: 54
B34: Turkey | C34: 14 | D34: South Africa | E34: 468 | F34: Tanzania | G34: 195
B35: Uganda | C35: 198 | D35: Sri Lanka | E35: 62 | F35: Tunisia | G35: 37
B36: United Kingdom | C36: 7.6 | D36: Thailand | E36: 155 | F36: Uganda | G36: 198
B37: United States | C37: 2.6 | D37: Turkey | E37: 14 | F37: Zambia | G37: 295
B38: Venezuela | C38: 46 | D38: United Arab Emirates | E38: 0.76 | F38: Zimbabwe | G38: 204
B39: Source: World Bank, www.data.worldbank.org, World Development Indicators, accessed 10 October 2024

Sheet GlobalTBmortality.15.22
B2: TB mortality by world region, 2015 and 2022
C4: —2015— | G4: —2022—
B5: Region | C5: HIV negative | D5: Proportion of total HIV negative | E5: HIV positive | F5: Proportion of total HIV positive | G5: HIV negative | H5: Proportion of total HIV negative | I5: HIV positive | J5: Proportion of total HIV positive
B6: Africa | C6: 450000 | D6: 0.3260869565 | E6: 300000 | F6: 0.7614213198 | G6: 310000 | H6: =G6/1130000 -> 0.2743362832 | I6: 114000 | J6: =I6/167000 -> 0.6826347305
B7: Eastern Mediterranean | C7: 80000 | D7: 0.05797101449 | E7: 3000 | F7: 0.007614213198 | G7: 82000 | H7: =G7/1130000 -> 0.07256637168 | I7: 2100 | J7: =I7/167000 -> 0.0125748503
B8: Europe | C8: 32000 | D8: 0.0231884058 | E8: 5000 | F8: 0.01269035533 | G8: 18000 | H8: 0.01592920354 | I8: 6300 | J8: 0.0377245509
B9: South-East Asia | C9: 710000 | D9: 0.5144927536 | E9: 74000 | F9: 0.1878172589 | G9: 606000 | H9: 0.5362831858 | I9: 26000 | J9: 0.1556886228
B10: The Americas | C10: 19000 | D10: 0.01376811594 | E10: 6000 | F10: 0.0152284264 | G10: 24000 | H10: 0.02123893805 | I10: 11000 | J10: 0.06586826347
B11: Western Pacific | C11: 89000 | D11: 0.06449275362 | E11: 6000 | F11: 0.0152284264 | G11: 96000 | H11: 0.08495575221 | I11: 7500 | J11: 0.04491017964
B12: Globala | C12: 1380000 | D12: 100.0% | E12: 394000 | F12: 100.0% | G12: 1130000 | H12: 1 | I12: 167000 | J12: 1
B13: Source: WHO, www.who.int, Global Tuberculosis Report 2016, October 2016, pp173-178; Tuberculosis country, regional and global profiles, accessed 10 October 2024
B14: a Totals may not add up vertically to 100%, owing to rounding.

Sheet HIVAIDS

Sheet No. & % of people HIV-pos.02-24
B2: HIV and AIDS
B4: Number and proportion of people HIV-positive, 2002-24
C6: —Total population— | E6: —Population aged 15-49—
B7: Year | C7: People HIV-positive (millions) | D7: Proportion of the total population | E7: Proportion of adults HIV-positive | F7: Proportion of women HIV-positive
B8: 2002 | C8: 4.142006 | D8: 8.893605942 | E8: 14.38929203 | F8: 16.6094526
B9: 2003 | C9: 4.362433 | D9: 9.280751853 | E9: 14.78327473 | F9: 17.11888179
B10: 2004 | C10: 4.567607 | D10: 9.615064971 | E10: 15.09247393 | F10: 17.54133081
B11: 2005 | C11: 4.753953 | D11: 9.891587216 | E11: 15.33269444 | F11: 17.88761279
B12: 2006 | C12: 4.928498 | D12: 10.13212202 | E12: 15.53614699 | F12: 18.20495497
B13: 2007 | C13: 5.086163 | D13: 10.32416138 | E13: 15.71388031 | F13: 18.50926961
B14: 2008 | C14: 5.249859 | D14: 10.51320265 | E14: 15.89514687 | F14: 18.81248599
B15: 2009 | C15: 5.43264 | D15: 10.72503543 | E15: 16.14298529 | F15: 19.18545926
B16: 2010 | C16: 5.64619 | D16: 10.98373528 | E16: 16.45052417 | F16: 19.61430251
B17: 2011 | C17: 5.896655 | D17: 11.29259214 | E17: 16.84571244 | F17: 20.15987548
B18: 2012 | C18: 6.155282 | D18: 11.598781 | E18: 17.24720768 | F18: 20.72499168
B19: 2013 | C19: 6.359114 | D19: 11.78921346 | E19: 17.45182258 | F19: 21.0448065
B20: 2014 | C20: 6.56044 | D20: 11.96510364 | E20: 17.61301988 | F20: 21.29311077
B21: 2015 | C21: 6.722092 | D21: 12.0660733 | E21: 17.63116963 | F21: 21.3676238
B22: 2016 | C22: 6.869552 | D22: 12.14917892 | E22: 17.61056007 | F22: 21.38981192
B23: 2017 | C23: 7.020275 | D23: 12.2376265 | E23: 17.59112395 | F23: 21.40190327
B24: 2018 | C24: 7.168354 | D24: 12.30973743 | E24: 17.55468203 | F24: 21.39030845
B25: 2019 | C25: 7.311563 | D25: 12.36499584 | E25: 17.45782529 | F25: 21.30445247
B26: 2020 | C26: 7.44858 | D26: 12.41375545 | E26: 17.32908035 | F26: 21.17655543
B27: 2021 | C27: 7.570309 | D27: 12.48370012 | E27: 17.20069254 | F27: 21.04887768
B28: 2022 | C28: 7.69317 | D28: 12.53854298 | E28: 17.02448484 | F28: 20.86502473
B29: 2023 | C29: 7.840487 | D29: 12.6092579 | E29: 16.85284914 | F29: 20.68110073
B30: 2024 | C30: 8.001183 | D30: 12.69708519 | E30: 16.68093007 | F30: 20.49887506
B31: 2002-24 | C31: =(C30-C8)/C8 -> 0.9317169024 | D31: =(D30-D8)/D8 -> 0.4276644677 | E31: 0.1592599571 | F31: 0.2341692143
B32: Source: Stats SA, Mid-year population estimates 2024, Statistical release P0302, July 2024, Appendix 3, p29

Sheet PeopleHIV-positivebyprov.10-24
B2: People HIV-positive by province, 2010-24
B4: Province | C4: 2010a | D4: 2012a | E4: 2014a | F4: 2016a | G4: 2018a | H4: 2020a | I4: 2022a | J4: 2024b | K4: Proportion of provincial population
B5: Eastern Cape | C5: 644882 | D5: 693510 | E5: 741721 | F5: 783181 | G5: 817658 | H5: 845986 | I5: 864979 | J5: 885252 | K5: 0.1233589216
B6: Free State | C6: 364563 | D6: 374693 | E6: 388655 | F6: 399393 | G6: 405566 | H6: 409290 | I6: 408382 | J6: 408309 | K6: 0.1341334934
B7: Gauteng | C7: 1343350 | D7: 1452750 | E7: 1553000 | F7: 1641510 | G7: 1716000 | H7: 1775790 | I7: 1819400 | J7: 1861750 | K7: 0.1168573074
B8: KwaZulu-Natal | C8: 1653050 | D8: 1728970 | E8: 1815040 | F8: 1884360 | G8: 1929430 | H8: 1951870 | I8: 1949720 | J8: 1946960 | K8: 0.1581260124
B9: Limpopo | C9: 452871 | D9: 505306 | E9: 552864 | F9: 595846 | G9: 633583 | H9: 666462 | I9: 693274 | J9: 722302 | K9: 0.1128139686
B10: Mpumalanga | C10: 597440 | D10: 630494 | E10: 676118 | F10: 716705 | G10: 749351 | H10: 775139 | I10: 791508 | J10: 807350 | K10: 0.1596291092
B11: North West | C11: 394156 | D11: 422215 | E11: 443262 | F11: 460500 | G11: 473678 | H11: 483947 | I11: 489071 | J11: 494362 | K11: 0.118971352
B12: Northern Cape | C12: 76334.2 | D12: 78288.8 | E12: 83419.5 | F12: 88525.6 | G12: 93317.4 | H12: 97521.1 | I12: 100508 | J12: 103883 | K12: 0.07566445945
B13: Western Cape | C13: 309685 | D13: 346574 | E13: 387034 | F13: 425665 | G13: 462741 | H13: 497057 | I13: 527916 | J13: 558817 | K13: 0.07389229688
B14: South Africac | C14: 5897170 | D14: 6287600 | E14: 6681820 | F14: 7039330 | G14: 7331980 | H14: 7560200 | I14: 7725790 | J14: 7881970 | K14: 0.1250790594
B15: Source: Thembisa, www.thembisa.org, National and provincial model outputs: version 4.7 downloads, accessed 14 October 2024; Stats SA, Province projections by sex and age (2002-2024), accessed 14 October 2024
B16: a Estimates that are based on fitting the model to historic data.
B17: b Projections, which are based on model extrapolations of past trends and of which data is not available.
B18: c Figures may not add up to totals because the national model is calibrated independently of the provincial models and the national estimates are not calculated as the sum of the provincial estimates. The national model is calibrated independently of the provincial models because many of the data sources are only available at national level (or are only reported with age disaggregation at national level).

Sheet HIV prevalencebyprovince.10-24
C2: HIV prevalencea by province, 2010-24
C4: Province | D4: 2010a | E4: 2012a | F4: 2014a | G4: 2016a | H4: 2018a | I4: 2020a | J4: 2022a | K4: 2024b | L4: Change 2010-24
C5: Eastern Cape | D5: 0.101245 | E5: 0.107734 | F5: 0.113847 | G5: 0.118664 | H5: 0.12241 | I5: 0.125068 | J5: 0.127101 | K5: 0.128569 | L5: =(K5-D5)/D5 -> 0.2698799941
C6: Free State | D6: 0.132846 | E6: 0.135824 | F6: 0.139148 | G6: 0.141217 | H6: 0.141673 | I6: 0.14103 | J6: 0.139533 | K6: 0.137588 | L6: =(K6-D6)/D6 -> 0.03569546693
C7: Gauteng | D7: 0.111607 | E7: 0.11464 | F7: 0.116758 | G7: 0.117778 | H7: 0.117784 | I7: 0.116698 | J7: 0.115104 | K7: 0.11317 | L7: 0.01400449793
C8: KwaZulu-Natal | D8: 0.162204 | E8: 0.166492 | F8: 0.17028 | G8: 0.172134 | H8: 0.171725 | I8: 0.169027 | J8: 0.165187 | K8: 0.16061 | L8: -0.009827131267
C9: Limpopo | D9: 0.0869076 | E9: 0.092996 | F9: 0.0979848 | G9: 0.101527 | H9: 0.104109 | I9: 0.105748 | J9: 0.10704 | K9: 0.108097 | L9: 0.2438152705
C10: Mpumalanga | D10: 0.147844 | E10: 0.153407 | F10: 0.159114 | G10: 0.16313 | H10: 0.16502 | I10: 0.164988 | J10: 0.163357 | K10: 0.160701 | L10: 0.08696328563
C11: North West | D11: 0.118524 | E11: 0.120875 | F11: 0.123768 | G11: 0.125621 | H11: 0.126428 | I11: 0.126288 | J11: 0.125321 | K11: 0.123831 | L11: 0.04477574162
C12: Northern Cape | D12: 0.0703679 | E12: 0.0724616 | F12: 0.0751338 | G12: 0.0775016 | H12: 0.0794799 | I12: 0.080817 | J12: 0.081659 | K12: 0.08233 | L12: 0.1699937045
C13: Western Cape | D13: 0.0544944 | E13: 0.0586717 | F13: 0.0627271 | G13: 0.066136 | H13: 0.0691404 | I13: 0.0714739 | J13: 0.0733483 | K13: 0.0748341 | L13: 0.3732438562
C14: South Africa | D14: 0.116668 | E14: 0.120419 | F14: 0.123664 | G14: 0.12595 | H14: 0.127018 | I14: 0.127021 | J14: 0.126407 | K14: 0.125213 | L14: =(K14-D14)/D14 -> 0.07324202009
C15: Source: Thembisa, www.thembisa.org, National and provincial model outputs: version 4.7 downloads, accessed 14 October 2024
C16: a The estimated proportion of people tested, who were found to be infected with HIV.
C17: b Projections, which are based on model extrapolations.

Sheet New hiv infectionsbyprov.10-24
B2: Total new HIV infections by province, 2009-24
B4: Province | C4: 2009a | D4: 2011a | E4: 2013a | F4: 2015a | G4: 2017a | H4: 2019a | I4: 2021a | J4: 2023b | K4: 2024b | L4: Change 2009-24
B5: Eastern Cape | C5: 56504.7 | D5: 48989.5 | E5: 44987.8 | F5: 40338.5 | G5: 34703.7 | H5: 31289.2 | I5: 29036.4 | J5: 27458.6 | K5: 26826.3 | L5: =(K5-C5)/C5 -> -0.5252377236
B6: Free State | C6: 26752.5 | D6: 21642.8 | E6: 19248.4 | F6: 17042.7 | G6: 12990.9 | H6: 10782.7 | I6: 9196.19 | J6: 8261.88 | K6: 7957.45 | L6: =(K6-C6)/C6 -> -0.7025530324
B7: Gauteng | C7: 80319.7 | D7: 73098.5 | E7: 67993.9 | F7: 60133.8 | G7: 51423.5 | H7: 44712 | I7: 40142.3 | J7: 37105.4 | K7: 36624 | L7: -0.5440222013
B8: KwaZulu-Natal | C8: 115242 | D8: 95060 | E8: 82712.3 | F8: 70826.8 | G8: 55013 | H8: 43606.8 | I8: 36216.7 | J8: 31432.1 | K8: 29458.1 | L8: -0.744380521
B9: Limpopo | C9: 38260.1 | D9: 35181.6 | E9: 33552.3 | F9: 31024.8 | G9: 27793.7 | H9: 26223.7 | I9: 25442.4 | J9: 24672.8 | K9: 24271.5 | L9: -0.3656184903
B10: Mpumalanga | C10: 46399.5 | D10: 39454.3 | E10: 37283 | F10: 34250.4 | G10: 28933.8 | H10: 24970.4 | I10: 21937.5 | J10: 19862.4 | K10: 19054.4 | L10: -0.5893404024
B11: North West | C11: 26733.4 | D11: 24866.9 | E11: 23323.9 | F11: 21132.4 | G11: 17808.2 | H11: 15477.4 | I11: 13210.9 | J11: 11768.7 | K11: 11368.8 | L11: -0.5747342276
B12: Northern Cape | C12: 4687.78 | D12: 3850.62 | E12: 3509.62 | F12: 3203.6 | G12: 2969.94 | H12: 2819.33 | I12: 2752.27 | J12: 2634.29 | K12: 2567.03 | L12: -0.4523996433
B13: Western Cape | C13: 17488.7 | D13: 15975.1 | E13: 15360.1 | F13: 14043.8 | G13: 13311.9 | H13: 12411 | I13: 11999.7 | J13: 11897.7 | K13: 12056.1 | L13: -0.3106348671
B14: South Africac | C14: 380402 | D14: 320995 | E14: 283764 | F14: 253300 | G14: 211955 | H14: 181376 | I14: 163906 | J14: 149277 | K14: 141808 | L14: =(K14-C14)/C14 -> -0.6272154195
B15: Source: Thembisa, www.thembisa.org, National and provincial model outputs: version 4.7 downloads, accessed 14 October 2024
B16: a Estimates that are based on fitting the model to historic data.
B17: b Projections, which are based on model extrapolations of past trends.
B18: c Figures may not add up to totals because the national model is calibrated independently of the provincial models and the national estimates are not calculated as the sum of the provincial estimates. The national model is calibrated independently of the provincial models because many of the data sources are only available at national level (or are only reported with age disaggregation at national level).

Sheet HIV incidence by province.9-24
B2: HIV incidencea by province, 2009-24
B4: Province | C4: 2009a | D4: 2011a | E4: 2013a | F4: 2015a | G4: 2017a | H4: 2019a | I4: 2021a | J4: 2023b | K4: 2024b
B5: Eastern Cape | C5: 0.00989816 | D5: 0.00854026 | E5: 0.00781328 | F5: 0.00696065 | G5: 0.00594522 | H5: 0.00531339 | I5: 0.00490359 | J5: 0.00460135 | K5: 0.0044727
B6: Free State | C6: 0.0112041 | D6: 0.00911709 | E6: 0.00803905 | F6: 0.00705121 | G6: 0.00532084 | H6: 0.00435945 | I6: 0.00367417 | J6: 0.00325507 | K6: 0.00310999
B7: Gauteng | C7: 0.00770581 | D7: 0.00665832 | E7: 0.0059266 | F7: 0.00500162 | G7: 0.00409131 | H7: 0.00340195 | I7: 0.00292922 | J7: 0.00259761 | K7: 0.00251097
B8: KwaZulu-Natal | C8: 0.0135556 | D8: 0.01108 | E8: 0.00945827 | F8: 0.00791124 | G8: 0.00599477 | H8: 0.00461574 | I8: 0.00372933 | J8: 0.00314039 | K8: 0.00289614
B9: Limpopo | C9: 0.00820337 | D9: 0.00724676 | E9: 0.00670018 | F9: 0.00598794 | G9: 0.00518277 | H9: 0.00473023 | I9: 0.00445812 | J9: 0.00420236 | K9: 0.00407347
B10: Mpumalanga | C10: 0.0134486 | D10: 0.0114723 | E10: 0.0105738 | F10: 0.00944837 | G10: 0.00775637 | H10: 0.00647918 | I10: 0.00550512 | J10: 0.00480621 | K10: 0.00452036
B11: North West | C11: 0.00945144 | D11: 0.00819171 | E11: 0.00751062 | F11: 0.00666209 | G11: 0.00549912 | H11: 0.00467789 | I11: 0.00391007 | J11: 0.00340655 | K11: 0.00325092
B12: Northern Cape | C12: 0.00456451 | D12: 0.00389022 | E12: 0.00346048 | F12: 0.00307976 | G12: 0.00278354 | H12: 0.00257599 | I12: 0.00245932 | J12: 0.00230311 | K12: 0.00221752
B13: Western Cape | C13: 0.00330112 | D13: 0.00293152 | E13: 0.00270796 | F13: 0.00238124 | G13: 0.00217538 | H13: 0.0019569 | I13: 0.00182854 | J13: 0.00175285 | K13: 0.00174534
B14: South Africa | C14: 0.00863286 | D14: 0.00709139 | E14: 0.00608601 | F14: 0.00526674 | G14: 0.00427197 | H14: 0.00354415 | I14: 0.003113 | J14: 0.00275375 | K14: 0.00257594
B15: Source: Thembisa, www.thembisa.org, National and provincial model outputs: version 4.7 downloads, accessed 14 October 2024
B16: a The estimated proportion of people newly infected with HIV during a specified period.
B17: b Projections, which are based on model extrapolations of past trends.

Sheet People on ARTbyage.01-24
B2: People receiving Antiretroviral therapy (ART) by age group, 2001-24
C4: —People on ART—
B5: Cohort | C5: 2001a | D5: 2005a | E5: 2010a | F5: 2015a | G5: 2020a | H5: 2021a | I5: 2022a | J5: 2023b | K5: 2024b
B6: Males (aged 15+) | C6: 2496.88 | D6: 29683.3 | E6: 325997 | F6: 1024810 | G6: 1662780 | H6: 1711200 | I6: 1756620 | J6: 1799990 | K6: 1862700
B7: Females (aged 15+) | C7: 4975.04 | D7: 70717.9 | E7: 765682 | F7: 2279740 | G7: 3621650 | H7: 3734220 | I7: 3850660 | J7: 3957360 | K7: 4120890
B8: Children aged below 15 | C8: 782.106 | D8: 10656.4 | E8: 97231.1 | F8: 166273 | G8: 143189 | H8: 129992 | I8: 116946 | J8: 103790 | K8: 92653.4
B9: Total | C9: =SUM(C6:C8) -> 8254.026 | D9: =SUM(D6:D8) -> 111057.6 | E9: 1188910.1 | F9: 3470823 | G9: 5427619 | H9: 5575412 | I9: 5724226 | J9: 5861140 | K9: 6076243.4
B10: Source: Thembisa, www.thembisa.org, National and provincial model outputs: version 4.7 downloads, accessed 14 October 2024
B11: a Estimates that are based on fitting the model to historic data.
B12: b Projections, which are based on model extrapolations of past trends.

Sheet Aidsdeaths.children.90-23
B2: AIDS-related deaths among childrena, 1990-2023
C4: Year | D4: Number
C5: 1990 | D5: 4100
C6: 1991 | D6: 6200
C7: 1992 | D7: 9100
C8: 1993 | D8: 13000
C9: 1994 | D9: 17000
C10: 1995 | D10: 21000
C11: 1996 | D11: 26000
C12: 1997 | D12: 30000
C13: 1998 | D13: 35000
C14: 1999 | D14: 40000
C15: 2000 | D15: 44000
C16: 2001 | D16: 48000
C17: 2002 | D17: 51000
C18: 2003 | D18: 53000
C19: 2004 | D19: 56000
C20: 2005 | D20: 56000
C21: 2006 | D21: 54000
C22: 2007 | D22: 47000
C23: 2008 | D23: 38000
C24: 2009 | D24: 28000
C25: 2010 | D25: 18000
C26: 2011 | D26: 11000
C27: 2012 | D27: 7200
C28: 2013 | D28: 5500
C29: 2014 | D29: 4400
C30: 2015 | D30: 3800
C31: 2016 | D31: 3300
C32: 2017 | D32: 3000
C33: 2018 | D33: 2700
C34: 2019 | D34: 2600
C35: 2020 | D35: 2100
C36: 2021 | D36: 1900
C37: 2022 | D37: 1700
C38: 2023 | D38: 1500
C39: 1990-2023 | D39: =(D38-D5)/D5 -> -0.6341463415
B40: Source: United Nations AIDS (UNAIDS),www.unaids.org, HIV estimates from 1990 to present, accessed 14 October 2024
B41: a People aged 0-14. Estimates.

Sheet Regional HIV, AIDS stats.10-23
C2: Regional HIV/AIDS statisticsa, 2010 and 2023
C4: Region | D4: Year | E4: Estimated new HIV infections (all ages) | F4: Estimated deaths due to AIDS (all ages)
C5: Asia and the Pacific | D5: 2010 | E5: 320000 | F5: 280000
D6: 2023 | E6: 300000 | F6: 150000
C7: Caribbean and Latin America | D7: 2010 | E7: 119000 | F7: 55000
D8: 2023 | E8: 135000 | F8: 35100
C9: Eastern Europe and Central Asia | D9: 2010 | E9: 100000 | F9: 34000
D10: 2023 | E10: 140000 | F10: 44000
C11: Eastern and Southern Africa | D11: 2010 | E11: 1200000 | F11: 660000
D12: 2023 | E12: 450000 | F12: 260000
C13: Middle East and North Africa | D13: 2010 | E13: 16000 | F13: 8800
D14: 2023 | E14: 23000 | F14: 6200
C15: Western and Central Africa | D15: 2010 | E15: 410000 | F15: 370000
D16: 2023 | E16: 190000 | F16: 130000
C17: Western and Central Europe, and North America | D17: 2010 | E17: 75000 | F17: 21000
D18: 2023 | E18: 56000 | F18: 13000
C19: Total | D19: 2010 | E19: 2200000 | F19: 1400000
D20: 2023 | E20: 1300000 | F20: 630000
C21: Source: UNAIDS, www.unaids.org, Factsheet 2024, accessed 14 October 2024
C22: a Figures are estimates based on the best available information.

Sheet Circumcision

Sheet Male circumcision 2010-23
B2: Other health
B4: Circumcision and contraception
C6: Medical male circumcision, 2010/11-2022/23
C8: Year | D8: Number | E8: Year-on-year changea
C9: 2010/11 | D9: 100000 | E9: —
C10: 2011/12 | D10: 347973 | E10: =(D10-D9)/D9 -> 2.47973
C11: 2012/13 | D11: 422262 | E11: 0.2134907019
C12: 2013/14 | D12: 331668 | E12: -0.2145445245
C13: 2014/15 | D13: 508404 | E13: 0.5328702196
C14: 2015/16 | D14: 464731 | E14: -0.08590215655
C15: 2016/17 | D15: 491859 | E15: 0.05837355373
C16: 2017/18 | D16: 539892 | E16: 0.09765603557
C17: 2018/19 | D17: 595006 | E17: 0.1020833796
C18: 2019/20 | D18: 531988 | E18: -0.105911537
C19: 2020/21 | D19: 129587 | E19: =(D19-D18)/D18 -> -0.756409919
C20: 2021/22 | D20: 385696 | E20: =(D20-D19)/D19 -> 1.976347936
C21: 2022/23 | D21: 117184 | E21: =(D21-D20)/D20 -> -0.6961752261
C22: Source: NDOH, www.health.gov.za; Annual report 2011/12, August 2012, p50 Annual report 2014/15, September 2015, p41; Annual report 2015/16, September 2016, p33; Annual report 2016/17, August 2017, p34; HST, www.hst.org.za, DHB 2019 Data file, accessed 17 September 2020; NDOH, www.health.gov.za; Annual report 2019/20, March 2020, p36; Annual report 2020/21, November 2021, p83; Annual report 2021/22, October 2022, p36; Annual report 2022/23, March 2023, p32
C23: a CRA calculations.

Sheet Male condomdistribution.15-23
C2: Male condom distribution coveragea by province, 2015/16-2022/23
C4: Province | D4: 2015/16 | E4: 2016/17 | F4: 2017/18 | G4: 2018/19 | H4: 2019/20 | I4: 2020/21 | J4: 2021/22 | K4: 2022/23
C5: Eastern Cape | D5: 52.9 | E5: 55.9 | F5: 28.3 | G5: 33.3 | H5: 34.7 | I5: 22.3 | J5: 22.4 | K5: 12.4
C6: Free State | D6: 53.8 | E6: 42.2 | F6: 41 | G6: 50.2 | H6: 52.3 | I6: 50.9 | J6: 56.1 | K6: 52.7
C7: Gauteng | D7: 39.8 | E7: 38.7 | F7: 36.8 | G7: 32.7 | H7: 25.1 | I7: 26.3 | J7: 21.1 | K7: 11.1
C8: KwaZulu-Natal | D8: 55.9 | E8: 55.3 | F8: 22.2 | G8: 31.5 | H8: 30.1 | I8: 26.6 | J8: 29 | K8: 24
C9: Limpopo | D9: 51.4 | E9: 68.8 | F9: 49.9 | G9: 44.4 | H9: 35.5 | I9: 27.5 | J9: 28.3 | K9: 20.6
C10: Mpumalanga | D10: 33.5 | E10: 52.9 | F10: 41.9 | G10: 43.8 | H10: 32.8 | I10: 23.9 | J10: 19.4 | K10: 21.3
C11: North West | D11: 24.3 | E11: 37.5 | F11: 32.9 | G11: 36.3 | H11: 38.7 | I11: 27.4 | J11: 28.1 | K11: 20.1
C12: Northern Cape | D12: 20.3 | E12: 21.2 | F12: 30.8 | G12: 31.4 | H12: 28.9 | I12: 23.8 | J12: 20.9 | K12: 11.2
C13: Western Cape | D13: 50.3 | E13: 49.2 | F13: 48.6 | G13: 42.7 | H13: 33.2 | I13: 21.4 | J13: 27.3 | K13: 20.5
C14: South Africa | D14: 45.4 | E14: 48.6 | F14: 36.1 | G14: 36.8 | H14: 32.1 | I14: 26.5 | J14: 26.1 | K14: 18.9
C15: Source: HST, www.hst.org.za, SAHR 2018, November 2018, Table 20, p185; SAHR 2020, December 2020, Table 18, p248; SAHR 2021, April 2022, Table 11, p340; SAHR 2022, September 2023, Table 14, p62; SAHR 2023, October 2024, Table 7, p33
C16: a Refers to the number of condoms distributed per male person aged 15 and above through public health facilities, identified outlets and other non-medical sites in a given 12-month period.

Sheet Contraception

Sheet Contraceptives dispensed by fac
B2: Contraceptives dispensed by hospitals, main public healthcare facilities and other facilities, 2013/14-2022/23
B4: Year | C4: Hospitals | D4: Main public healthcare facilities | E4: Othera | F4: Total
B5: 2013/14 | C5: 687927 | D5: 4163370 | E5: 699366 | F5: =C5+D5+E5 -> 5550663
B6: 2014/15 | C6: 765861 | D6: 5092761 | E6: 1122113 | F6: =C6+D6+E6 -> 6980735
B7: 2015/16 | C7: 858403 | D7: 4917954 | E7: 1510583 | F7: =C7+D7+E7 -> 7286940
B8: 2016/17 | C8: 883907 | D8: 5214807 | E8: 1585789 | F8: 7684503
B9: 2017/18 | C9: — | D9: — | E9: — | F9: 6940471
B10: 2018/19 | C10: — | D10: — | E10: — | F10: 7247868
B11: 2019/20 | C11: — | D11: — | E11: — | F11: 6668124
B12: 2020/21 | C12: — | D12: — | E12: — | F12: 6 032 412
B13: 2021/22 | C13: — | D13: — | E13: — | F13: 6 513 038
B14: 2022/23 | C14: — | D14: — | E14: — | F14: 6 288 406
B15: Source: HST, www.hst.org.za, DHB 2016/17, November 2017, Table 1, p131; DHB 2017/18, February 2019, Table 1, p155; DHB 2018/19, February 2020, Table 2, p67; DHB 2019/20, December 2020, Table 2, p69; DHB 2022/23, February 2024, Table 1, p95
B16: a Includes correctional services, environmental health services, general practitioners, health posts, home-based care services, non-medical sites, occupational health services, nurse practitioners, pharmacies, health sub-district offices, primary condom distribution sites, place holder sites, reproductive centres and special clinics.

Sheet Contraceptionusebyprov.23
A2: Contraception use by type and province, 2016/17 and 2022/23
A4: Province | B4: Year | C4: Intrauterine contraceptive device | D4: Medroxypro-gesterone injection | E4: Norethisterone enanthate injection | F4: Oral pill cycle | G4: Sterilisation -female | H4: Sterilisation-male | I4: Sub-dermal implant inserted | J4: Female condoms distributed | K4: Male condoms distributed
A5: Eastern Cape | B5: 2016/17 | C5: 1887 | D5: 828854 | E5: 523299 | F5: 268343 | G5: 3413 | H5: 6 | I5: 4305 | J5: 2660799 | K5: 119498754
B6: 2022/23 | C6: 5742 | D6: 729352 | E6: 468311 | F6: 246085 | G6: 5403 | H6: 4 | I6: 37046 | J6: 1 279 500 | K6: 25 490 700
A7: Free State | B7: 2016/17 | C7: 797 | D7: 393591 | E7: 142495 | F7: 187632 | G7: 2141 | H7: 5 | I7: 3475 | J7: 1162105 | K7: 41693200
B8: 2022/23 | C8: 1197 | D8: 350660 | E8: 122794 | F8: 126536 | G8: 3877 | H8: 46 | I8: 14960 | J8: 2 182 220 | K8: 52 469 700
A9: Gauteng | B9: 2016/17 | C9: 2568 | D9: 1054253 | E9: 776458 | F9: 1028578 | G9: 7598 | H9: 3 | I9: 7735 | J9: 6857965 | K9: 196062536
B10: 2022/23 | C10: 8421 | D10: 1 001 632 | E10: 718019 | F10: 1 055 912 | G10: 10294 | H10: 2 | I10: 69155 | J10: 4 497 159 | K10: 69 220 678
A11: KwaZulu-Natal | B11: 2016/17 | C11: 7850 | D11: 1423422 | E11: 408499 | F11: 541828 | G11: 9836 | H11: 22 | I11: 13204 | J11: 6146887 | K11: 185574089
B12: 2022/23 | C12: 26571 | D12: 1 203 512 | E12: 391873 | F12: 517324 | G12: 14001 | H12: 672 | I12: 159184 | J12: 3 047 100 | K12: 89 664 600
A13: Limpopo | B13: 2016/17 | C13: 2443 | D13: 480388 | E13: 764417 | F13: 542010 | G13: 3542 | H13: 12 | I13: 4409 | J13: 2532077 | K13: 123436695
B14: 2022/23 | C14: 2205 | D14: 625257 | E14: 602014 | F14: 553500 | G14: 5355 | H14: 0 | I14: 15793 | J14: 1071100 | K14: 38910442
A15: Mpumalanga | B15: 2016/17 | C15: 698 | D15: 368074 | E15: 420978 | F15: 256384 | G15: 2061 | H15: 6 | I15: 131 | J15: 1981572 | K15: 77703335
B16: 2022/23 | C16: 1390 | D16: 342651 | E16: 367895 | F16: 181637 | G16: 3677 | H16: 7 | I16: 19669 | J16: 1367918 | K16: 35627000
A17: North West | B17: 2016/17 | C17: 1165 | D17: 302458 | E17: 228316 | F17: 257747 | G17: 1629 | H17: 2 | I17: 2368 | J17: 1182524 | K17: 50460617
B18: 2022/23 | C18: 3116 | D18: 322176 | E18: 275366 | F18: 202064 | G18: 3160 | H18: 0 | I18: 28635 | J18: 708047 | K18: 30810803
A19: Northern Cape | B19: 2016/17 | C19: 9 | D19: 151831 | E19: 60869 | F19: 56684 | G19: 1446 | H19: 3 | I19: 2310 | J19: 275190 | K19: 9036023
B20: 2022/23 | C20: 306 | D20: 144620 | E20: 47703 | F20: 48574 | G20: 1448 | H20: 0 | I20: 8398 | J20: 101513 | K20: 5 194 000
A21: Western Cape | B21: 2016/17 | C21: 5916 | D21: 819134 | E21: 310998 | F21: 487496 | G21: 5957 | H21: 512 | I21: 11800 | J21: 3241613 | K21: 113787868
B22: 2022/23 | C22: 5051 | D22: 882370 | E22: 285877 | F22: 398606 | G22: 6634 | H22: 485 | I22: 52021 | J22: 1258400 | K22: 55420700
A23: Source: HST, www.hst.org.za, DHB 2017/18, February 2019, Table 3, p157; DHB 2018/19, February 2020, Table 4, p69; DHB 2019/20, February 2021, Table 5, p72; DHB 2022/23, February 2024, Table 3, p98
